Workbook

Sheet INSTRUCTIONS
A1: ENFSI DWG Calculator for Qualitative Sampling of Seized Drugs (version July 2017) Instructions
A2: This file was created and validated by the Microsoft Excel 2003 software. Excel_2003 file (xls) was then saved in Excel Macro-Enabled” format (.xlsm). The basic functionality of application was retested in Eexcel 2007, 2010 and 2016. Inconsistencies were not detected. Please note that Macro Security level in EXCEL shall be adjusted such that running of macros is enabled.
A4: This Excel file has eight sheets (Tabs): Instructions, Hypg_Proportion, Hypg_Number, Bayesian N<50, Bayesian N>=50, Estimation of Weight, Estimation of tablets, Revision Changes.
A5: Hypergeometric Sampling Tool - version 2012 (validated)
A6: See the background of the Hypergeometric sample size calculation, some limitations-restrictions and the validation report in the file: DWG-SGL-002-vers001_Hypgergeometric_CalculationBackground_And_Validation.pdf
A7: 1. Two types of calculation are enabled: For the calculation based on the proportion of positives select the Hypg_Proportion tab and for the calculation based on the number of positives the Hypg_Number tab.
A8: 2. Enter data (steps 1 to 4) and see the results (steps 5 to 7).
A9: 3. Maximum population size (Nmax) is adjustable by user. To keep the file size relatively small, Nmax = 1000 is set as default. Click the appropriate macro button to change (extend/reduce) the population size, when needed. Important : Note that with higher values of Nmax the file size will increase significantly, calculations are becoming slower and the idle time for file saving and opening will increase!
A10: Other calculations - (version 2015) (changed but not revalidated)
A11: See the validation reports in the file: DWG-SGL-001-vers002_ Validation Report on Qualitative Sampling Guideline.pdf
A13: Bayesian Sampling
A15: 1. Select either the Bayesian N>=50 or the Bayesian N<50 tab.
A16: 2. Enter the desired values for steps 1,2,3,4,5 &6.
A17: Note 1: Although population size is not used in the calculations for the beta distribution, it is necessary to enter
A18: the population size so that the software can decide whether to use beta or beta-binomial distribution in the calculations.
A19: Note 2: The values selected for steps 5 and 6 (a & b values) will depend on the analyst’s prior knowledge or assumptions about θ.
A21: 3. The required sample size will be given at step 7.
A23: N >= 50
A24: The Excel beta distribution function is used here as follows:
A26: P(θ>k)=BETADIST (k, a+(n-r), b+r, lower limit for k, upper limit for k).
A28: N <50
A29: The Γ(x) function can be calculated in Excel by using a combination of the EXP and GAMMALN worksheet functions as follows:
A30: GAMMALN(x) = LN(Γ(x))
A31: The EXP function is the inverse of the LN function therefore:
A32: EXP(GAMMALN(x)) = Γ(x)
A34: This function is incorporated into the beta-binomial distribution equation as follows:
A36: P(Y>=y)=
A37: ( EXP(GAMMALN(n+a+b))*COMBIN(N-n,y) * EXP(GAMMALN(y+x+a)) * EXP(GAMMALN(N-x-y+b) ) / ( EXP(GAMMALN(x+a) * EXP(GAMMALN(n-x+b)) * EXP(GAMMALN(N+a+b) )
A39: Estimation of Weights.
A41: 1. Select the Estimation of Weight tab.
A42: 2. Enter the required values for steps 1 to 7.
A43: 3. The confidence interval is given in cells B12: D12
A45: The confidence interval is calculated as follows:
A47: C.I. = mean weight ± t*( √( (s/ √(n-r))^2 + (uw)^2 ))
A49: In the event of any negatives being detected in the samples, a correction factor (n-r)/n is applied as follows:
A51: C.I. = (mean weight) * (n-r)/n ± (t*( √( (s/ √(n-r))^2 + (uw)^2 )) * (n-r)/n
A53: For smaller populations where n/N > 0.1 a further correction factor √((N-n)/N) is applied giving:
A55: C.I. = (mean weight) * (n-r)/n ± (t*( √( (s/ √(n-r))^2 + (uw)^2 )) * (n-r)/n* √((N-n)/N)
A57: Estimation of Tablet Numbers.
A59: 1. Select the Estimation of Tablets tab.
A60: 2. Enter the required values for steps 1 to 7.
A61: 3. The estimated number of tablets is given in cell B19
A62: (The calculator incoroprates the uncertainty for two different balances because it is likely that different balances
A63: may be used to determine the total tablet weight and individual tablet weights. If the same balance is used for both,
A64: enter the same uncertainty value for both uw1 and uw2).
B66: Estimation of Tablet Numbers. | C66: Estimation of Tablet Numbers. | D66: Estimation of Tablet Numbers. | E66: Estimation of Tablet Numbers. | F66: Estimation of Tablet Numbers. | G66: Estimation of Tablet Numbers. | H66: Estimation of Tablet Numbers. | I66: Estimation of Tablet Numbers. | J66: Estimation of Tablet Numbers. | K66: Estimation of Tablet Numbers. | L66: Estimation of Tablet Numbers. | M66: Estimation of Tablet Numbers. | N66: Estimation of Tablet Numbers. | O66: Estimation of Tablet Numbers. | P66: Estimation of Tablet Numbers. | Q66: Estimation of Tablet Numbers. | R66: Estimation of Tablet Numbers. | S66: Estimation of Tablet Numbers. | T66: Estimation of Tablet Numbers. | U66: Estimation of Tablet Numbers. | V66: Estimation of Tablet Numbers. | W66: Estimation of Tablet Numbers. | X66: Estimation of Tablet Numbers. | Y66: Estimation of Tablet Numbers. | Z66: Estimation of Tablet Numbers. | AA66: Estimation of Tablet Numbers. | AB66: Estimation of Tablet Numbers. | AC66: Estimation of Tablet Numbers. | AD66: Estimation of Tablet Numbers. | AE66: Estimation of Tablet Numbers. | AF66: Estimation of Tablet Numbers. | AG66: Estimation of Tablet Numbers. | AH66: Estimation of Tablet Numbers. | AI66: Estimation of Tablet Numbers. | AJ66: Estimation of Tablet Numbers. | AK66: Estimation of Tablet Numbers. | AL66: Estimation of Tablet Numbers. | AM66: Estimation of Tablet Numbers. | AN66: Estimation of Tablet Numbers. | AO66: Estimation of Tablet Numbers. | AP66: Estimation of Tablet Numbers. | AQ66: Estimation of Tablet Numbers. | AR66: Estimation of Tablet Numbers. | AS66: Estimation of Tablet Numbers. | AT66: Estimation of Tablet Numbers. | AU66: Estimation of Tablet Numbers. | AV66: Estimation of Tablet Numbers. | AW66: Estimation of Tablet Numbers. | AX66: Estimation of Tablet Numbers. | AY66: Estimation of Tablet Numbers. | AZ66: Estimation of Tablet Numbers. | BA66: Estimation of Tablet Numbers. | BB66: Estimation of Tablet Numbers. | BC66: Estimation of Tablet Numbers. | BD66: Estimation of Tablet Numbers. | BE66: Estimation of Tablet Numbers. | BF66: Estimation of Tablet Numbers. | BG66: Estimation of Tablet Numbers. | BH66: Estimation of Tablet Numbers. | BI66: Estimation of Tablet Numbers. | BJ66: Estimation of Tablet Numbers. | BK66: Estimation of Tablet Numbers. | BL66: Estimation of Tablet Numbers. | BM66: Estimation of Tablet Numbers. | BN66: Estimation of Tablet Numbers. | BO66: Estimation of Tablet Numbers. | BP66: Estimation of Tablet Numbers. | BQ66: Estimation of Tablet Numbers. | BR66: Estimation of Tablet Numbers. | BS66: Estimation of Tablet Numbers. | BT66: Estimation of Tablet Numbers. | BU66: Estimation of Tablet Numbers. | BV66: Estimation of Tablet Numbers. | BW66: Estimation of Tablet Numbers. | BX66: Estimation of Tablet Numbers. | BY66: Estimation of Tablet Numbers. | BZ66: Estimation of Tablet Numbers. | CA66: Estimation of Tablet Numbers. | CB66: Estimation of Tablet Numbers. | CC66: Estimation of Tablet Numbers. | CD66: Estimation of Tablet Numbers. | CE66: Estimation of Tablet Numbers. | CF66: Estimation of Tablet Numbers. | CG66: Estimation of Tablet Numbers. | CH66: Estimation of Tablet Numbers. | CI66: Estimation of Tablet Numbers. | CJ66: Estimation of Tablet Numbers. | CK66: Estimation of Tablet Numbers. | CL66: Estimation of Tablet Numbers. | CM66: Estimation of Tablet Numbers. | CN66: Estimation of Tablet Numbers. | CO66: Estimation of Tablet Numbers. | CP66: Estimation of Tablet Numbers. | CQ66: Estimation of Tablet Numbers. | CR66: Estimation of Tablet Numbers. | CS66: Estimation of Tablet Numbers. | CT66: Estimation of Tablet Numbers. | CU66: Estimation of Tablet Numbers. | CV66: Estimation of Tablet Numbers. | CW66: Estimation of Tablet Numbers. | CX66: Estimation of Tablet Numbers. | CY66: Estimation of Tablet Numbers. | CZ66: Estimation of Tablet Numbers. | DA66: Estimation of Tablet Numbers. | DB66: Estimation of Tablet Numbers. | DC66: Estimation of Tablet Numbers. | DD66: Estimation of Tablet Numbers. | DE66: Estimation of Tablet Numbers. | DF66: Estimation of Tablet Numbers. | DG66: Estimation of Tablet Numbers. | DH66: Estimation of Tablet Numbers. | DI66: Estimation of Tablet Numbers. | DJ66: Estimation of Tablet Numbers. | DK66: Estimation of Tablet Numbers. | DL66: Estimation of Tablet Numbers. | DM66: Estimation of Tablet Numbers. | DN66: Estimation of Tablet Numbers. | DO66: Estimation of Tablet Numbers. | DP66: Estimation of Tablet Numbers. | DQ66: Estimation of Tablet Numbers. | DR66: Estimation of Tablet Numbers. | DS66: Estimation of Tablet Numbers. | DT66: Estimation of Tablet Numbers. | DU66: Estimation of Tablet Numbers. | DV66: Estimation of Tablet Numbers. | DW66: Estimation of Tablet Numbers. | DX66: Estimation of Tablet Numbers. | DY66: Estimation of Tablet Numbers. | DZ66: Estimation of Tablet Numbers. | EA66: Estimation of Tablet Numbers. | EB66: Estimation of Tablet Numbers. | EC66: Estimation of Tablet Numbers. | ED66: Estimation of Tablet Numbers. | EE66: Estimation of Tablet Numbers. | EF66: Estimation of Tablet Numbers. | EG66: Estimation of Tablet Numbers. | EH66: Estimation of Tablet Numbers. | EI66: Estimation of Tablet Numbers. | EJ66: Estimation of Tablet Numbers. | EK66: Estimation of Tablet Numbers. | EL66: Estimation of Tablet Numbers. | EM66: Estimation of Tablet Numbers. | EN66: Estimation of Tablet Numbers. | EO66: Estimation of Tablet Numbers. | EP66: Estimation of Tablet Numbers. | EQ66: Estimation of Tablet Numbers. | ER66: Estimation of Tablet Numbers. | ES66: Estimation of Tablet Numbers. | ET66: Estimation of Tablet Numbers. | EU66: Estimation of Tablet Numbers. | EV66: Estimation of Tablet Numbers. | EW66: Estimation of Tablet Numbers. | EX66: Estimation of Tablet Numbers. | EY66: Estimation of Tablet Numbers. | EZ66: Estimation of Tablet Numbers. | FA66: Estimation of Tablet Numbers. | FB66: Estimation of Tablet Numbers. | FC66: Estimation of Tablet Numbers. | FD66: Estimation of Tablet Numbers. | FE66: Estimation of Tablet Numbers. | FF66: Estimation of Tablet Numbers. | FG66: Estimation of Tablet Numbers. | FH66: Estimation of Tablet Numbers. | FI66: Estimation of Tablet Numbers. | FJ66: Estimation of Tablet Numbers. | FK66: Estimation of Tablet Numbers. | FL66: Estimation of Tablet Numbers. | FM66: Estimation of Tablet Numbers. | FN66: Estimation of Tablet Numbers. | FO66: Estimation of Tablet Numbers. | FP66: Estimation of Tablet Numbers. | FQ66: Estimation of Tablet Numbers. | FR66: Estimation of Tablet Numbers. | FS66: Estimation of Tablet Numbers. | FT66: Estimation of Tablet Numbers. | FU66: Estimation of Tablet Numbers. | FV66: Estimation of Tablet Numbers. | FW66: Estimation of Tablet Numbers. | FX66: Estimation of Tablet Numbers. | FY66: Estimation of Tablet Numbers. | FZ66: Estimation of Tablet Numbers. | GA66: Estimation of Tablet Numbers. | GB66: Estimation of Tablet Numbers. | GC66: Estimation of Tablet Numbers. | GD66: Estimation of Tablet Numbers. | GE66: Estimation of Tablet Numbers. | GF66: Estimation of Tablet Numbers. | GG66: Estimation of Tablet Numbers. | GH66: Estimation of Tablet Numbers. | GI66: Estimation of Tablet Numbers. | GJ66: Estimation of Tablet Numbers. | GK66: Estimation of Tablet Numbers. | GL66: Estimation of Tablet Numbers. | GM66: Estimation of Tablet Numbers. | GN66: Estimation of Tablet Numbers. | GO66: Estimation of Tablet Numbers. | GP66: Estimation of Tablet Numbers. | GQ66: Estimation of Tablet Numbers. | GR66: Estimation of Tablet Numbers. | GS66: Estimation of Tablet Numbers. | GT66: Estimation of Tablet Numbers. | GU66: Estimation of Tablet Numbers. | GV66: Estimation of Tablet Numbers. | GW66: Estimation of Tablet Numbers. | GX66: Estimation of Tablet Numbers. | GY66: Estimation of Tablet Numbers. | GZ66: Estimation of Tablet Numbers. | HA66: Estimation of Tablet Numbers. | HB66: Estimation of Tablet Numbers. | HC66: Estimation of Tablet Numbers. | HD66: Estimation of Tablet Numbers. | HE66: Estimation of Tablet Numbers. | HF66: Estimation of Tablet Numbers. | HG66: Estimation of Tablet Numbers. | HH66: Estimation of Tablet Numbers. | HI66: Estimation of Tablet Numbers. | HJ66: Estimation of Tablet Numbers. | HK66: Estimation of Tablet Numbers. | HL66: Estimation of Tablet Numbers. | HM66: Estimation of Tablet Numbers. | HN66: Estimation of Tablet Numbers. | HO66: Estimation of Tablet Numbers. | HP66: Estimation of Tablet Numbers. | HQ66: Estimation of Tablet Numbers. | HR66: Estimation of Tablet Numbers. | HS66: Estimation of Tablet Numbers. | HT66: Estimation of Tablet Numbers. | HU66: Estimation of Tablet Numbers. | HV66: Estimation of Tablet Numbers. | HW66: Estimation of Tablet Numbers. | HX66: Estimation of Tablet Numbers. | HY66: Estimation of Tablet Numbers. | HZ66: Estimation of Tablet Numbers. | IA66: Estimation of Tablet Numbers. | IB66: Estimation of Tablet Numbers. | IC66: Estimation of Tablet Numbers. | ID66: Estimation of Tablet Numbers. | IE66: Estimation of Tablet Numbers. | IF66: Estimation of Tablet Numbers. | IG66: Estimation of Tablet Numbers. | IH66: Estimation of Tablet Numbers. | II66: Estimation of Tablet Numbers. | IJ66: Estimation of Tablet Numbers. | IK66: Estimation of Tablet Numbers. | IL66: Estimation of Tablet Numbers. | IM66: Estimation of Tablet Numbers. | IN66: Estimation of Tablet Numbers. | IO66: Estimation of Tablet Numbers. | IP66: Estimation of Tablet Numbers. | IQ66: Estimation of Tablet Numbers. | IR66: Estimation of Tablet Numbers. | IS66: Estimation of Tablet Numbers. | IT66: Estimation of Tablet Numbers. | IU66: Estimation of Tablet Numbers. | IV66: Estimation of Tablet Numbers.
B68: 1. Select the Estimation of Tablet tab. | C68: 1. Select the Estimation of Tablet tab. | D68: 1. Select the Estimation of Tablet tab. | E68: 1. Select the Estimation of Tablet tab. | F68: 1. Select the Estimation of Tablet tab. | G68: 1. Select the Estimation of Tablet tab. | H68: 1. Select the Estimation of Tablet tab. | I68: 1. Select the Estimation of Tablet tab. | J68: 1. Select the Estimation of Tablet tab. | K68: 1. Select the Estimation of Tablet tab. | L68: 1. Select the Estimation of Tablet tab. | M68: 1. Select the Estimation of Tablet tab. | N68: 1. Select the Estimation of Tablet tab. | O68: 1. Select the Estimation of Tablet tab. | P68: 1. Select the Estimation of Tablet tab. | Q68: 1. Select the Estimation of Tablet tab. | R68: 1. Select the Estimation of Tablet tab. | S68: 1. Select the Estimation of Tablet tab. | T68: 1. Select the Estimation of Tablet tab. | U68: 1. Select the Estimation of Tablet tab. | V68: 1. Select the Estimation of Tablet tab. | W68: 1. Select the Estimation of Tablet tab. | X68: 1. Select the Estimation of Tablet tab. | Y68: 1. Select the Estimation of Tablet tab. | Z68: 1. Select the Estimation of Tablet tab. | AA68: 1. Select the Estimation of Tablet tab. | AB68: 1. Select the Estimation of Tablet tab. | AC68: 1. Select the Estimation of Tablet tab. | AD68: 1. Select the Estimation of Tablet tab. | AE68: 1. Select the Estimation of Tablet tab. | AF68: 1. Select the Estimation of Tablet tab. | AG68: 1. Select the Estimation of Tablet tab. | AH68: 1. Select the Estimation of Tablet tab. | AI68: 1. Select the Estimation of Tablet tab. | AJ68: 1. Select the Estimation of Tablet tab. | AK68: 1. Select the Estimation of Tablet tab. | AL68: 1. Select the Estimation of Tablet tab. | AM68: 1. Select the Estimation of Tablet tab. | AN68: 1. Select the Estimation of Tablet tab. | AO68: 1. Select the Estimation of Tablet tab. | AP68: 1. Select the Estimation of Tablet tab. | AQ68: 1. Select the Estimation of Tablet tab. | AR68: 1. Select the Estimation of Tablet tab. | AS68: 1. Select the Estimation of Tablet tab. | AT68: 1. Select the Estimation of Tablet tab. | AU68: 1. Select the Estimation of Tablet tab. | AV68: 1. Select the Estimation of Tablet tab. | AW68: 1. Select the Estimation of Tablet tab. | AX68: 1. Select the Estimation of Tablet tab. | AY68: 1. Select the Estimation of Tablet tab. | AZ68: 1. Select the Estimation of Tablet tab. | BA68: 1. Select the Estimation of Tablet tab. | BB68: 1. Select the Estimation of Tablet tab. | BC68: 1. Select the Estimation of Tablet tab. | BD68: 1. Select the Estimation of Tablet tab. | BE68: 1. Select the Estimation of Tablet tab. | BF68: 1. Select the Estimation of Tablet tab. | BG68: 1. Select the Estimation of Tablet tab. | BH68: 1. Select the Estimation of Tablet tab. | BI68: 1. Select the Estimation of Tablet tab. | BJ68: 1. Select the Estimation of Tablet tab. | BK68: 1. Select the Estimation of Tablet tab. | BL68: 1. Select the Estimation of Tablet tab. | BM68: 1. Select the Estimation of Tablet tab. | BN68: 1. Select the Estimation of Tablet tab. | BO68: 1. Select the Estimation of Tablet tab. | BP68: 1. Select the Estimation of Tablet tab. | BQ68: 1. Select the Estimation of Tablet tab. | BR68: 1. Select the Estimation of Tablet tab. | BS68: 1. Select the Estimation of Tablet tab. | BT68: 1. Select the Estimation of Tablet tab. | BU68: 1. Select the Estimation of Tablet tab. | BV68: 1. Select the Estimation of Tablet tab. | BW68: 1. Select the Estimation of Tablet tab. | BX68: 1. Select the Estimation of Tablet tab. | BY68: 1. Select the Estimation of Tablet tab. | BZ68: 1. Select the Estimation of Tablet tab. | CA68: 1. Select the Estimation of Tablet tab. | CB68: 1. Select the Estimation of Tablet tab. | CC68: 1. Select the Estimation of Tablet tab. | CD68: 1. Select the Estimation of Tablet tab. | CE68: 1. Select the Estimation of Tablet tab. | CF68: 1. Select the Estimation of Tablet tab. | CG68: 1. Select the Estimation of Tablet tab. | CH68: 1. Select the Estimation of Tablet tab. | CI68: 1. Select the Estimation of Tablet tab. | CJ68: 1. Select the Estimation of Tablet tab. | CK68: 1. Select the Estimation of Tablet tab. | CL68: 1. Select the Estimation of Tablet tab. | CM68: 1. Select the Estimation of Tablet tab. | CN68: 1. Select the Estimation of Tablet tab. | CO68: 1. Select the Estimation of Tablet tab. | CP68: 1. Select the Estimation of Tablet tab. | CQ68: 1. Select the Estimation of Tablet tab. | CR68: 1. Select the Estimation of Tablet tab. | CS68: 1. Select the Estimation of Tablet tab. | CT68: 1. Select the Estimation of Tablet tab. | CU68: 1. Select the Estimation of Tablet tab. | CV68: 1. Select the Estimation of Tablet tab. | CW68: 1. Select the Estimation of Tablet tab. | CX68: 1. Select the Estimation of Tablet tab. | CY68: 1. Select the Estimation of Tablet tab. | CZ68: 1. Select the Estimation of Tablet tab. | DA68: 1. Select the Estimation of Tablet tab. | DB68: 1. Select the Estimation of Tablet tab. | DC68: 1. Select the Estimation of Tablet tab. | DD68: 1. Select the Estimation of Tablet tab. | DE68: 1. Select the Estimation of Tablet tab. | DF68: 1. Select the Estimation of Tablet tab. | DG68: 1. Select the Estimation of Tablet tab. | DH68: 1. Select the Estimation of Tablet tab. | DI68: 1. Select the Estimation of Tablet tab. | DJ68: 1. Select the Estimation of Tablet tab. | DK68: 1. Select the Estimation of Tablet tab. | DL68: 1. Select the Estimation of Tablet tab. | DM68: 1. Select the Estimation of Tablet tab. | DN68: 1. Select the Estimation of Tablet tab. | DO68: 1. Select the Estimation of Tablet tab. | DP68: 1. Select the Estimation of Tablet tab. | DQ68: 1. Select the Estimation of Tablet tab. | DR68: 1. Select the Estimation of Tablet tab. | DS68: 1. Select the Estimation of Tablet tab. | DT68: 1. Select the Estimation of Tablet tab. | DU68: 1. Select the Estimation of Tablet tab. | DV68: 1. Select the Estimation of Tablet tab. | DW68: 1. Select the Estimation of Tablet tab. | DX68: 1. Select the Estimation of Tablet tab. | DY68: 1. Select the Estimation of Tablet tab. | DZ68: 1. Select the Estimation of Tablet tab. | EA68: 1. Select the Estimation of Tablet tab. | EB68: 1. Select the Estimation of Tablet tab. | EC68: 1. Select the Estimation of Tablet tab. | ED68: 1. Select the Estimation of Tablet tab. | EE68: 1. Select the Estimation of Tablet tab. | EF68: 1. Select the Estimation of Tablet tab. | EG68: 1. Select the Estimation of Tablet tab. | EH68: 1. Select the Estimation of Tablet tab. | EI68: 1. Select the Estimation of Tablet tab. | EJ68: 1. Select the Estimation of Tablet tab. | EK68: 1. Select the Estimation of Tablet tab. | EL68: 1. Select the Estimation of Tablet tab. | EM68: 1. Select the Estimation of Tablet tab. | EN68: 1. Select the Estimation of Tablet tab. | EO68: 1. Select the Estimation of Tablet tab. | EP68: 1. Select the Estimation of Tablet tab. | EQ68: 1. Select the Estimation of Tablet tab. | ER68: 1. Select the Estimation of Tablet tab. | ES68: 1. Select the Estimation of Tablet tab. | ET68: 1. Select the Estimation of Tablet tab. | EU68: 1. Select the Estimation of Tablet tab. | EV68: 1. Select the Estimation of Tablet tab. | EW68: 1. Select the Estimation of Tablet tab. | EX68: 1. Select the Estimation of Tablet tab. | EY68: 1. Select the Estimation of Tablet tab. | EZ68: 1. Select the Estimation of Tablet tab. | FA68: 1. Select the Estimation of Tablet tab. | FB68: 1. Select the Estimation of Tablet tab. | FC68: 1. Select the Estimation of Tablet tab. | FD68: 1. Select the Estimation of Tablet tab. | FE68: 1. Select the Estimation of Tablet tab. | FF68: 1. Select the Estimation of Tablet tab. | FG68: 1. Select the Estimation of Tablet tab. | FH68: 1. Select the Estimation of Tablet tab. | FI68: 1. Select the Estimation of Tablet tab. | FJ68: 1. Select the Estimation of Tablet tab. | FK68: 1. Select the Estimation of Tablet tab. | FL68: 1. Select the Estimation of Tablet tab. | FM68: 1. Select the Estimation of Tablet tab. | FN68: 1. Select the Estimation of Tablet tab. | FO68: 1. Select the Estimation of Tablet tab. | FP68: 1. Select the Estimation of Tablet tab. | FQ68: 1. Select the Estimation of Tablet tab. | FR68: 1. Select the Estimation of Tablet tab. | FS68: 1. Select the Estimation of Tablet tab. | FT68: 1. Select the Estimation of Tablet tab. | FU68: 1. Select the Estimation of Tablet tab. | FV68: 1. Select the Estimation of Tablet tab. | FW68: 1. Select the Estimation of Tablet tab. | FX68: 1. Select the Estimation of Tablet tab. | FY68: 1. Select the Estimation of Tablet tab. | FZ68: 1. Select the Estimation of Tablet tab. | GA68: 1. Select the Estimation of Tablet tab. | GB68: 1. Select the Estimation of Tablet tab. | GC68: 1. Select the Estimation of Tablet tab. | GD68: 1. Select the Estimation of Tablet tab. | GE68: 1. Select the Estimation of Tablet tab. | GF68: 1. Select the Estimation of Tablet tab. | GG68: 1. Select the Estimation of Tablet tab. | GH68: 1. Select the Estimation of Tablet tab. | GI68: 1. Select the Estimation of Tablet tab. | GJ68: 1. Select the Estimation of Tablet tab. | GK68: 1. Select the Estimation of Tablet tab. | GL68: 1. Select the Estimation of Tablet tab. | GM68: 1. Select the Estimation of Tablet tab. | GN68: 1. Select the Estimation of Tablet tab. | GO68: 1. Select the Estimation of Tablet tab. | GP68: 1. Select the Estimation of Tablet tab. | GQ68: 1. Select the Estimation of Tablet tab. | GR68: 1. Select the Estimation of Tablet tab. | GS68: 1. Select the Estimation of Tablet tab. | GT68: 1. Select the Estimation of Tablet tab. | GU68: 1. Select the Estimation of Tablet tab. | GV68: 1. Select the Estimation of Tablet tab. | GW68: 1. Select the Estimation of Tablet tab. | GX68: 1. Select the Estimation of Tablet tab. | GY68: 1. Select the Estimation of Tablet tab. | GZ68: 1. Select the Estimation of Tablet tab. | HA68: 1. Select the Estimation of Tablet tab. | HB68: 1. Select the Estimation of Tablet tab. | HC68: 1. Select the Estimation of Tablet tab. | HD68: 1. Select the Estimation of Tablet tab. | HE68: 1. Select the Estimation of Tablet tab. | HF68: 1. Select the Estimation of Tablet tab. | HG68: 1. Select the Estimation of Tablet tab. | HH68: 1. Select the Estimation of Tablet tab. | HI68: 1. Select the Estimation of Tablet tab. | HJ68: 1. Select the Estimation of Tablet tab. | HK68: 1. Select the Estimation of Tablet tab. | HL68: 1. Select the Estimation of Tablet tab. | HM68: 1. Select the Estimation of Tablet tab. | HN68: 1. Select the Estimation of Tablet tab. | HO68: 1. Select the Estimation of Tablet tab. | HP68: 1. Select the Estimation of Tablet tab. | HQ68: 1. Select the Estimation of Tablet tab. | HR68: 1. Select the Estimation of Tablet tab. | HS68: 1. Select the Estimation of Tablet tab. | HT68: 1. Select the Estimation of Tablet tab. | HU68: 1. Select the Estimation of Tablet tab. | HV68: 1. Select the Estimation of Tablet tab. | HW68: 1. Select the Estimation of Tablet tab. | HX68: 1. Select the Estimation of Tablet tab. | HY68: 1. Select the Estimation of Tablet tab. | HZ68: 1. Select the Estimation of Tablet tab. | IA68: 1. Select the Estimation of Tablet tab. | IB68: 1. Select the Estimation of Tablet tab. | IC68: 1. Select the Estimation of Tablet tab. | ID68: 1. Select the Estimation of Tablet tab. | IE68: 1. Select the Estimation of Tablet tab. | IF68: 1. Select the Estimation of Tablet tab. | IG68: 1. Select the Estimation of Tablet tab. | IH68: 1. Select the Estimation of Tablet tab. | II68: 1. Select the Estimation of Tablet tab. | IJ68: 1. Select the Estimation of Tablet tab. | IK68: 1. Select the Estimation of Tablet tab. | IL68: 1. Select the Estimation of Tablet tab. | IM68: 1. Select the Estimation of Tablet tab. | IN68: 1. Select the Estimation of Tablet tab. | IO68: 1. Select the Estimation of Tablet tab. | IP68: 1. Select the Estimation of Tablet tab. | IQ68: 1. Select the Estimation of Tablet tab. | IR68: 1. Select the Estimation of Tablet tab. | IS68: 1. Select the Estimation of Tablet tab. | IT68: 1. Select the Estimation of Tablet tab. | IU68: 1. Select the Estimation of Tablet tab. | IV68: 1. Select the Estimation of Tablet tab.
B69: 2. Enter the required values for steps 1 to 5. | C69: 2. Enter the required values for steps 1 to 5. | D69: 2. Enter the required values for steps 1 to 5. | E69: 2. Enter the required values for steps 1 to 5. | F69: 2. Enter the required values for steps 1 to 5. | G69: 2. Enter the required values for steps 1 to 5. | H69: 2. Enter the required values for steps 1 to 5. | I69: 2. Enter the required values for steps 1 to 5. | J69: 2. Enter the required values for steps 1 to 5. | K69: 2. Enter the required values for steps 1 to 5. | L69: 2. Enter the required values for steps 1 to 5. | M69: 2. Enter the required values for steps 1 to 5. | N69: 2. Enter the required values for steps 1 to 5. | O69: 2. Enter the required values for steps 1 to 5. | P69: 2. Enter the required values for steps 1 to 5. | Q69: 2. Enter the required values for steps 1 to 5. | R69: 2. Enter the required values for steps 1 to 5. | S69: 2. Enter the required values for steps 1 to 5. | T69: 2. Enter the required values for steps 1 to 5. | U69: 2. Enter the required values for steps 1 to 5. | V69: 2. Enter the required values for steps 1 to 5. | W69: 2. Enter the required values for steps 1 to 5. | X69: 2. Enter the required values for steps 1 to 5. | Y69: 2. Enter the required values for steps 1 to 5. | Z69: 2. Enter the required values for steps 1 to 5. | AA69: 2. Enter the required values for steps 1 to 5. | AB69: 2. Enter the required values for steps 1 to 5. | AC69: 2. Enter the required values for steps 1 to 5. | AD69: 2. Enter the required values for steps 1 to 5. | AE69: 2. Enter the required values for steps 1 to 5. | AF69: 2. Enter the required values for steps 1 to 5. | AG69: 2. Enter the required values for steps 1 to 5. | AH69: 2. Enter the required values for steps 1 to 5. | AI69: 2. Enter the required values for steps 1 to 5. | AJ69: 2. Enter the required values for steps 1 to 5. | AK69: 2. Enter the required values for steps 1 to 5. | AL69: 2. Enter the required values for steps 1 to 5. | AM69: 2. Enter the required values for steps 1 to 5. | AN69: 2. Enter the required values for steps 1 to 5. | AO69: 2. Enter the required values for steps 1 to 5. | AP69: 2. Enter the required values for steps 1 to 5. | AQ69: 2. Enter the required values for steps 1 to 5. | AR69: 2. Enter the required values for steps 1 to 5. | AS69: 2. Enter the required values for steps 1 to 5. | AT69: 2. Enter the required values for steps 1 to 5. | AU69: 2. Enter the required values for steps 1 to 5. | AV69: 2. Enter the required values for steps 1 to 5. | AW69: 2. Enter the required values for steps 1 to 5. | AX69: 2. Enter the required values for steps 1 to 5. | AY69: 2. Enter the required values for steps 1 to 5. | AZ69: 2. Enter the required values for steps 1 to 5. | BA69: 2. Enter the required values for steps 1 to 5. | BB69: 2. Enter the required values for steps 1 to 5. | BC69: 2. Enter the required values for steps 1 to 5. | BD69: 2. Enter the required values for steps 1 to 5. | BE69: 2. Enter the required values for steps 1 to 5. | BF69: 2. Enter the required values for steps 1 to 5. | BG69: 2. Enter the required values for steps 1 to 5. | BH69: 2. Enter the required values for steps 1 to 5. | BI69: 2. Enter the required values for steps 1 to 5. | BJ69: 2. Enter the required values for steps 1 to 5. | BK69: 2. Enter the required values for steps 1 to 5. | BL69: 2. Enter the required values for steps 1 to 5. | BM69: 2. Enter the required values for steps 1 to 5. | BN69: 2. Enter the required values for steps 1 to 5. | BO69: 2. Enter the required values for steps 1 to 5. | BP69: 2. Enter the required values for steps 1 to 5. | BQ69: 2. Enter the required values for steps 1 to 5. | BR69: 2. Enter the required values for steps 1 to 5. | BS69: 2. Enter the required values for steps 1 to 5. | BT69: 2. Enter the required values for steps 1 to 5. | BU69: 2. Enter the required values for steps 1 to 5. | BV69: 2. Enter the required values for steps 1 to 5. | BW69: 2. Enter the required values for steps 1 to 5. | BX69: 2. Enter the required values for steps 1 to 5. | BY69: 2. Enter the required values for steps 1 to 5. | BZ69: 2. Enter the required values for steps 1 to 5. | CA69: 2. Enter the required values for steps 1 to 5. | CB69: 2. Enter the required values for steps 1 to 5. | CC69: 2. Enter the required values for steps 1 to 5. | CD69: 2. Enter the required values for steps 1 to 5. | CE69: 2. Enter the required values for steps 1 to 5. | CF69: 2. Enter the required values for steps 1 to 5. | CG69: 2. Enter the required values for steps 1 to 5. | CH69: 2. Enter the required values for steps 1 to 5. | CI69: 2. Enter the required values for steps 1 to 5. | CJ69: 2. Enter the required values for steps 1 to 5. | CK69: 2. Enter the required values for steps 1 to 5. | CL69: 2. Enter the required values for steps 1 to 5. | CM69: 2. Enter the required values for steps 1 to 5. | CN69: 2. Enter the required values for steps 1 to 5. | CO69: 2. Enter the required values for steps 1 to 5. | CP69: 2. Enter the required values for steps 1 to 5. | CQ69: 2. Enter the required values for steps 1 to 5. | CR69: 2. Enter the required values for steps 1 to 5. | CS69: 2. Enter the required values for steps 1 to 5. | CT69: 2. Enter the required values for steps 1 to 5. | CU69: 2. Enter the required values for steps 1 to 5. | CV69: 2. Enter the required values for steps 1 to 5. | CW69: 2. Enter the required values for steps 1 to 5. | CX69: 2. Enter the required values for steps 1 to 5. | CY69: 2. Enter the required values for steps 1 to 5. | CZ69: 2. Enter the required values for steps 1 to 5. | DA69: 2. Enter the required values for steps 1 to 5. | DB69: 2. Enter the required values for steps 1 to 5. | DC69: 2. Enter the required values for steps 1 to 5. | DD69: 2. Enter the required values for steps 1 to 5. | DE69: 2. Enter the required values for steps 1 to 5. | DF69: 2. Enter the required values for steps 1 to 5. | DG69: 2. Enter the required values for steps 1 to 5. | DH69: 2. Enter the required values for steps 1 to 5. | DI69: 2. Enter the required values for steps 1 to 5. | DJ69: 2. Enter the required values for steps 1 to 5. | DK69: 2. Enter the required values for steps 1 to 5. | DL69: 2. Enter the required values for steps 1 to 5. | DM69: 2. Enter the required values for steps 1 to 5. | DN69: 2. Enter the required values for steps 1 to 5. | DO69: 2. Enter the required values for steps 1 to 5. | DP69: 2. Enter the required values for steps 1 to 5. | DQ69: 2. Enter the required values for steps 1 to 5. | DR69: 2. Enter the required values for steps 1 to 5. | DS69: 2. Enter the required values for steps 1 to 5. | DT69: 2. Enter the required values for steps 1 to 5. | DU69: 2. Enter the required values for steps 1 to 5. | DV69: 2. Enter the required values for steps 1 to 5. | DW69: 2. Enter the required values for steps 1 to 5. | DX69: 2. Enter the required values for steps 1 to 5. | DY69: 2. Enter the required values for steps 1 to 5. | DZ69: 2. Enter the required values for steps 1 to 5. | EA69: 2. Enter the required values for steps 1 to 5. | EB69: 2. Enter the required values for steps 1 to 5. | EC69: 2. Enter the required values for steps 1 to 5. | ED69: 2. Enter the required values for steps 1 to 5. | EE69: 2. Enter the required values for steps 1 to 5. | EF69: 2. Enter the required values for steps 1 to 5. | EG69: 2. Enter the required values for steps 1 to 5. | EH69: 2. Enter the required values for steps 1 to 5. | EI69: 2. Enter the required values for steps 1 to 5. | EJ69: 2. Enter the required values for steps 1 to 5. | EK69: 2. Enter the required values for steps 1 to 5. | EL69: 2. Enter the required values for steps 1 to 5. | EM69: 2. Enter the required values for steps 1 to 5. | EN69: 2. Enter the required values for steps 1 to 5. | EO69: 2. Enter the required values for steps 1 to 5. | EP69: 2. Enter the required values for steps 1 to 5. | EQ69: 2. Enter the required values for steps 1 to 5. | ER69: 2. Enter the required values for steps 1 to 5. | ES69: 2. Enter the required values for steps 1 to 5. | ET69: 2. Enter the required values for steps 1 to 5. | EU69: 2. Enter the required values for steps 1 to 5. | EV69: 2. Enter the required values for steps 1 to 5. | EW69: 2. Enter the required values for steps 1 to 5. | EX69: 2. Enter the required values for steps 1 to 5. | EY69: 2. Enter the required values for steps 1 to 5. | EZ69: 2. Enter the required values for steps 1 to 5. | FA69: 2. Enter the required values for steps 1 to 5. | FB69: 2. Enter the required values for steps 1 to 5. | FC69: 2. Enter the required values for steps 1 to 5. | FD69: 2. Enter the required values for steps 1 to 5. | FE69: 2. Enter the required values for steps 1 to 5. | FF69: 2. Enter the required values for steps 1 to 5. | FG69: 2. Enter the required values for steps 1 to 5. | FH69: 2. Enter the required values for steps 1 to 5. | FI69: 2. Enter the required values for steps 1 to 5. | FJ69: 2. Enter the required values for steps 1 to 5. | FK69: 2. Enter the required values for steps 1 to 5. | FL69: 2. Enter the required values for steps 1 to 5. | FM69: 2. Enter the required values for steps 1 to 5. | FN69: 2. Enter the required values for steps 1 to 5. | FO69: 2. Enter the required values for steps 1 to 5. | FP69: 2. Enter the required values for steps 1 to 5. | FQ69: 2. Enter the required values for steps 1 to 5. | FR69: 2. Enter the required values for steps 1 to 5. | FS69: 2. Enter the required values for steps 1 to 5. | FT69: 2. Enter the required values for steps 1 to 5. | FU69: 2. Enter the required values for steps 1 to 5. | FV69: 2. Enter the required values for steps 1 to 5. | FW69: 2. Enter the required values for steps 1 to 5. | FX69: 2. Enter the required values for steps 1 to 5. | FY69: 2. Enter the required values for steps 1 to 5. | FZ69: 2. Enter the required values for steps 1 to 5. | GA69: 2. Enter the required values for steps 1 to 5. | GB69: 2. Enter the required values for steps 1 to 5. | GC69: 2. Enter the required values for steps 1 to 5. | GD69: 2. Enter the required values for steps 1 to 5. | GE69: 2. Enter the required values for steps 1 to 5. | GF69: 2. Enter the required values for steps 1 to 5. | GG69: 2. Enter the required values for steps 1 to 5. | GH69: 2. Enter the required values for steps 1 to 5. | GI69: 2. Enter the required values for steps 1 to 5. | GJ69: 2. Enter the required values for steps 1 to 5. | GK69: 2. Enter the required values for steps 1 to 5. | GL69: 2. Enter the required values for steps 1 to 5. | GM69: 2. Enter the required values for steps 1 to 5. | GN69: 2. Enter the required values for steps 1 to 5. | GO69: 2. Enter the required values for steps 1 to 5. | GP69: 2. Enter the required values for steps 1 to 5. | GQ69: 2. Enter the required values for steps 1 to 5. | GR69: 2. Enter the required values for steps 1 to 5. | GS69: 2. Enter the required values for steps 1 to 5. | GT69: 2. Enter the required values for steps 1 to 5. | GU69: 2. Enter the required values for steps 1 to 5. | GV69: 2. Enter the required values for steps 1 to 5. | GW69: 2. Enter the required values for steps 1 to 5. | GX69: 2. Enter the required values for steps 1 to 5. | GY69: 2. Enter the required values for steps 1 to 5. | GZ69: 2. Enter the required values for steps 1 to 5. | HA69: 2. Enter the required values for steps 1 to 5. | HB69: 2. Enter the required values for steps 1 to 5. | HC69: 2. Enter the required values for steps 1 to 5. | HD69: 2. Enter the required values for steps 1 to 5. | HE69: 2. Enter the required values for steps 1 to 5. | HF69: 2. Enter the required values for steps 1 to 5. | HG69: 2. Enter the required values for steps 1 to 5. | HH69: 2. Enter the required values for steps 1 to 5. | HI69: 2. Enter the required values for steps 1 to 5. | HJ69: 2. Enter the required values for steps 1 to 5. | HK69: 2. Enter the required values for steps 1 to 5. | HL69: 2. Enter the required values for steps 1 to 5. | HM69: 2. Enter the required values for steps 1 to 5. | HN69: 2. Enter the required values for steps 1 to 5. | HO69: 2. Enter the required values for steps 1 to 5. | HP69: 2. Enter the required values for steps 1 to 5. | HQ69: 2. Enter the required values for steps 1 to 5. | HR69: 2. Enter the required values for steps 1 to 5. | HS69: 2. Enter the required values for steps 1 to 5. | HT69: 2. Enter the required values for steps 1 to 5. | HU69: 2. Enter the required values for steps 1 to 5. | HV69: 2. Enter the required values for steps 1 to 5. | HW69: 2. Enter the required values for steps 1 to 5. | HX69: 2. Enter the required values for steps 1 to 5. | HY69: 2. Enter the required values for steps 1 to 5. | HZ69: 2. Enter the required values for steps 1 to 5. | IA69: 2. Enter the required values for steps 1 to 5. | IB69: 2. Enter the required values for steps 1 to 5. | IC69: 2. Enter the required values for steps 1 to 5. | ID69: 2. Enter the required values for steps 1 to 5. | IE69: 2. Enter the required values for steps 1 to 5. | IF69: 2. Enter the required values for steps 1 to 5. | IG69: 2. Enter the required values for steps 1 to 5. | IH69: 2. Enter the required values for steps 1 to 5. | II69: 2. Enter the required values for steps 1 to 5. | IJ69: 2. Enter the required values for steps 1 to 5. | IK69: 2. Enter the required values for steps 1 to 5. | IL69: 2. Enter the required values for steps 1 to 5. | IM69: 2. Enter the required values for steps 1 to 5. | IN69: 2. Enter the required values for steps 1 to 5. | IO69: 2. Enter the required values for steps 1 to 5. | IP69: 2. Enter the required values for steps 1 to 5. | IQ69: 2. Enter the required values for steps 1 to 5. | IR69: 2. Enter the required values for steps 1 to 5. | IS69: 2. Enter the required values for steps 1 to 5. | IT69: 2. Enter the required values for steps 1 to 5. | IU69: 2. Enter the required values for steps 1 to 5. | IV69: 2. Enter the required values for steps 1 to 5.
B70: 3. The estimated number of tablets is given in cells B12: D12 | C70: 3. The estimated number of tablets is given in cells B12: D12 | D70: 3. The estimated number of tablets is given in cells B12: D12 | E70: 3. The estimated number of tablets is given in cells B12: D12 | F70: 3. The estimated number of tablets is given in cells B12: D12 | G70: 3. The estimated number of tablets is given in cells B12: D12 | H70: 3. The estimated number of tablets is given in cells B12: D12 | I70: 3. The estimated number of tablets is given in cells B12: D12 | J70: 3. The estimated number of tablets is given in cells B12: D12 | K70: 3. The estimated number of tablets is given in cells B12: D12 | L70: 3. The estimated number of tablets is given in cells B12: D12 | M70: 3. The estimated number of tablets is given in cells B12: D12 | N70: 3. The estimated number of tablets is given in cells B12: D12 | O70: 3. The estimated number of tablets is given in cells B12: D12 | P70: 3. The estimated number of tablets is given in cells B12: D12 | Q70: 3. The estimated number of tablets is given in cells B12: D12 | R70: 3. The estimated number of tablets is given in cells B12: D12 | S70: 3. The estimated number of tablets is given in cells B12: D12 | T70: 3. The estimated number of tablets is given in cells B12: D12 | U70: 3. The estimated number of tablets is given in cells B12: D12 | V70: 3. The estimated number of tablets is given in cells B12: D12 | W70: 3. The estimated number of tablets is given in cells B12: D12 | X70: 3. The estimated number of tablets is given in cells B12: D12 | Y70: 3. The estimated number of tablets is given in cells B12: D12 | Z70: 3. The estimated number of tablets is given in cells B12: D12 | AA70: 3. The estimated number of tablets is given in cells B12: D12 | AB70: 3. The estimated number of tablets is given in cells B12: D12 | AC70: 3. The estimated number of tablets is given in cells B12: D12 | AD70: 3. The estimated number of tablets is given in cells B12: D12 | AE70: 3. The estimated number of tablets is given in cells B12: D12 | AF70: 3. The estimated number of tablets is given in cells B12: D12 | AG70: 3. The estimated number of tablets is given in cells B12: D12 | AH70: 3. The estimated number of tablets is given in cells B12: D12 | AI70: 3. The estimated number of tablets is given in cells B12: D12 | AJ70: 3. The estimated number of tablets is given in cells B12: D12 | AK70: 3. The estimated number of tablets is given in cells B12: D12 | AL70: 3. The estimated number of tablets is given in cells B12: D12 | AM70: 3. The estimated number of tablets is given in cells B12: D12 | AN70: 3. The estimated number of tablets is given in cells B12: D12 | AO70: 3. The estimated number of tablets is given in cells B12: D12 | AP70: 3. The estimated number of tablets is given in cells B12: D12 | AQ70: 3. The estimated number of tablets is given in cells B12: D12 | AR70: 3. The estimated number of tablets is given in cells B12: D12 | AS70: 3. The estimated number of tablets is given in cells B12: D12 | AT70: 3. The estimated number of tablets is given in cells B12: D12 | AU70: 3. The estimated number of tablets is given in cells B12: D12 | AV70: 3. The estimated number of tablets is given in cells B12: D12 | AW70: 3. The estimated number of tablets is given in cells B12: D12 | AX70: 3. The estimated number of tablets is given in cells B12: D12 | AY70: 3. The estimated number of tablets is given in cells B12: D12 | AZ70: 3. The estimated number of tablets is given in cells B12: D12 | BA70: 3. The estimated number of tablets is given in cells B12: D12 | BB70: 3. The estimated number of tablets is given in cells B12: D12 | BC70: 3. The estimated number of tablets is given in cells B12: D12 | BD70: 3. The estimated number of tablets is given in cells B12: D12 | BE70: 3. The estimated number of tablets is given in cells B12: D12 | BF70: 3. The estimated number of tablets is given in cells B12: D12 | BG70: 3. The estimated number of tablets is given in cells B12: D12 | BH70: 3. The estimated number of tablets is given in cells B12: D12 | BI70: 3. The estimated number of tablets is given in cells B12: D12 | BJ70: 3. The estimated number of tablets is given in cells B12: D12 | BK70: 3. The estimated number of tablets is given in cells B12: D12 | BL70: 3. The estimated number of tablets is given in cells B12: D12 | BM70: 3. The estimated number of tablets is given in cells B12: D12 | BN70: 3. The estimated number of tablets is given in cells B12: D12 | BO70: 3. The estimated number of tablets is given in cells B12: D12 | BP70: 3. The estimated number of tablets is given in cells B12: D12 | BQ70: 3. The estimated number of tablets is given in cells B12: D12 | BR70: 3. The estimated number of tablets is given in cells B12: D12 | BS70: 3. The estimated number of tablets is given in cells B12: D12 | BT70: 3. The estimated number of tablets is given in cells B12: D12 | BU70: 3. The estimated number of tablets is given in cells B12: D12 | BV70: 3. The estimated number of tablets is given in cells B12: D12 | BW70: 3. The estimated number of tablets is given in cells B12: D12 | BX70: 3. The estimated number of tablets is given in cells B12: D12 | BY70: 3. The estimated number of tablets is given in cells B12: D12 | BZ70: 3. The estimated number of tablets is given in cells B12: D12 | CA70: 3. The estimated number of tablets is given in cells B12: D12 | CB70: 3. The estimated number of tablets is given in cells B12: D12 | CC70: 3. The estimated number of tablets is given in cells B12: D12 | CD70: 3. The estimated number of tablets is given in cells B12: D12 | CE70: 3. The estimated number of tablets is given in cells B12: D12 | CF70: 3. The estimated number of tablets is given in cells B12: D12 | CG70: 3. The estimated number of tablets is given in cells B12: D12 | CH70: 3. The estimated number of tablets is given in cells B12: D12 | CI70: 3. The estimated number of tablets is given in cells B12: D12 | CJ70: 3. The estimated number of tablets is given in cells B12: D12 | CK70: 3. The estimated number of tablets is given in cells B12: D12 | CL70: 3. The estimated number of tablets is given in cells B12: D12 | CM70: 3. The estimated number of tablets is given in cells B12: D12 | CN70: 3. The estimated number of tablets is given in cells B12: D12 | CO70: 3. The estimated number of tablets is given in cells B12: D12 | CP70: 3. The estimated number of tablets is given in cells B12: D12 | CQ70: 3. The estimated number of tablets is given in cells B12: D12 | CR70: 3. The estimated number of tablets is given in cells B12: D12 | CS70: 3. The estimated number of tablets is given in cells B12: D12 | CT70: 3. The estimated number of tablets is given in cells B12: D12 | CU70: 3. The estimated number of tablets is given in cells B12: D12 | CV70: 3. The estimated number of tablets is given in cells B12: D12 | CW70: 3. The estimated number of tablets is given in cells B12: D12 | CX70: 3. The estimated number of tablets is given in cells B12: D12 | CY70: 3. The estimated number of tablets is given in cells B12: D12 | CZ70: 3. The estimated number of tablets is given in cells B12: D12 | DA70: 3. The estimated number of tablets is given in cells B12: D12 | DB70: 3. The estimated number of tablets is given in cells B12: D12 | DC70: 3. The estimated number of tablets is given in cells B12: D12 | DD70: 3. The estimated number of tablets is given in cells B12: D12 | DE70: 3. The estimated number of tablets is given in cells B12: D12 | DF70: 3. The estimated number of tablets is given in cells B12: D12 | DG70: 3. The estimated number of tablets is given in cells B12: D12 | DH70: 3. The estimated number of tablets is given in cells B12: D12 | DI70: 3. The estimated number of tablets is given in cells B12: D12 | DJ70: 3. The estimated number of tablets is given in cells B12: D12 | DK70: 3. The estimated number of tablets is given in cells B12: D12 | DL70: 3. The estimated number of tablets is given in cells B12: D12 | DM70: 3. The estimated number of tablets is given in cells B12: D12 | DN70: 3. The estimated number of tablets is given in cells B12: D12 | DO70: 3. The estimated number of tablets is given in cells B12: D12 | DP70: 3. The estimated number of tablets is given in cells B12: D12 | DQ70: 3. The estimated number of tablets is given in cells B12: D12 | DR70: 3. The estimated number of tablets is given in cells B12: D12 | DS70: 3. The estimated number of tablets is given in cells B12: D12 | DT70: 3. The estimated number of tablets is given in cells B12: D12 | DU70: 3. The estimated number of tablets is given in cells B12: D12 | DV70: 3. The estimated number of tablets is given in cells B12: D12 | DW70: 3. The estimated number of tablets is given in cells B12: D12 | DX70: 3. The estimated number of tablets is given in cells B12: D12 | DY70: 3. The estimated number of tablets is given in cells B12: D12 | DZ70: 3. The estimated number of tablets is given in cells B12: D12 | EA70: 3. The estimated number of tablets is given in cells B12: D12 | EB70: 3. The estimated number of tablets is given in cells B12: D12 | EC70: 3. The estimated number of tablets is given in cells B12: D12 | ED70: 3. The estimated number of tablets is given in cells B12: D12 | EE70: 3. The estimated number of tablets is given in cells B12: D12 | EF70: 3. The estimated number of tablets is given in cells B12: D12 | EG70: 3. The estimated number of tablets is given in cells B12: D12 | EH70: 3. The estimated number of tablets is given in cells B12: D12 | EI70: 3. The estimated number of tablets is given in cells B12: D12 | EJ70: 3. The estimated number of tablets is given in cells B12: D12 | EK70: 3. The estimated number of tablets is given in cells B12: D12 | EL70: 3. The estimated number of tablets is given in cells B12: D12 | EM70: 3. The estimated number of tablets is given in cells B12: D12 | EN70: 3. The estimated number of tablets is given in cells B12: D12 | EO70: 3. The estimated number of tablets is given in cells B12: D12 | EP70: 3. The estimated number of tablets is given in cells B12: D12 | EQ70: 3. The estimated number of tablets is given in cells B12: D12 | ER70: 3. The estimated number of tablets is given in cells B12: D12 | ES70: 3. The estimated number of tablets is given in cells B12: D12 | ET70: 3. The estimated number of tablets is given in cells B12: D12 | EU70: 3. The estimated number of tablets is given in cells B12: D12 | EV70: 3. The estimated number of tablets is given in cells B12: D12 | EW70: 3. The estimated number of tablets is given in cells B12: D12 | EX70: 3. The estimated number of tablets is given in cells B12: D12 | EY70: 3. The estimated number of tablets is given in cells B12: D12 | EZ70: 3. The estimated number of tablets is given in cells B12: D12 | FA70: 3. The estimated number of tablets is given in cells B12: D12 | FB70: 3. The estimated number of tablets is given in cells B12: D12 | FC70: 3. The estimated number of tablets is given in cells B12: D12 | FD70: 3. The estimated number of tablets is given in cells B12: D12 | FE70: 3. The estimated number of tablets is given in cells B12: D12 | FF70: 3. The estimated number of tablets is given in cells B12: D12 | FG70: 3. The estimated number of tablets is given in cells B12: D12 | FH70: 3. The estimated number of tablets is given in cells B12: D12 | FI70: 3. The estimated number of tablets is given in cells B12: D12 | FJ70: 3. The estimated number of tablets is given in cells B12: D12 | FK70: 3. The estimated number of tablets is given in cells B12: D12 | FL70: 3. The estimated number of tablets is given in cells B12: D12 | FM70: 3. The estimated number of tablets is given in cells B12: D12 | FN70: 3. The estimated number of tablets is given in cells B12: D12 | FO70: 3. The estimated number of tablets is given in cells B12: D12 | FP70: 3. The estimated number of tablets is given in cells B12: D12 | FQ70: 3. The estimated number of tablets is given in cells B12: D12 | FR70: 3. The estimated number of tablets is given in cells B12: D12 | FS70: 3. The estimated number of tablets is given in cells B12: D12 | FT70: 3. The estimated number of tablets is given in cells B12: D12 | FU70: 3. The estimated number of tablets is given in cells B12: D12 | FV70: 3. The estimated number of tablets is given in cells B12: D12 | FW70: 3. The estimated number of tablets is given in cells B12: D12 | FX70: 3. The estimated number of tablets is given in cells B12: D12 | FY70: 3. The estimated number of tablets is given in cells B12: D12 | FZ70: 3. The estimated number of tablets is given in cells B12: D12 | GA70: 3. The estimated number of tablets is given in cells B12: D12 | GB70: 3. The estimated number of tablets is given in cells B12: D12 | GC70: 3. The estimated number of tablets is given in cells B12: D12 | GD70: 3. The estimated number of tablets is given in cells B12: D12 | GE70: 3. The estimated number of tablets is given in cells B12: D12 | GF70: 3. The estimated number of tablets is given in cells B12: D12 | GG70: 3. The estimated number of tablets is given in cells B12: D12 | GH70: 3. The estimated number of tablets is given in cells B12: D12 | GI70: 3. The estimated number of tablets is given in cells B12: D12 | GJ70: 3. The estimated number of tablets is given in cells B12: D12 | GK70: 3. The estimated number of tablets is given in cells B12: D12 | GL70: 3. The estimated number of tablets is given in cells B12: D12 | GM70: 3. The estimated number of tablets is given in cells B12: D12 | GN70: 3. The estimated number of tablets is given in cells B12: D12 | GO70: 3. The estimated number of tablets is given in cells B12: D12 | GP70: 3. The estimated number of tablets is given in cells B12: D12 | GQ70: 3. The estimated number of tablets is given in cells B12: D12 | GR70: 3. The estimated number of tablets is given in cells B12: D12 | GS70: 3. The estimated number of tablets is given in cells B12: D12 | GT70: 3. The estimated number of tablets is given in cells B12: D12 | GU70: 3. The estimated number of tablets is given in cells B12: D12 | GV70: 3. The estimated number of tablets is given in cells B12: D12 | GW70: 3. The estimated number of tablets is given in cells B12: D12 | GX70: 3. The estimated number of tablets is given in cells B12: D12 | GY70: 3. The estimated number of tablets is given in cells B12: D12 | GZ70: 3. The estimated number of tablets is given in cells B12: D12 | HA70: 3. The estimated number of tablets is given in cells B12: D12 | HB70: 3. The estimated number of tablets is given in cells B12: D12 | HC70: 3. The estimated number of tablets is given in cells B12: D12 | HD70: 3. The estimated number of tablets is given in cells B12: D12 | HE70: 3. The estimated number of tablets is given in cells B12: D12 | HF70: 3. The estimated number of tablets is given in cells B12: D12 | HG70: 3. The estimated number of tablets is given in cells B12: D12 | HH70: 3. The estimated number of tablets is given in cells B12: D12 | HI70: 3. The estimated number of tablets is given in cells B12: D12 | HJ70: 3. The estimated number of tablets is given in cells B12: D12 | HK70: 3. The estimated number of tablets is given in cells B12: D12 | HL70: 3. The estimated number of tablets is given in cells B12: D12 | HM70: 3. The estimated number of tablets is given in cells B12: D12 | HN70: 3. The estimated number of tablets is given in cells B12: D12 | HO70: 3. The estimated number of tablets is given in cells B12: D12 | HP70: 3. The estimated number of tablets is given in cells B12: D12 | HQ70: 3. The estimated number of tablets is given in cells B12: D12 | HR70: 3. The estimated number of tablets is given in cells B12: D12 | HS70: 3. The estimated number of tablets is given in cells B12: D12 | HT70: 3. The estimated number of tablets is given in cells B12: D12 | HU70: 3. The estimated number of tablets is given in cells B12: D12 | HV70: 3. The estimated number of tablets is given in cells B12: D12 | HW70: 3. The estimated number of tablets is given in cells B12: D12 | HX70: 3. The estimated number of tablets is given in cells B12: D12 | HY70: 3. The estimated number of tablets is given in cells B12: D12 | HZ70: 3. The estimated number of tablets is given in cells B12: D12 | IA70: 3. The estimated number of tablets is given in cells B12: D12 | IB70: 3. The estimated number of tablets is given in cells B12: D12 | IC70: 3. The estimated number of tablets is given in cells B12: D12 | ID70: 3. The estimated number of tablets is given in cells B12: D12 | IE70: 3. The estimated number of tablets is given in cells B12: D12 | IF70: 3. The estimated number of tablets is given in cells B12: D12 | IG70: 3. The estimated number of tablets is given in cells B12: D12 | IH70: 3. The estimated number of tablets is given in cells B12: D12 | II70: 3. The estimated number of tablets is given in cells B12: D12 | IJ70: 3. The estimated number of tablets is given in cells B12: D12 | IK70: 3. The estimated number of tablets is given in cells B12: D12 | IL70: 3. The estimated number of tablets is given in cells B12: D12 | IM70: 3. The estimated number of tablets is given in cells B12: D12 | IN70: 3. The estimated number of tablets is given in cells B12: D12 | IO70: 3. The estimated number of tablets is given in cells B12: D12 | IP70: 3. The estimated number of tablets is given in cells B12: D12 | IQ70: 3. The estimated number of tablets is given in cells B12: D12 | IR70: 3. The estimated number of tablets is given in cells B12: D12 | IS70: 3. The estimated number of tablets is given in cells B12: D12 | IT70: 3. The estimated number of tablets is given in cells B12: D12 | IU70: 3. The estimated number of tablets is given in cells B12: D12 | IV70: 3. The estimated number of tablets is given in cells B12: D12
B72: The confidence interval is calculated as follows: | C72: The confidence interval is calculated as follows: | D72: The confidence interval is calculated as follows: | E72: The confidence interval is calculated as follows: | F72: The confidence interval is calculated as follows: | G72: The confidence interval is calculated as follows: | H72: The confidence interval is calculated as follows: | I72: The confidence interval is calculated as follows: | J72: The confidence interval is calculated as follows: | K72: The confidence interval is calculated as follows: | L72: The confidence interval is calculated as follows: | M72: The confidence interval is calculated as follows: | N72: The confidence interval is calculated as follows: | O72: The confidence interval is calculated as follows: | P72: The confidence interval is calculated as follows: | Q72: The confidence interval is calculated as follows: | R72: The confidence interval is calculated as follows: | S72: The confidence interval is calculated as follows: | T72: The confidence interval is calculated as follows: | U72: The confidence interval is calculated as follows: | V72: The confidence interval is calculated as follows: | W72: The confidence interval is calculated as follows: | X72: The confidence interval is calculated as follows: | Y72: The confidence interval is calculated as follows: | Z72: The confidence interval is calculated as follows: | AA72: The confidence interval is calculated as follows: | AB72: The confidence interval is calculated as follows: | AC72: The confidence interval is calculated as follows: | AD72: The confidence interval is calculated as follows: | AE72: The confidence interval is calculated as follows: | AF72: The confidence interval is calculated as follows: | AG72: The confidence interval is calculated as follows: | AH72: The confidence interval is calculated as follows: | AI72: The confidence interval is calculated as follows: | AJ72: The confidence interval is calculated as follows: | AK72: The confidence interval is calculated as follows: | AL72: The confidence interval is calculated as follows: | AM72: The confidence interval is calculated as follows: | AN72: The confidence interval is calculated as follows: | AO72: The confidence interval is calculated as follows: | AP72: The confidence interval is calculated as follows: | AQ72: The confidence interval is calculated as follows: | AR72: The confidence interval is calculated as follows: | AS72: The confidence interval is calculated as follows: | AT72: The confidence interval is calculated as follows: | AU72: The confidence interval is calculated as follows: | AV72: The confidence interval is calculated as follows: | AW72: The confidence interval is calculated as follows: | AX72: The confidence interval is calculated as follows: | AY72: The confidence interval is calculated as follows: | AZ72: The confidence interval is calculated as follows: | BA72: The confidence interval is calculated as follows: | BB72: The confidence interval is calculated as follows: | BC72: The confidence interval is calculated as follows: | BD72: The confidence interval is calculated as follows: | BE72: The confidence interval is calculated as follows: | BF72: The confidence interval is calculated as follows: | BG72: The confidence interval is calculated as follows: | BH72: The confidence interval is calculated as follows: | BI72: The confidence interval is calculated as follows: | BJ72: The confidence interval is calculated as follows: | BK72: The confidence interval is calculated as follows: | BL72: The confidence interval is calculated as follows: | BM72: The confidence interval is calculated as follows: | BN72: The confidence interval is calculated as follows: | BO72: The confidence interval is calculated as follows: | BP72: The confidence interval is calculated as follows: | BQ72: The confidence interval is calculated as follows: | BR72: The confidence interval is calculated as follows: | BS72: The confidence interval is calculated as follows: | BT72: The confidence interval is calculated as follows: | BU72: The confidence interval is calculated as follows: | BV72: The confidence interval is calculated as follows: | BW72: The confidence interval is calculated as follows: | BX72: The confidence interval is calculated as follows: | BY72: The confidence interval is calculated as follows: | BZ72: The confidence interval is calculated as follows: | CA72: The confidence interval is calculated as follows: | CB72: The confidence interval is calculated as follows: | CC72: The confidence interval is calculated as follows: | CD72: The confidence interval is calculated as follows: | CE72: The confidence interval is calculated as follows: | CF72: The confidence interval is calculated as follows: | CG72: The confidence interval is calculated as follows: | CH72: The confidence interval is calculated as follows: | CI72: The confidence interval is calculated as follows: | CJ72: The confidence interval is calculated as follows: | CK72: The confidence interval is calculated as follows: | CL72: The confidence interval is calculated as follows: | CM72: The confidence interval is calculated as follows: | CN72: The confidence interval is calculated as follows: | CO72: The confidence interval is calculated as follows: | CP72: The confidence interval is calculated as follows: | CQ72: The confidence interval is calculated as follows: | CR72: The confidence interval is calculated as follows: | CS72: The confidence interval is calculated as follows: | CT72: The confidence interval is calculated as follows: | CU72: The confidence interval is calculated as follows: | CV72: The confidence interval is calculated as follows: | CW72: The confidence interval is calculated as follows: | CX72: The confidence interval is calculated as follows: | CY72: The confidence interval is calculated as follows: | CZ72: The confidence interval is calculated as follows: | DA72: The confidence interval is calculated as follows: | DB72: The confidence interval is calculated as follows: | DC72: The confidence interval is calculated as follows: | DD72: The confidence interval is calculated as follows: | DE72: The confidence interval is calculated as follows: | DF72: The confidence interval is calculated as follows: | DG72: The confidence interval is calculated as follows: | DH72: The confidence interval is calculated as follows: | DI72: The confidence interval is calculated as follows: | DJ72: The confidence interval is calculated as follows: | DK72: The confidence interval is calculated as follows: | DL72: The confidence interval is calculated as follows: | DM72: The confidence interval is calculated as follows: | DN72: The confidence interval is calculated as follows: | DO72: The confidence interval is calculated as follows: | DP72: The confidence interval is calculated as follows: | DQ72: The confidence interval is calculated as follows: | DR72: The confidence interval is calculated as follows: | DS72: The confidence interval is calculated as follows: | DT72: The confidence interval is calculated as follows: | DU72: The confidence interval is calculated as follows: | DV72: The confidence interval is calculated as follows: | DW72: The confidence interval is calculated as follows: | DX72: The confidence interval is calculated as follows: | DY72: The confidence interval is calculated as follows: | DZ72: The confidence interval is calculated as follows: | EA72: The confidence interval is calculated as follows: | EB72: The confidence interval is calculated as follows: | EC72: The confidence interval is calculated as follows: | ED72: The confidence interval is calculated as follows: | EE72: The confidence interval is calculated as follows: | EF72: The confidence interval is calculated as follows: | EG72: The confidence interval is calculated as follows: | EH72: The confidence interval is calculated as follows: | EI72: The confidence interval is calculated as follows: | EJ72: The confidence interval is calculated as follows: | EK72: The confidence interval is calculated as follows: | EL72: The confidence interval is calculated as follows: | EM72: The confidence interval is calculated as follows: | EN72: The confidence interval is calculated as follows: | EO72: The confidence interval is calculated as follows: | EP72: The confidence interval is calculated as follows: | EQ72: The confidence interval is calculated as follows: | ER72: The confidence interval is calculated as follows: | ES72: The confidence interval is calculated as follows: | ET72: The confidence interval is calculated as follows: | EU72: The confidence interval is calculated as follows: | EV72: The confidence interval is calculated as follows: | EW72: The confidence interval is calculated as follows: | EX72: The confidence interval is calculated as follows: | EY72: The confidence interval is calculated as follows: | EZ72: The confidence interval is calculated as follows: | FA72: The confidence interval is calculated as follows: | FB72: The confidence interval is calculated as follows: | FC72: The confidence interval is calculated as follows: | FD72: The confidence interval is calculated as follows: | FE72: The confidence interval is calculated as follows: | FF72: The confidence interval is calculated as follows: | FG72: The confidence interval is calculated as follows: | FH72: The confidence interval is calculated as follows: | FI72: The confidence interval is calculated as follows: | FJ72: The confidence interval is calculated as follows: | FK72: The confidence interval is calculated as follows: | FL72: The confidence interval is calculated as follows: | FM72: The confidence interval is calculated as follows: | FN72: The confidence interval is calculated as follows: | FO72: The confidence interval is calculated as follows: | FP72: The confidence interval is calculated as follows: | FQ72: The confidence interval is calculated as follows: | FR72: The confidence interval is calculated as follows: | FS72: The confidence interval is calculated as follows: | FT72: The confidence interval is calculated as follows: | FU72: The confidence interval is calculated as follows: | FV72: The confidence interval is calculated as follows: | FW72: The confidence interval is calculated as follows: | FX72: The confidence interval is calculated as follows: | FY72: The confidence interval is calculated as follows: | FZ72: The confidence interval is calculated as follows: | GA72: The confidence interval is calculated as follows: | GB72: The confidence interval is calculated as follows: | GC72: The confidence interval is calculated as follows: | GD72: The confidence interval is calculated as follows: | GE72: The confidence interval is calculated as follows: | GF72: The confidence interval is calculated as follows: | GG72: The confidence interval is calculated as follows: | GH72: The confidence interval is calculated as follows: | GI72: The confidence interval is calculated as follows: | GJ72: The confidence interval is calculated as follows: | GK72: The confidence interval is calculated as follows: | GL72: The confidence interval is calculated as follows: | GM72: The confidence interval is calculated as follows: | GN72: The confidence interval is calculated as follows: | GO72: The confidence interval is calculated as follows: | GP72: The confidence interval is calculated as follows: | GQ72: The confidence interval is calculated as follows: | GR72: The confidence interval is calculated as follows: | GS72: The confidence interval is calculated as follows: | GT72: The confidence interval is calculated as follows: | GU72: The confidence interval is calculated as follows: | GV72: The confidence interval is calculated as follows: | GW72: The confidence interval is calculated as follows: | GX72: The confidence interval is calculated as follows: | GY72: The confidence interval is calculated as follows: | GZ72: The confidence interval is calculated as follows: | HA72: The confidence interval is calculated as follows: | HB72: The confidence interval is calculated as follows: | HC72: The confidence interval is calculated as follows: | HD72: The confidence interval is calculated as follows: | HE72: The confidence interval is calculated as follows: | HF72: The confidence interval is calculated as follows: | HG72: The confidence interval is calculated as follows: | HH72: The confidence interval is calculated as follows: | HI72: The confidence interval is calculated as follows: | HJ72: The confidence interval is calculated as follows: | HK72: The confidence interval is calculated as follows: | HL72: The confidence interval is calculated as follows: | HM72: The confidence interval is calculated as follows: | HN72: The confidence interval is calculated as follows: | HO72: The confidence interval is calculated as follows: | HP72: The confidence interval is calculated as follows: | HQ72: The confidence interval is calculated as follows: | HR72: The confidence interval is calculated as follows: | HS72: The confidence interval is calculated as follows: | HT72: The confidence interval is calculated as follows: | HU72: The confidence interval is calculated as follows: | HV72: The confidence interval is calculated as follows: | HW72: The confidence interval is calculated as follows: | HX72: The confidence interval is calculated as follows: | HY72: The confidence interval is calculated as follows: | HZ72: The confidence interval is calculated as follows: | IA72: The confidence interval is calculated as follows: | IB72: The confidence interval is calculated as follows: | IC72: The confidence interval is calculated as follows: | ID72: The confidence interval is calculated as follows: | IE72: The confidence interval is calculated as follows: | IF72: The confidence interval is calculated as follows: | IG72: The confidence interval is calculated as follows: | IH72: The confidence interval is calculated as follows: | II72: The confidence interval is calculated as follows: | IJ72: The confidence interval is calculated as follows: | IK72: The confidence interval is calculated as follows: | IL72: The confidence interval is calculated as follows: | IM72: The confidence interval is calculated as follows: | IN72: The confidence interval is calculated as follows: | IO72: The confidence interval is calculated as follows: | IP72: The confidence interval is calculated as follows: | IQ72: The confidence interval is calculated as follows: | IR72: The confidence interval is calculated as follows: | IS72: The confidence interval is calculated as follows: | IT72: The confidence interval is calculated as follows: | IU72: The confidence interval is calculated as follows: | IV72: The confidence interval is calculated as follows:
B74: C.I. = mean weight ± t*s/ √n | C74: C.I. = mean weight ± t*s/ √n | D74: C.I. = mean weight ± t*s/ √n | E74: C.I. = mean weight ± t*s/ √n | F74: C.I. = mean weight ± t*s/ √n | G74: C.I. = mean weight ± t*s/ √n | H74: C.I. = mean weight ± t*s/ √n | I74: C.I. = mean weight ± t*s/ √n | J74: C.I. = mean weight ± t*s/ √n | K74: C.I. = mean weight ± t*s/ √n | L74: C.I. = mean weight ± t*s/ √n | M74: C.I. = mean weight ± t*s/ √n | N74: C.I. = mean weight ± t*s/ √n | O74: C.I. = mean weight ± t*s/ √n | P74: C.I. = mean weight ± t*s/ √n | Q74: C.I. = mean weight ± t*s/ √n | R74: C.I. = mean weight ± t*s/ √n | S74: C.I. = mean weight ± t*s/ √n | T74: C.I. = mean weight ± t*s/ √n | U74: C.I. = mean weight ± t*s/ √n | V74: C.I. = mean weight ± t*s/ √n | W74: C.I. = mean weight ± t*s/ √n | X74: C.I. = mean weight ± t*s/ √n | Y74: C.I. = mean weight ± t*s/ √n | Z74: C.I. = mean weight ± t*s/ √n | AA74: C.I. = mean weight ± t*s/ √n | AB74: C.I. = mean weight ± t*s/ √n | AC74: C.I. = mean weight ± t*s/ √n | AD74: C.I. = mean weight ± t*s/ √n | AE74: C.I. = mean weight ± t*s/ √n | AF74: C.I. = mean weight ± t*s/ √n | AG74: C.I. = mean weight ± t*s/ √n | AH74: C.I. = mean weight ± t*s/ √n | AI74: C.I. = mean weight ± t*s/ √n | AJ74: C.I. = mean weight ± t*s/ √n | AK74: C.I. = mean weight ± t*s/ √n | AL74: C.I. = mean weight ± t*s/ √n | AM74: C.I. = mean weight ± t*s/ √n | AN74: C.I. = mean weight ± t*s/ √n | AO74: C.I. = mean weight ± t*s/ √n | AP74: C.I. = mean weight ± t*s/ √n | AQ74: C.I. = mean weight ± t*s/ √n | AR74: C.I. = mean weight ± t*s/ √n | AS74: C.I. = mean weight ± t*s/ √n | AT74: C.I. = mean weight ± t*s/ √n | AU74: C.I. = mean weight ± t*s/ √n | AV74: C.I. = mean weight ± t*s/ √n | AW74: C.I. = mean weight ± t*s/ √n | AX74: C.I. = mean weight ± t*s/ √n | AY74: C.I. = mean weight ± t*s/ √n | AZ74: C.I. = mean weight ± t*s/ √n | BA74: C.I. = mean weight ± t*s/ √n | BB74: C.I. = mean weight ± t*s/ √n | BC74: C.I. = mean weight ± t*s/ √n | BD74: C.I. = mean weight ± t*s/ √n | BE74: C.I. = mean weight ± t*s/ √n | BF74: C.I. = mean weight ± t*s/ √n | BG74: C.I. = mean weight ± t*s/ √n | BH74: C.I. = mean weight ± t*s/ √n | BI74: C.I. = mean weight ± t*s/ √n | BJ74: C.I. = mean weight ± t*s/ √n | BK74: C.I. = mean weight ± t*s/ √n | BL74: C.I. = mean weight ± t*s/ √n | BM74: C.I. = mean weight ± t*s/ √n | BN74: C.I. = mean weight ± t*s/ √n | BO74: C.I. = mean weight ± t*s/ √n | BP74: C.I. = mean weight ± t*s/ √n | BQ74: C.I. = mean weight ± t*s/ √n | BR74: C.I. = mean weight ± t*s/ √n | BS74: C.I. = mean weight ± t*s/ √n | BT74: C.I. = mean weight ± t*s/ √n | BU74: C.I. = mean weight ± t*s/ √n | BV74: C.I. = mean weight ± t*s/ √n | BW74: C.I. = mean weight ± t*s/ √n | BX74: C.I. = mean weight ± t*s/ √n | BY74: C.I. = mean weight ± t*s/ √n | BZ74: C.I. = mean weight ± t*s/ √n | CA74: C.I. = mean weight ± t*s/ √n | CB74: C.I. = mean weight ± t*s/ √n | CC74: C.I. = mean weight ± t*s/ √n | CD74: C.I. = mean weight ± t*s/ √n | CE74: C.I. = mean weight ± t*s/ √n | CF74: C.I. = mean weight ± t*s/ √n | CG74: C.I. = mean weight ± t*s/ √n | CH74: C.I. = mean weight ± t*s/ √n | CI74: C.I. = mean weight ± t*s/ √n | CJ74: C.I. = mean weight ± t*s/ √n | CK74: C.I. = mean weight ± t*s/ √n | CL74: C.I. = mean weight ± t*s/ √n | CM74: C.I. = mean weight ± t*s/ √n | CN74: C.I. = mean weight ± t*s/ √n | CO74: C.I. = mean weight ± t*s/ √n | CP74: C.I. = mean weight ± t*s/ √n | CQ74: C.I. = mean weight ± t*s/ √n | CR74: C.I. = mean weight ± t*s/ √n | CS74: C.I. = mean weight ± t*s/ √n | CT74: C.I. = mean weight ± t*s/ √n | CU74: C.I. = mean weight ± t*s/ √n | CV74: C.I. = mean weight ± t*s/ √n | CW74: C.I. = mean weight ± t*s/ √n | CX74: C.I. = mean weight ± t*s/ √n | CY74: C.I. = mean weight ± t*s/ √n | CZ74: C.I. = mean weight ± t*s/ √n | DA74: C.I. = mean weight ± t*s/ √n | DB74: C.I. = mean weight ± t*s/ √n | DC74: C.I. = mean weight ± t*s/ √n | DD74: C.I. = mean weight ± t*s/ √n | DE74: C.I. = mean weight ± t*s/ √n | DF74: C.I. = mean weight ± t*s/ √n | DG74: C.I. = mean weight ± t*s/ √n | DH74: C.I. = mean weight ± t*s/ √n | DI74: C.I. = mean weight ± t*s/ √n | DJ74: C.I. = mean weight ± t*s/ √n | DK74: C.I. = mean weight ± t*s/ √n | DL74: C.I. = mean weight ± t*s/ √n | DM74: C.I. = mean weight ± t*s/ √n | DN74: C.I. = mean weight ± t*s/ √n | DO74: C.I. = mean weight ± t*s/ √n | DP74: C.I. = mean weight ± t*s/ √n | DQ74: C.I. = mean weight ± t*s/ √n | DR74: C.I. = mean weight ± t*s/ √n | DS74: C.I. = mean weight ± t*s/ √n | DT74: C.I. = mean weight ± t*s/ √n | DU74: C.I. = mean weight ± t*s/ √n | DV74: C.I. = mean weight ± t*s/ √n | DW74: C.I. = mean weight ± t*s/ √n | DX74: C.I. = mean weight ± t*s/ √n | DY74: C.I. = mean weight ± t*s/ √n | DZ74: C.I. = mean weight ± t*s/ √n | EA74: C.I. = mean weight ± t*s/ √n | EB74: C.I. = mean weight ± t*s/ √n | EC74: C.I. = mean weight ± t*s/ √n | ED74: C.I. = mean weight ± t*s/ √n | EE74: C.I. = mean weight ± t*s/ √n | EF74: C.I. = mean weight ± t*s/ √n | EG74: C.I. = mean weight ± t*s/ √n | EH74: C.I. = mean weight ± t*s/ √n | EI74: C.I. = mean weight ± t*s/ √n | EJ74: C.I. = mean weight ± t*s/ √n | EK74: C.I. = mean weight ± t*s/ √n | EL74: C.I. = mean weight ± t*s/ √n | EM74: C.I. = mean weight ± t*s/ √n | EN74: C.I. = mean weight ± t*s/ √n | EO74: C.I. = mean weight ± t*s/ √n | EP74: C.I. = mean weight ± t*s/ √n | EQ74: C.I. = mean weight ± t*s/ √n | ER74: C.I. = mean weight ± t*s/ √n | ES74: C.I. = mean weight ± t*s/ √n | ET74: C.I. = mean weight ± t*s/ √n | EU74: C.I. = mean weight ± t*s/ √n | EV74: C.I. = mean weight ± t*s/ √n | EW74: C.I. = mean weight ± t*s/ √n | EX74: C.I. = mean weight ± t*s/ √n | EY74: C.I. = mean weight ± t*s/ √n | EZ74: C.I. = mean weight ± t*s/ √n | FA74: C.I. = mean weight ± t*s/ √n | FB74: C.I. = mean weight ± t*s/ √n | FC74: C.I. = mean weight ± t*s/ √n | FD74: C.I. = mean weight ± t*s/ √n | FE74: C.I. = mean weight ± t*s/ √n | FF74: C.I. = mean weight ± t*s/ √n | FG74: C.I. = mean weight ± t*s/ √n | FH74: C.I. = mean weight ± t*s/ √n | FI74: C.I. = mean weight ± t*s/ √n | FJ74: C.I. = mean weight ± t*s/ √n | FK74: C.I. = mean weight ± t*s/ √n | FL74: C.I. = mean weight ± t*s/ √n | FM74: C.I. = mean weight ± t*s/ √n | FN74: C.I. = mean weight ± t*s/ √n | FO74: C.I. = mean weight ± t*s/ √n | FP74: C.I. = mean weight ± t*s/ √n | FQ74: C.I. = mean weight ± t*s/ √n | FR74: C.I. = mean weight ± t*s/ √n | FS74: C.I. = mean weight ± t*s/ √n | FT74: C.I. = mean weight ± t*s/ √n | FU74: C.I. = mean weight ± t*s/ √n | FV74: C.I. = mean weight ± t*s/ √n | FW74: C.I. = mean weight ± t*s/ √n | FX74: C.I. = mean weight ± t*s/ √n | FY74: C.I. = mean weight ± t*s/ √n | FZ74: C.I. = mean weight ± t*s/ √n | GA74: C.I. = mean weight ± t*s/ √n | GB74: C.I. = mean weight ± t*s/ √n | GC74: C.I. = mean weight ± t*s/ √n | GD74: C.I. = mean weight ± t*s/ √n | GE74: C.I. = mean weight ± t*s/ √n | GF74: C.I. = mean weight ± t*s/ √n | GG74: C.I. = mean weight ± t*s/ √n | GH74: C.I. = mean weight ± t*s/ √n | GI74: C.I. = mean weight ± t*s/ √n | GJ74: C.I. = mean weight ± t*s/ √n | GK74: C.I. = mean weight ± t*s/ √n | GL74: C.I. = mean weight ± t*s/ √n | GM74: C.I. = mean weight ± t*s/ √n | GN74: C.I. = mean weight ± t*s/ √n | GO74: C.I. = mean weight ± t*s/ √n | GP74: C.I. = mean weight ± t*s/ √n | GQ74: C.I. = mean weight ± t*s/ √n | GR74: C.I. = mean weight ± t*s/ √n | GS74: C.I. = mean weight ± t*s/ √n | GT74: C.I. = mean weight ± t*s/ √n | GU74: C.I. = mean weight ± t*s/ √n | GV74: C.I. = mean weight ± t*s/ √n | GW74: C.I. = mean weight ± t*s/ √n | GX74: C.I. = mean weight ± t*s/ √n | GY74: C.I. = mean weight ± t*s/ √n | GZ74: C.I. = mean weight ± t*s/ √n | HA74: C.I. = mean weight ± t*s/ √n | HB74: C.I. = mean weight ± t*s/ √n | HC74: C.I. = mean weight ± t*s/ √n | HD74: C.I. = mean weight ± t*s/ √n | HE74: C.I. = mean weight ± t*s/ √n | HF74: C.I. = mean weight ± t*s/ √n | HG74: C.I. = mean weight ± t*s/ √n | HH74: C.I. = mean weight ± t*s/ √n | HI74: C.I. = mean weight ± t*s/ √n | HJ74: C.I. = mean weight ± t*s/ √n | HK74: C.I. = mean weight ± t*s/ √n | HL74: C.I. = mean weight ± t*s/ √n | HM74: C.I. = mean weight ± t*s/ √n | HN74: C.I. = mean weight ± t*s/ √n | HO74: C.I. = mean weight ± t*s/ √n | HP74: C.I. = mean weight ± t*s/ √n | HQ74: C.I. = mean weight ± t*s/ √n | HR74: C.I. = mean weight ± t*s/ √n | HS74: C.I. = mean weight ± t*s/ √n | HT74: C.I. = mean weight ± t*s/ √n | HU74: C.I. = mean weight ± t*s/ √n | HV74: C.I. = mean weight ± t*s/ √n | HW74: C.I. = mean weight ± t*s/ √n | HX74: C.I. = mean weight ± t*s/ √n | HY74: C.I. = mean weight ± t*s/ √n | HZ74: C.I. = mean weight ± t*s/ √n | IA74: C.I. = mean weight ± t*s/ √n | IB74: C.I. = mean weight ± t*s/ √n | IC74: C.I. = mean weight ± t*s/ √n | ID74: C.I. = mean weight ± t*s/ √n | IE74: C.I. = mean weight ± t*s/ √n | IF74: C.I. = mean weight ± t*s/ √n | IG74: C.I. = mean weight ± t*s/ √n | IH74: C.I. = mean weight ± t*s/ √n | II74: C.I. = mean weight ± t*s/ √n | IJ74: C.I. = mean weight ± t*s/ √n | IK74: C.I. = mean weight ± t*s/ √n | IL74: C.I. = mean weight ± t*s/ √n | IM74: C.I. = mean weight ± t*s/ √n | IN74: C.I. = mean weight ± t*s/ √n | IO74: C.I. = mean weight ± t*s/ √n | IP74: C.I. = mean weight ± t*s/ √n | IQ74: C.I. = mean weight ± t*s/ √n | IR74: C.I. = mean weight ± t*s/ √n | IS74: C.I. = mean weight ± t*s/ √n | IT74: C.I. = mean weight ± t*s/ √n | IU74: C.I. = mean weight ± t*s/ √n | IV74: C.I. = mean weight ± t*s/ √n

Sheet Hypg_Proportion
A1: Calculation based on minimal PROPORTION (k) of positive samples in population N | D1: Side calculations/remarks | P1: P1 to P17shall not be blank
P2: P1 to P17shall not be blank
P3: P1 to P17shall not be blank
P4: P1 to P17shall not be blank
A5: At least requested proportion (k) of population (N) contain drugs at a confidence level of at least (1-α), if (n-r) tested samples are positive. | P5: P1 to P17shall not be blank
P6: P1 to P17shall not be blank
P7: P1 to P17shall not be blank
P8: P1 to P17shall not be blank
A9: Enter data (steps 1 to 4) and see results (steps 5 to 7) | C9: Max. population size Nmax allowed (current value): | D9: If K= k x N is an integer laboratory request on proportion of positives and actual proportion will match exactly. (Compare cells B12 and C12). If K= k x N is not an integer, it is rounded up to the closest higer integer K` (compare D12 and E12) and actual proportion k` is above the request. | P9: P1 to P17shall not be blank
C10: =COUNTA($P:$P)-16 -> 2000 | P10: P1 to P17shall not be blank
A11: =IF($B$11>$C$10,"Nmax ="&C10,"Step 1: Enter population size (N) = number of samples in population:") -> Step 1: Enter population size (N) = number of samples in population: | B11: 23 | C11: Step 6: Actual proportion (k`) for sample size n q | D11: number of positives along laboratory request K= k*N | E11: number of positives (K`) corresponding to actual proportion (k`) K`=RoundUP(k*N) | I11: =COUNTIF(C:C,"yes") -> 10 | P11: P1 to P17shall not be blank
A12: Step 2: Enter proportion (k) of positives in population: (range: 0.0001<k<=1) | B12: 0.9 | C12: =IF(MIN(O:O)<$B$14,"not calculated",(ROUNDUP($B$11*$B$12,0))/$B$11) -> 0.9130434783 | D12: =+B11*B12 -> 20.7 | E12: =+ROUNDUP(B11*B12,0) -> 21 | I12: =COUNTIF(C:C,"no") -> 13 | P12: P1 to P17shall not be blank
A13: Step 3: Enter expected number of negatives (r): (at max. 2) | B13: 0 | C13: Step 7: Actual CL for sample size n q | D13: number of positives for H0 test M0=RoundUp(K)-1 | E13: =+ROUNDUP($B$11*$B$12,0)-1 -> 20 | I13: =ROUNDUP($B$11*$B$12,0)-1 -> 20 | P13: P1 to P17shall not be blank
A14: Step 4: Enter confidence level (CL) (1-a) (range:0.0001<=CL<=0.9999) | B14: 0.95 | C14: =IF(MIN(O:O)<$B$14,"No sample size meets confidence level!",MIN(O:O)) -> 0.95256917 | I14: =HYPGEOMDIST(500,500,926,1030) -> 4.182743026e-33 | N14: GRAPH offset value calculation | P14: P1 to P17shall not be blank
A15: Step 5: Sample size (n) | B15: =IF(($B$11-$E$12+1<$B$13),"Not calculated! Input data error! Check N, k, r!",IF(COUNTIF(C:C,"yes")=0,"No sample size fulfills given criteria!",(1+COUNTIF(C:C,"no")))) -> 14 | D15: Max. population size Nmax allowed (current value): | E15: =COUNTA($P:$P)-16 -> 2000 | J15: 1-P(0) | K15: 1-P(0,1) | L15: 1-P(0,1,2) | N15: =IF(COUNTIF(L:L,"<"&B14)<$B$11,COUNTIF(L:L,"<"&B14)+1,COUNTIF(L:L,"<"&B14)) -> 23 | P15: P1 to P17shall not be blank
A16: Sample Size (n) | B16: P(Sample Negatives>r) = actual CL | C16: confidence level criteria fits? | F16: P(Sn=0) | G16: P(Sn=1) | H16: P(Sn=2) | I16: empty column | J16: neg_0 | K16: neg_1 | L16: neg_2 | M16: CL requested | O16: ISERROR statement for CL calc | P16: number list included in calc column Q | Q16: calculation for column A | R16: Macro buttons Ñ
A17: =$Q17 -> 1 | B17: =IF(A17="","",IF($B$13=0,($J17),(IF($B$13=1,$K17,$L17)))) -> 0.1304347826 | C17: =IF(A17="","",IF(ISERROR(B17),"no",IF(($B17)>=$B$14,"yes","no"))) -> no | F17: =IF($A17="","",IF($A17<=ROUNDUP($B$11*$B$12,0)-1,(HYPGEOMDIST($A17,$A17,ROUNDUP($B$11*$B$12,0)-1,$B$11)))) -> 0.8695652174 | G17: =IF($A17="","",IF($A17<=ROUNDUP($B$11*$B$12,0),HYPGEOMDIST($A17-1,$A17,ROUNDUP($B$11*$B$12,0)-1,$B$11))) -> 0.1304347826 | H17: =IF(A17="","",IF(OR($A17<2,$B$11=ROUNDUP($B$11*$B$12,0)),"0",IF($A17<=ROUNDUP($B$11*$B$12,0)+1,HYPGEOMDIST($A17-2,$A17,ROUNDUP($B$11*$B$12,0)-1,$B$11)))) -> 0 | J17: =IF($A17="","",1-F17) -> 0.1304347826 | K17: =IF($A17="","",(1-F17)-G17) -> -1.942890293e-16 | L17: =IF($A17="","",K17-H17) -> -1.942890293e-16 | M17: =IF($B17="","",$B$14) -> 0.95 | O17: =IF(ISERROR(B17),"",IF(B17>=$B$14,B17,"not meet")) -> not meet | P17: =ROW()-16 -> 1 | Q17: =IF($P17>$B$11,"",$P17) -> 1 | R17: To change Nmax click appropriate button! | S17: Reduce Nmax! (smallest file size) | T17: Unhide/Hide side calculations
A18: =$Q18 -> 2 | B18: =IF(A18="","",IF($B$13=0,($J18),(IF($B$13=1,$K18,$L18)))) -> 0.2490118577 | C18: =IF(A18="","",IF(ISERROR(B18),"no",IF(($B18)>=$B$14,"yes","no"))) -> no | F18: =IF($A18="","",IF($A18<=ROUNDUP($B$11*$B$12,0)-1,(HYPGEOMDIST($A18,$A18,ROUNDUP($B$11*$B$12,0)-1,$B$11)))) -> 0.7509881423 | G18: =IF($A18="","",IF($A18<=ROUNDUP($B$11*$B$12,0),HYPGEOMDIST($A18-1,$A18,ROUNDUP($B$11*$B$12,0)-1,$B$11))) -> 0.2371541502 | H18: =IF(A18="","",IF(OR($A18<2,$B$11=ROUNDUP($B$11*$B$12,0)),"0",IF($A18<=ROUNDUP($B$11*$B$12,0)+1,HYPGEOMDIST($A18-2,$A18,ROUNDUP($B$11*$B$12,0)-1,$B$11)))) -> 0.01185770751 | J18: =IF($A18="","",1-F18) -> 0.2490118577 | K18: =IF($A18="","",(1-F18)-G18) -> 0.01185770751 | L18: =IF($A18="","",K18-H18) -> -1.144917494e-16 | M18: =IF($B18="","",$B$14) -> 0.95 | O18: =IF(ISERROR(B18),"",IF(B18>=$B$14,B18,"not meet")) -> not meet | P18: =ROW()-16 -> 2 | Q18: 2
A19: 3 | B19: 0.356295878 | C19: no | F19: 0.643704122 | G19: 0.321852061 | H19: 0.03387916431 | J19: =IF($A19="","",1-F19) -> 0.356295878 | K19: =IF($A19="","",(1-F19)-G19) -> 0.03444381705 | L19: =IF($A19="","",K19-H19) -> 0.0005646527386 | M19: 0.95 | O19: not meet | P19: 3 | Q19: 3
A20: 4 | B20: 0.4528514963 | C20: no | F20: 0.5471485037 | G20: 0.3862224732 | H20: 0.0643704122 | J20: 0.4528514963 | K20: 0.06662902315 | L20: 0.002258610954 | M20: 0.95 | O20: not meet | P20: 4 | Q20: 4
A21: 5 | B21: 0.5392433653 | C21: no | F21: 0.4607566347 | G21: 0.431959345 | H21: 0.1016374929 | J21: 0.5392433653 | K21: 0.1072840203 | L21: 0.005646527386 | M21: 0.95 | O21: not meet | P21: 5 | Q21: 5
A22: 6 | B22: 0.6160361378 | C22: no | F22: 0.3839638622 | G22: 0.4607566347 | H22: 0.1439864483 | J22: 0.6160361378 | K22: 0.1552795031 | L22: 0.01129305477 | M22: 0.95 | O22: not meet | P22: 6 | Q22: 6
A23: 7 | B23: 0.6837944664 | C23: no | F23: 0.3162055336 | G23: 0.4743083004 | H23: 0.1897233202 | J23: 0.6837944664 | K23: 0.209486166 | L23: 0.01976284585 | M23: 0.95 | O23: not meet | P23: 7 | Q23: 7
A24: 8 | B24: 0.743083004 | C24: no | F24: 0.256916996 | G24: 0.4743083004 | H24: 0.2371541502 | J24: 0.743083004 | K24: 0.2687747036 | L24: 0.03162055336 | M24: 0.95 | O24: not meet | P24: 8 | Q24: 8
A25: 9 | B25: 0.7944664032 | C25: no | F25: 0.2055335968 | G25: 0.4624505929 | H25: 0.2845849802 | J25: 0.7944664032 | K25: 0.3320158103 | L25: 0.04743083004 | M25: 0.95 | O25: not meet | P25: 9 | Q25: 9
A26: 10 | B26: 0.8385093168 | C26: no | F26: 0.1614906832 | G26: 0.4404291361 | H26: 0.3303218521 | J26: 0.8385093168 | K26: 0.3980801807 | L26: 0.06775832863 | M26: 0.95 | O26: not meet | P26: 10 | Q26: 10
A27: 11 | B27: 0.8757763975 | C27: no | F27: 0.1242236025 | G27: 0.4099378882 | H27: 0.3726708075 | J27: 0.8757763975 | K27: 0.4658385093 | L27: 0.09316770186 | M27: 0.95 | O27: not meet | P27: 11 | Q27: 11
A28: 12 | B28: 0.9068322981 | C28: no | F28: 0.09316770186 | G28: 0.3726708075 | H28: 0.4099378882 | J28: 0.9068322981 | K28: 0.5341614907 | L28: 0.1242236025 | M28: 0.95 | O28: not meet | P28: 12 | Q28: 12
A29: 13 | B29: 0.9322416714 | C29: no | F29: 0.06775832863 | G29: 0.3303218521 | H29: 0.4404291361 | J29: 0.9322416714 | K29: 0.6019198193 | L29: 0.1614906832 | M29: 0.95 | O29: not meet | P29: 13 | Q29: 13
A30: 14 | B30: 0.95256917 | C30: yes | F30: 0.04743083004 | G30: 0.2845849802 | H30: 0.4624505929 | J30: 0.95256917 | K30: 0.6679841897 | L30: 0.2055335968 | M30: 0.95 | O30: 0.95256917 | P30: 14 | Q30: 14
A31: 15 | B31: 0.9683794466 | C31: yes | F31: 0.03162055336 | G31: 0.2371541502 | H31: 0.4743083004 | J31: 0.9683794466 | K31: 0.7312252964 | L31: 0.256916996 | M31: 0.95 | O31: 0.9683794466 | P31: 15 | Q31: 15
A32: 16 | B32: 0.9802371542 | C32: yes | F32: 0.01976284585 | G32: 0.1897233202 | H32: 0.4743083004 | J32: 0.9802371542 | K32: 0.790513834 | L32: 0.3162055336 | M32: 0.95 | O32: 0.9802371542 | P32: 16 | Q32: 16
A33: 17 | B33: 0.9887069452 | C33: yes | F33: 0.01129305477 | G33: 0.1439864483 | H33: 0.4607566347 | J33: 0.9887069452 | K33: 0.8447204969 | L33: 0.3839638622 | M33: 0.95 | O33: 0.9887069452 | P33: 17 | Q33: 17
A34: 18 | B34: 0.9943534726 | C34: yes | F34: 0.005646527386 | G34: 0.1016374929 | H34: 0.431959345 | J34: 0.9943534726 | K34: 0.8927159797 | L34: 0.4607566347 | M34: 0.95 | O34: 0.9943534726 | P34: 18 | Q34: 18
A35: 19 | B35: 0.997741389 | C35: yes | F35: 0.002258610954 | G35: 0.0643704122 | H35: 0.3862224732 | J35: 0.997741389 | K35: 0.9333709768 | L35: 0.5471485037 | M35: 0.95 | O35: 0.997741389 | P35: 19 | Q35: 19
A36: 20 | B36: 0.9994353473 | C36: yes | F36: 0.0005646527386 | G36: 0.03387916431 | H36: 0.321852061 | J36: 0.9994353473 | K36: 0.9655561829 | L36: 0.643704122 | M36: 0.95 | O36: 0.9994353473 | P36: 20 | Q36: 20
A37: 21 | B37: 1 | C37: yes | F37: FALSE | G37: 0.01185770751 | H37: 0.2371541502 | J37: 1 | K37: 0.9881422925 | L37: 0.7509881423 | M37: 0.95 | O37: 1 | P37: 21 | Q37: 21
A38: 22 | B38: 1 | C38: yes | F38: FALSE | G38: FALSE | H38: 0.1304347826 | J38: 1 | K38: 1 | L38: 0.8695652174 | M38: 0.95 | O38: 1 | P38: 22 | Q38: 22
A39: 23 | B39: 1 | C39: yes | F39: FALSE | G39: FALSE | H39: FALSE | J39: 1 | K39: 1 | L39: 1 | M39: 0.95 | O39: 1 | P39: 23 | Q39: 23
P40: 24
P41: 25
P42: 26
P43: 27
P44: 28
P45: 29
P46: 30
P47: 31
P48: 32
P49: 33
P50: 34
P51: 35
P52: 36
P53: 37
P54: 38
P55: 39
P56: 40
P57: 41
P58: 42
P59: 43
P60: 44
P61: 45
P62: 46
P63: 47
P64: 48
P65: 49
P66: 50
P67: 51
P68: 52
P69: 53
P70: 54
P71: 55
P72: 56
P73: 57
P74: 58
P75: 59
P76: 60
P77: 61
P78: 62
P79: 63
P80: 64
P81: 65 | Q81: =IF($P81>$B$11,"",$P81) -> 
A82: =$Q82 ->  | B82: =IF(A82="","",IF($B$13=0,($J82),(IF($B$13=1,$K82,$L82)))) ->  | C82: =IF(A82="","",IF(ISERROR(B82),"no",IF(($B82)>=$B$14,"yes","no"))) ->  | F82: =IF($A82="","",IF($A82<=ROUNDUP($B$11*$B$12,0)-1,(HYPGEOMDIST($A82,$A82,ROUNDUP($B$11*$B$12,0)-1,$B$11)))) ->  | G82: =IF($A82="","",IF($A82<=ROUNDUP($B$11*$B$12,0),HYPGEOMDIST($A82-1,$A82,ROUNDUP($B$11*$B$12,0)-1,$B$11))) ->  | H82: =IF(A82="","",IF(OR($A82<2,$B$11=ROUNDUP($B$11*$B$12,0)),"0",IF($A82<=ROUNDUP($B$11*$B$12,0)+1,HYPGEOMDIST($A82-2,$A82,ROUNDUP($B$11*$B$12,0)-1,$B$11)))) ->  | M82: =IF($B82="","",$B$14) ->  | O82: =IF(ISERROR(B82),"",IF(B82>=$B$14,B82,"not meet")) ->  | P82: =ROW()-16 -> 66
J83: =IF($A83="","",1-F83) ->  | K83: =IF($A83="","",(1-F83)-G83) ->  | L83: =IF($A83="","",K83-H83) ->  | P83: 67
P84: 68
P85: 69
P86: 70
P87: 71
P88: 72
P89: 73
P90: 74
P91: 75
P92: 76
P93: 77
P94: 78
P95: 79
P96: 80
P97: 81
P98: 82
P99: 83
P100: 84
P101: 85
P102: 86
P103: 87
P104: 88
P105: 89
P106: 90
P107: 91
P108: 92
P109: 93
P110: 94
P111: 95
P112: 96
P113: 97
P114: 98
P115: 99
P116: 100
P117: 101
P118: 102
P119: 103
P120: 104
P121: 105
P122: 106
P123: 107
P124: 108
P125: 109
P126: 110
P127: 111
P128: 112
P129: 113
P130: 114
P131: 115
P132: 116
P133: 117
P134: 118
P135: 119
P136: 120
P137: 121
P138: 122
P139: 123
P140: 124
P141: 125
P142: 126
P143: 127
P144: 128
P145: 129 | Q145: =IF($P145>$B$11,"",$P145) -> 
A146: =$Q146 ->  | B146: =IF(A146="","",IF($B$13=0,($J146),(IF($B$13=1,$K146,$L146)))) ->  | C146: =IF(A146="","",IF(ISERROR(B146),"no",IF(($B146)>=$B$14,"yes","no"))) ->  | F146: =IF($A146="","",IF($A146<=ROUNDUP($B$11*$B$12,0)-1,(HYPGEOMDIST($A146,$A146,ROUNDUP($B$11*$B$12,0)-1,$B$11)))) ->  | G146: =IF($A146="","",IF($A146<=ROUNDUP($B$11*$B$12,0),HYPGEOMDIST($A146-1,$A146,ROUNDUP($B$11*$B$12,0)-1,$B$11))) ->  | H146: =IF(A146="","",IF(OR($A146<2,$B$11=ROUNDUP($B$11*$B$12,0)),"0",IF($A146<=ROUNDUP($B$11*$B$12,0)+1,HYPGEOMDIST($A146-2,$A146,ROUNDUP($B$11*$B$12,0)-1,$B$11)))) ->  | M146: =IF($B146="","",$B$14) ->  | O146: =IF(ISERROR(B146),"",IF(B146>=$B$14,B146,"not meet")) ->  | P146: =ROW()-16 -> 130
J147: =IF($A147="","",1-F147) ->  | K147: =IF($A147="","",(1-F147)-G147) ->  | L147: =IF($A147="","",K147-H147) ->  | P147: 131
P148: 132
P149: 133
P150: 134
P151: 135
P152: 136
P153: 137
P154: 138
P155: 139
P156: 140
P157: 141
P158: 142
P159: 143
P160: 144
P161: 145
P162: 146
P163: 147
P164: 148
P165: 149
P166: 150
P167: 151
P168: 152
P169: 153
P170: 154
P171: 155
P172: 156
P173: 157
P174: 158
P175: 159
P176: 160
P177: 161
P178: 162
P179: 163
P180: 164
P181: 165
P182: 166
P183: 167
P184: 168
P185: 169
P186: 170
P187: 171
P188: 172
P189: 173
P190: 174
P191: 175
P192: 176
P193: 177
P194: 178
P195: 179
P196: 180
P197: 181
P198: 182
P199: 183
P200: 184
... 1816 more rows

Sheet Hypg_Number
A1: Calculation based on NUMBER (K) of positive samples in population N | N1: N1 to N17shall not be blank
N2: N1 to N17shall not be blank
N3: N1 to N17shall not be blank
N4: N1 to N17shall not be blank
A5: Exactly requested number (K) of population (N) contain drugs at minimum at requested confidence level (1-α), if (n-r) tested samples are positive! | N5: N1 to N17shall not be blank
N6: N1 to N17shall not be blank
N7: N1 to N17shall not be blank
N8: N1 to N17shall not be blank
A9: Enter data (steps 1 to 4) and see results (Steps 5 to 7) : | C9: Max. population size Nmax allowed (current value): | N9: N1 to N17shall not be blank
C10: =COUNTA($N:$N)-16 -> 1000 | N10: N1 to N17shall not be blank
A11: =IF($B$11>$C$10,"Nmax ="&C10,"Step 1: Enter population size (N) = number of samples in population:") -> Step 1: Enter population size (N) = number of samples in population: | B11: 160 | C11: Step 6: Actual proportion (k`) for sample size n q | N11: N1 to N17shall not be blank
A12: Step 2: Enter number of positives (K) in population: (range 1<K<=N) | B12: 21 | C12: =IF(MIN(M:M)<$B$14,"n not calculated",$B$12/$B$11) -> 0.13125 | N12: N1 to N17shall not be blank
A13: Step 3: Enter expected number of negatives (r): (at max. 2) | B13: 0 | C13: Step 7: Actual CL for sample size n q | N13: N1 to N17shall not be blank
A14: Step 4: Enter confidence level (CL) (1-a) (range:0.0001<=CL<=0.9999) | B14: 0.99 | C14: =IF(MIN(M:M)<$B$14,"No sample size meets confidence level!",MIN(M:M)) -> 0.9982983043 | L14: GRAPH offset value calculation | N14: N1 to N17shall not be blank
A15: Step 5: Sample size (n) | B15: =IF(($B$13>$B$11-B12+1),"Not calculated! Input data error! Check N, K, r!",IF(COUNTIF(C:C,"yes")=0,"No sample size fulfills given criteria!",(1+COUNTIF(C:C,"no")))) -> 3 | H15: 1-P(0) | I15: 1-P(0,1) | J15: 1-P(0,1,2) | L15: =IF(COUNTIF(J:J,"<"&B14)<$B$11,COUNTIF(J:J,"<"&B14)+1,COUNTIF(J:J,"<"&B14)) -> 6 | N15: N1 to N17shall not be blank
A16: Sample Size (n) | B16: P(Sample Negatives>r) = actual CL | C16: confidence level criteria fits? | D16: P(Sn=0) | E16: P(Sn=1) | F16: P(Sn=2) | G16: empty column | H16: 0_neg | I16: 1_neg | J16: 2_neg | K16: CL requested | M16: CL with ISERROR for sample size calc | N16: numbers up to 10000 as max sample size | O16: Calculation for column A (max n=N) | P16: Macro buttons Ñ
A17: =$O17 -> 1 | B17: =IF(A17="","",IF($B$13=0,($H17),(IF($B$13=1,$I17,$J17)))) -> 0.875 | C17: =IF(A17="","",IF(ISERROR(B17),"no",IF(($B17)>=$B$14,"yes","no"))) -> no | D17: =IF(A17="","",IF(A17<($B$12),(HYPGEOMDIST($A17,$A17,($B$12)-1,$B$11)),0)) -> 0.125 | E17: =IF(A17="","",IF(A17<=($B$12),HYPGEOMDIST($A17-1,$A17,($B$12)-1,$B$11))) -> 0.875 | F17: =IF(A17="","",IF(OR(A17<2,B$11=B$12),"0",IF(A17<B$12+2,HYPGEOMDIST(A17-2,A17,B$12-1,B$11)))) -> 0 | H17: =IF($A17="","",1-D17) -> 0.875 | I17: =IF($A17="","",H17-E17) -> 0 | J17: =IF($A17="","",I17-F17) -> 0 | K17: =IF($B17="","",$B$14) -> 0.99 | M17: =IF(ISERROR(B17),"",IF(B17>=$B$14,B17,"not meet")) -> not meet | N17: =ROW()-16 -> 1 | O17: =IF($N17>$B$11,"",$N17) -> 1 | P17: To change Nmax click appropriate button! | Q17: Reduce Nmax! (smallest file size)
A18: 2 | B18: 0.9850628931 | C18: =IF(A18="","",IF(ISERROR(B18),"no",IF(($B18)>=$B$14,"yes","no"))) -> no | D18: =IF(A18="","",IF(A18<($B$12),(HYPGEOMDIST($A18,$A18,($B$12)-1,$B$11)),0)) -> 0.01493710692 | E18: =IF(A18="","",IF(A18<=($B$12),HYPGEOMDIST($A18-1,$A18,($B$12)-1,$B$11))) -> 0.2201257862 | F18: =IF(A18="","",IF(OR(A18<2,B$11=B$12),"0",IF(A18<B$12+2,HYPGEOMDIST(A18-2,A18,B$12-1,B$11)))) -> 0.7649371069 | H18: =IF($A18="","",1-D18) -> 0.9850628931 | I18: =IF($A18="","",H18-E18) -> 0.7649371069 | J18: =IF($A18="","",I18-F18) -> 0 | K18: =IF($B18="","",$B$14) -> 0.99 | M18: =IF(ISERROR(B18),"",IF(B18>=$B$14,B18,"not meet")) -> not meet | N18: =ROW()-16 -> 2 | O18: 2
A19: 3 | B19: 0.9982983043 | C19: yes | D19: 0.001701695725 | E19: 0.03970623358 | F19: 0.2904824457 | H19: 0.9982983043 | I19: 0.9585920707 | J19: =IF($A19="","",I19-F19) -> 0.668109625 | K19: 0.99 | M19: 0.9982983043 | N19: 3 | O19: 3
A20: 4 | B20: 0.99981574 | C20: yes | D20: 0.0001842600466 | E20: 0.006069742713 | F20: 0.07030785309 | H20: 0.99981574 | I20: 0.9937459972 | J20: 0.9234381441 | K20: 0.99 | M20: 0.99981574 | N20: 4 | O20: 4
A21: 5 | B21: 0.9999811015 | C21: yes | D21: 1.889846632e-05 | E21: 0.0008268079016 | F21: 0.01352074098 | H21: 0.9999811015 | I21: 0.9991542936 | J21: 0.9856335527 | K21: 0.99 | M21: 0.9999811015 | N21: 5 | O21: 5
A22: 6 | B22: 0.9999981711 | C22: yes | D22: 1.828883838e-06 | E22: 0.0001024174949 | F22: 0.002224379968 | H22: 0.9999981711 | I22: 0.9998957536 | J22: 0.9976713737 | K22: 0.99 | M22: 0.9999981711 | N22: 6 | O22: 6
A23: 7 | B23: 0.9999998337 | C23: yes | D23: 1.662621671e-07 | E23: 1.163835169e-05 | F23: 0.0003235461771 | H23: 0.9999998337 | I23: 0.9999881954 | J23: 0.9996646492 | K23: 0.99 | M23: 0.9999998337 | N23: 7 | O23: 7
A24: 8 | B24: 0.9999999859 | C24: yes | D24: 1.41268508e-08 | E24: 1.21708253e-06 | F24: 4.229361792e-05 | H24: 0.9999999859 | I24: 0.9999987688 | J24: 0.9999564752 | K24: 0.99 | M24: 0.9999999859 | N24: 8 | O24: 8
A25: 9 | B25: 0.9999999989 | C25: yes | D25: 1.115277694e-09 | E25: 1.171041579e-07 | F25: 5.008454754e-06 | H25: 0.9999999989 | I25: 0.9999998818 | J25: 0.9999948733 | K25: 0.99 | M25: 0.9999999989 | N25: 9 | O25: 9
A26: 10 | B26: 0.9999999999 | C26: yes | D26: 8.124539496e-11 | E26: 1.034032299e-08 | F26: =IF(A26="","",IF(OR(A26<2,B$11=B$12),"0",IF(A26<B$12+2,HYPGEOMDIST(A26-2,A26,B$12-1,B$11)))) -> 5.389893361e-07 | H26: 0.9999999999 | I26: 0.9999999896 | J26: 0.9999994506 | K26: 0.99 | M26: 0.9999999999 | N26: 10 | O26: 10
A27: 11 | B27: 1 | C27: yes | D27: 5.416359664e-12 | E27: 8.341193882e-10 | F27: 5.270117953e-08 | H27: 1 | I27: 0.9999999992 | J27: 0.9999999465 | K27: 0.99 | M27: 1 | N27: 11 | O27: 11
A28: 12 | B28: 1 | C28: yes | D28: 3.271626643e-13 | E28: 6.107036399e-11 | F28: 4.668829327e-09 | H28: 1 | I28: 0.9999999999 | J28: 0.9999999953 | K28: 0.99 | M28: 1 | N28: 12 | O28: 12
A29: 13 | B29: 1 | C29: yes | D29: 1.768446834e-14 | E29: 4.023216547e-12 | F29: 3.728180667e-10 | H29: 1 | I29: 1 | J29: 0.9999999996 | K29: 0.99 | M29: 1 | N29: 13 | O29: 13
A30: 14 | B30: 1 | C30: yes | D30: 8.421175399e-16 | E30: 2.357929112e-13 | F30: 2.662986191e-11 | H30: 1 | I30: 1 | J30: 1 | K30: 0.99 | M30: 1 | N30: 14 | O30: 14
A31: 15 | B31: 1 | C31: yes | D31: 3.460757013e-17 | E31: 1.211264955e-14 | F31: 1.683658287e-12 | H31: 1 | I31: 1 | J31: 1 | K31: 0.99 | M31: 1 | N31: 15 | O31: 15
A32: 16 | B32: 1 | C32: yes | D32: 1.193364487e-18 | E32: 5.346272903e-16 | F32: 9.28914917e-14 | H32: 1 | I32: 1 | J32: 1 | K32: 0.99 | M32: 1 | N32: 16 | O32: 16
A33: 17 | B33: 1 | C33: yes | D33: 3.314901354e-20 | E33: 1.972366305e-17 | F33: 4.386542663e-15 | H33: 1 | I33: 1 | J33: 1 | K33: 0.99 | M33: 1 | N33: 17 | O33: 17
A34: 18 | B34: 1 | C34: yes | D34: 6.954338504e-22 | E34: 5.841644344e-19 | F34: 1.725475698e-16 | H34: 1 | I34: 1 | J34: 1 | K34: 0.99 | M34: 1 | N34: 18 | O34: 18
A35: 19 | B35: 1 | C35: yes | D35: 9.794842964e-24 | E35: 1.302714114e-20 | F35: 5.432317856e-18 | H35: 1 | I35: 1 | J35: 1 | K35: 0.99 | M35: 1 | N35: 19 | O35: 19
A36: 20 | B36: 1 | C36: yes | D36: 6.946697138e-26 | E36: 1.945075199e-22 | F36: 1.2842359e-19 | H36: 1 | I36: 1 | J36: 1 | K36: 0.99 | M36: 1 | N36: 20 | O36: 20
A37: 21 | B37: 1 | C37: yes | D37: 0 | E37: 1.458806399e-24 | F37: 2.027740894e-21 | H37: 1 | I37: 1 | J37: 1 | K37: 0.99 | M37: 1 | N37: 21 | O37: 21
A38: 22 | B38: 1 | C38: yes | D38: 0 | E38: FALSE | F38: 1.604687039e-23 | H38: 1 | I38: 1 | J38: 1 | K38: 0.99 | M38: 1 | N38: 22 | O38: 22
A39: 23 | B39: 1 | C39: yes | D39: 0 | E39: FALSE | F39: FALSE | H39: 1 | I39: 1 | J39: 1 | K39: 0.99 | M39: 1 | N39: 23 | O39: 23
A40: 24 | B40: 1 | C40: yes | D40: 0 | E40: FALSE | F40: FALSE | H40: 1 | I40: 1 | J40: 1 | K40: 0.99 | M40: 1 | N40: 24 | O40: 24
A41: 25 | B41: 1 | C41: yes | D41: 0 | E41: FALSE | F41: FALSE | H41: 1 | I41: 1 | J41: 1 | K41: 0.99 | M41: 1 | N41: 25 | O41: 25
A42: 26 | B42: 1 | C42: yes | D42: 0 | E42: FALSE | F42: FALSE | H42: 1 | I42: 1 | J42: 1 | K42: 0.99 | M42: 1 | N42: 26 | O42: 26
A43: 27 | B43: 1 | C43: yes | D43: 0 | E43: FALSE | F43: FALSE | H43: 1 | I43: 1 | J43: 1 | K43: 0.99 | M43: 1 | N43: 27 | O43: 27
A44: 28 | B44: 1 | C44: yes | D44: 0 | E44: FALSE | F44: FALSE | H44: 1 | I44: 1 | J44: 1 | K44: 0.99 | M44: 1 | N44: 28 | O44: 28
A45: 29 | B45: 1 | C45: yes | D45: 0 | E45: FALSE | F45: FALSE | H45: 1 | I45: 1 | J45: 1 | K45: 0.99 | M45: 1 | N45: 29 | O45: 29
A46: 30 | B46: 1 | C46: yes | D46: 0 | E46: FALSE | F46: FALSE | H46: 1 | I46: 1 | J46: 1 | K46: 0.99 | M46: 1 | N46: 30 | O46: 30
A47: 31 | B47: 1 | C47: yes | D47: 0 | E47: FALSE | F47: FALSE | H47: 1 | I47: 1 | J47: 1 | K47: 0.99 | M47: 1 | N47: 31 | O47: 31
A48: 32 | B48: 1 | C48: yes | D48: 0 | E48: FALSE | F48: FALSE | H48: 1 | I48: 1 | J48: 1 | K48: 0.99 | M48: 1 | N48: 32 | O48: 32
A49: 33 | B49: 1 | C49: yes | D49: 0 | E49: FALSE | F49: FALSE | H49: 1 | I49: 1 | J49: 1 | K49: 0.99 | M49: 1 | N49: 33 | O49: 33
A50: 34 | B50: 1 | C50: yes | D50: 0 | E50: FALSE | F50: FALSE | H50: 1 | I50: 1 | J50: 1 | K50: 0.99 | M50: 1 | N50: 34 | O50: 34
A51: 35 | B51: 1 | C51: yes | D51: 0 | E51: FALSE | F51: FALSE | H51: 1 | I51: 1 | J51: 1 | K51: 0.99 | M51: 1 | N51: 35 | O51: 35
A52: 36 | B52: 1 | C52: yes | D52: 0 | E52: FALSE | F52: FALSE | H52: 1 | I52: 1 | J52: 1 | K52: 0.99 | M52: 1 | N52: 36 | O52: 36
A53: 37 | B53: 1 | C53: yes | D53: 0 | E53: FALSE | F53: FALSE | H53: 1 | I53: 1 | J53: 1 | K53: 0.99 | M53: 1 | N53: 37 | O53: 37
A54: 38 | B54: 1 | C54: yes | D54: 0 | E54: FALSE | F54: FALSE | H54: 1 | I54: 1 | J54: 1 | K54: 0.99 | M54: 1 | N54: 38 | O54: 38
A55: 39 | B55: 1 | C55: yes | D55: 0 | E55: FALSE | F55: FALSE | H55: 1 | I55: 1 | J55: 1 | K55: 0.99 | M55: 1 | N55: 39 | O55: 39
A56: 40 | B56: 1 | C56: yes | D56: 0 | E56: FALSE | F56: FALSE | H56: 1 | I56: 1 | J56: 1 | K56: 0.99 | M56: 1 | N56: 40 | O56: 40
A57: 41 | B57: 1 | C57: yes | D57: 0 | E57: FALSE | F57: FALSE | H57: 1 | I57: 1 | J57: 1 | K57: 0.99 | M57: 1 | N57: 41 | O57: 41
A58: 42 | B58: 1 | C58: yes | D58: 0 | E58: FALSE | F58: FALSE | H58: 1 | I58: 1 | J58: 1 | K58: 0.99 | M58: 1 | N58: 42 | O58: 42
A59: 43 | B59: 1 | C59: yes | D59: 0 | E59: FALSE | F59: FALSE | H59: 1 | I59: 1 | J59: 1 | K59: 0.99 | M59: 1 | N59: 43 | O59: 43
A60: 44 | B60: 1 | C60: yes | D60: 0 | E60: FALSE | F60: FALSE | H60: 1 | I60: 1 | J60: 1 | K60: 0.99 | M60: 1 | N60: 44 | O60: 44
A61: 45 | B61: 1 | C61: yes | D61: 0 | E61: FALSE | F61: FALSE | H61: 1 | I61: 1 | J61: 1 | K61: 0.99 | M61: 1 | N61: 45 | O61: 45
A62: 46 | B62: 1 | C62: yes | D62: 0 | E62: FALSE | F62: FALSE | H62: 1 | I62: 1 | J62: 1 | K62: 0.99 | M62: 1 | N62: 46 | O62: 46
A63: 47 | B63: 1 | C63: yes | D63: 0 | E63: FALSE | F63: FALSE | H63: 1 | I63: 1 | J63: 1 | K63: 0.99 | M63: 1 | N63: 47 | O63: 47
A64: 48 | B64: 1 | C64: yes | D64: 0 | E64: FALSE | F64: FALSE | H64: 1 | I64: 1 | J64: 1 | K64: 0.99 | M64: 1 | N64: 48 | O64: 48
A65: 49 | B65: 1 | C65: yes | D65: 0 | E65: FALSE | F65: FALSE | H65: 1 | I65: 1 | J65: 1 | K65: 0.99 | M65: 1 | N65: 49 | O65: 49
A66: 50 | B66: 1 | C66: yes | D66: 0 | E66: FALSE | F66: FALSE | H66: 1 | I66: 1 | J66: 1 | K66: 0.99 | M66: 1 | N66: 50 | O66: 50
A67: 51 | B67: 1 | C67: yes | D67: 0 | E67: FALSE | F67: FALSE | H67: 1 | I67: 1 | J67: 1 | K67: 0.99 | M67: 1 | N67: 51 | O67: 51
A68: 52 | B68: 1 | C68: yes | D68: 0 | E68: FALSE | F68: FALSE | H68: 1 | I68: 1 | J68: 1 | K68: 0.99 | M68: 1 | N68: 52 | O68: 52
A69: 53 | B69: 1 | C69: yes | D69: 0 | E69: FALSE | F69: FALSE | H69: 1 | I69: 1 | J69: 1 | K69: 0.99 | M69: 1 | N69: 53 | O69: 53
A70: 54 | B70: 1 | C70: yes | D70: 0 | E70: FALSE | F70: FALSE | H70: 1 | I70: 1 | J70: 1 | K70: 0.99 | M70: 1 | N70: 54 | O70: 54
A71: 55 | B71: 1 | C71: yes | D71: 0 | E71: FALSE | F71: FALSE | H71: 1 | I71: 1 | J71: 1 | K71: 0.99 | M71: 1 | N71: 55 | O71: 55
A72: 56 | B72: 1 | C72: yes | D72: 0 | E72: FALSE | F72: FALSE | H72: 1 | I72: 1 | J72: 1 | K72: 0.99 | M72: 1 | N72: 56 | O72: 56
A73: 57 | B73: 1 | C73: yes | D73: 0 | E73: FALSE | F73: FALSE | H73: 1 | I73: 1 | J73: 1 | K73: 0.99 | M73: 1 | N73: 57 | O73: 57
A74: 58 | B74: 1 | C74: yes | D74: 0 | E74: FALSE | F74: FALSE | H74: 1 | I74: 1 | J74: 1 | K74: 0.99 | M74: 1 | N74: 58 | O74: 58
A75: 59 | B75: 1 | C75: yes | D75: 0 | E75: FALSE | F75: FALSE | H75: 1 | I75: 1 | J75: 1 | K75: 0.99 | M75: 1 | N75: 59 | O75: 59
A76: 60 | B76: 1 | C76: yes | D76: 0 | E76: FALSE | F76: FALSE | H76: 1 | I76: 1 | J76: 1 | K76: 0.99 | M76: 1 | N76: 60 | O76: 60
A77: 61 | B77: 1 | C77: yes | D77: 0 | E77: FALSE | F77: FALSE | H77: 1 | I77: 1 | J77: 1 | K77: 0.99 | M77: 1 | N77: 61 | O77: 61
A78: 62 | B78: 1 | C78: yes | D78: 0 | E78: FALSE | F78: FALSE | H78: 1 | I78: 1 | J78: 1 | K78: 0.99 | M78: 1 | N78: 62 | O78: 62
A79: 63 | B79: 1 | C79: yes | D79: 0 | E79: FALSE | F79: FALSE | H79: 1 | I79: 1 | J79: 1 | K79: 0.99 | M79: 1 | N79: 63 | O79: 63
A80: 64 | B80: 1 | C80: yes | D80: 0 | E80: FALSE | F80: FALSE | H80: 1 | I80: 1 | J80: 1 | K80: 0.99 | M80: 1 | N80: 64 | O80: 64
A81: =$O81 -> 65 | B81: =IF(A81="","",IF($B$13=0,($H81),(IF($B$13=1,$I81,$J81)))) -> 1 | C81: yes | D81: 0 | E81: FALSE | F81: FALSE | H81: 1 | I81: 1 | J81: 1 | K81: 0.99 | M81: 1 | N81: 65 | O81: =IF($N81>$B$11,"",$N81) -> 65
A82: 66 | B82: 1 | C82: =IF(A82="","",IF(ISERROR(B82),"no",IF(($B82)>=$B$14,"yes","no"))) -> yes | D82: =IF(A82="","",IF(A82<($B$12),(HYPGEOMDIST($A82,$A82,($B$12)-1,$B$11)),0)) -> 0 | E82: =IF(A82="","",IF(A82<=($B$12),HYPGEOMDIST($A82-1,$A82,($B$12)-1,$B$11))) -> FALSE | F82: FALSE | H82: =IF($A82="","",1-D82) -> 1 | I82: =IF($A82="","",H82-E82) -> 1 | J82: =IF($A82="","",I82-F82) -> 1 | K82: =IF($B82="","",$B$14) -> 0.99 | M82: =IF(ISERROR(B82),"",IF(B82>=$B$14,B82,"not meet")) -> 1 | N82: =ROW()-16 -> 66 | O82: 66
A83: 67 | B83: 1 | C83: yes | D83: 0 | E83: FALSE | F83: =IF(A83="","",IF(OR(A83<2,B$11=B$12),"0",IF(A83<B$12+2,HYPGEOMDIST(A83-2,A83,B$12-1,B$11)))) -> FALSE | H83: 1 | I83: 1 | J83: 1 | K83: 0.99 | M83: 1 | N83: 67 | O83: 67
A84: 68 | B84: 1 | C84: yes | D84: 0 | E84: FALSE | F84: FALSE | H84: 1 | I84: 1 | J84: 1 | K84: 0.99 | M84: 1 | N84: 68 | O84: 68
A85: 69 | B85: 1 | C85: yes | D85: 0 | E85: FALSE | F85: FALSE | H85: 1 | I85: 1 | J85: 1 | K85: 0.99 | M85: 1 | N85: 69 | O85: 69
A86: 70 | B86: 1 | C86: yes | D86: 0 | E86: FALSE | F86: FALSE | H86: 1 | I86: 1 | J86: 1 | K86: 0.99 | M86: 1 | N86: 70 | O86: 70
A87: 71 | B87: 1 | C87: yes | D87: 0 | E87: FALSE | F87: FALSE | H87: 1 | I87: 1 | J87: 1 | K87: 0.99 | M87: 1 | N87: 71 | O87: 71
A88: 72 | B88: 1 | C88: yes | D88: 0 | E88: FALSE | F88: FALSE | H88: 1 | I88: 1 | J88: 1 | K88: 0.99 | M88: 1 | N88: 72 | O88: 72
A89: 73 | B89: 1 | C89: yes | D89: 0 | E89: FALSE | F89: FALSE | H89: 1 | I89: 1 | J89: 1 | K89: 0.99 | M89: 1 | N89: 73 | O89: 73
A90: 74 | B90: 1 | C90: yes | D90: 0 | E90: FALSE | F90: FALSE | H90: 1 | I90: 1 | J90: 1 | K90: 0.99 | M90: 1 | N90: 74 | O90: 74
A91: 75 | B91: 1 | C91: yes | D91: 0 | E91: FALSE | F91: FALSE | H91: 1 | I91: 1 | J91: 1 | K91: 0.99 | M91: 1 | N91: 75 | O91: 75
A92: 76 | B92: 1 | C92: yes | D92: 0 | E92: FALSE | F92: FALSE | H92: 1 | I92: 1 | J92: 1 | K92: 0.99 | M92: 1 | N92: 76 | O92: 76
A93: 77 | B93: 1 | C93: yes | D93: 0 | E93: FALSE | F93: FALSE | H93: 1 | I93: 1 | J93: 1 | K93: 0.99 | M93: 1 | N93: 77 | O93: 77
A94: 78 | B94: 1 | C94: yes | D94: 0 | E94: FALSE | F94: FALSE | H94: 1 | I94: 1 | J94: 1 | K94: 0.99 | M94: 1 | N94: 78 | O94: 78
A95: 79 | B95: 1 | C95: yes | D95: 0 | E95: FALSE | F95: FALSE | H95: 1 | I95: 1 | J95: 1 | K95: 0.99 | M95: 1 | N95: 79 | O95: 79
A96: 80 | B96: 1 | C96: yes | D96: 0 | E96: FALSE | F96: FALSE | H96: 1 | I96: 1 | J96: 1 | K96: 0.99 | M96: 1 | N96: 80 | O96: 80
A97: 81 | B97: 1 | C97: yes | D97: 0 | E97: FALSE | F97: FALSE | H97: 1 | I97: 1 | J97: 1 | K97: 0.99 | M97: 1 | N97: 81 | O97: 81
A98: 82 | B98: 1 | C98: yes | D98: 0 | E98: FALSE | F98: FALSE | H98: 1 | I98: 1 | J98: 1 | K98: 0.99 | M98: 1 | N98: 82 | O98: 82
A99: 83 | B99: 1 | C99: yes | D99: 0 | E99: FALSE | F99: FALSE | H99: 1 | I99: 1 | J99: 1 | K99: 0.99 | M99: 1 | N99: 83 | O99: 83
A100: 84 | B100: 1 | C100: yes | D100: 0 | E100: FALSE | F100: FALSE | H100: 1 | I100: 1 | J100: 1 | K100: 0.99 | M100: 1 | N100: 84 | O100: 84
A101: 85 | B101: 1 | C101: yes | D101: 0 | E101: FALSE | F101: FALSE | H101: 1 | I101: 1 | J101: 1 | K101: 0.99 | M101: 1 | N101: 85 | O101: 85
A102: 86 | B102: 1 | C102: yes | D102: 0 | E102: FALSE | F102: FALSE | H102: 1 | I102: 1 | J102: 1 | K102: 0.99 | M102: 1 | N102: 86 | O102: 86
A103: 87 | B103: 1 | C103: yes | D103: 0 | E103: FALSE | F103: FALSE | H103: 1 | I103: 1 | J103: 1 | K103: 0.99 | M103: 1 | N103: 87 | O103: 87
A104: 88 | B104: 1 | C104: yes | D104: 0 | E104: FALSE | F104: FALSE | H104: 1 | I104: 1 | J104: 1 | K104: 0.99 | M104: 1 | N104: 88 | O104: 88
A105: 89 | B105: 1 | C105: yes | D105: 0 | E105: FALSE | F105: FALSE | H105: 1 | I105: 1 | J105: 1 | K105: 0.99 | M105: 1 | N105: 89 | O105: 89
A106: 90 | B106: 1 | C106: yes | D106: 0 | E106: FALSE | F106: FALSE | H106: 1 | I106: 1 | J106: 1 | K106: 0.99 | M106: 1 | N106: 90 | O106: 90
A107: 91 | B107: 1 | C107: yes | D107: 0 | E107: FALSE | F107: FALSE | H107: 1 | I107: 1 | J107: 1 | K107: 0.99 | M107: 1 | N107: 91 | O107: 91
A108: 92 | B108: 1 | C108: yes | D108: 0 | E108: FALSE | F108: FALSE | H108: 1 | I108: 1 | J108: 1 | K108: 0.99 | M108: 1 | N108: 92 | O108: 92
A109: 93 | B109: 1 | C109: yes | D109: 0 | E109: FALSE | F109: FALSE | H109: 1 | I109: 1 | J109: 1 | K109: 0.99 | M109: 1 | N109: 93 | O109: 93
A110: 94 | B110: 1 | C110: yes | D110: 0 | E110: FALSE | F110: FALSE | H110: 1 | I110: 1 | J110: 1 | K110: 0.99 | M110: 1 | N110: 94 | O110: 94
A111: 95 | B111: 1 | C111: yes | D111: 0 | E111: FALSE | F111: FALSE | H111: 1 | I111: 1 | J111: 1 | K111: 0.99 | M111: 1 | N111: 95 | O111: 95
A112: 96 | B112: 1 | C112: yes | D112: 0 | E112: FALSE | F112: FALSE | H112: 1 | I112: 1 | J112: 1 | K112: 0.99 | M112: 1 | N112: 96 | O112: 96
A113: 97 | B113: 1 | C113: yes | D113: 0 | E113: FALSE | F113: FALSE | H113: 1 | I113: 1 | J113: 1 | K113: 0.99 | M113: 1 | N113: 97 | O113: 97
A114: 98 | B114: 1 | C114: yes | D114: 0 | E114: FALSE | F114: FALSE | H114: 1 | I114: 1 | J114: 1 | K114: 0.99 | M114: 1 | N114: 98 | O114: 98
A115: 99 | B115: 1 | C115: yes | D115: 0 | E115: FALSE | F115: FALSE | H115: 1 | I115: 1 | J115: 1 | K115: 0.99 | M115: 1 | N115: 99 | O115: 99
A116: 100 | B116: 1 | C116: yes | D116: 0 | E116: FALSE | F116: FALSE | H116: 1 | I116: 1 | J116: 1 | K116: 0.99 | M116: 1 | N116: 100 | O116: 100
A117: 101 | B117: 1 | C117: yes | D117: 0 | E117: FALSE | F117: FALSE | H117: 1 | I117: 1 | J117: 1 | K117: 0.99 | M117: 1 | N117: 101 | O117: 101
A118: 102 | B118: 1 | C118: yes | D118: 0 | E118: FALSE | F118: FALSE | H118: 1 | I118: 1 | J118: 1 | K118: 0.99 | M118: 1 | N118: 102 | O118: 102
A119: 103 | B119: 1 | C119: yes | D119: 0 | E119: FALSE | F119: FALSE | H119: 1 | I119: 1 | J119: 1 | K119: 0.99 | M119: 1 | N119: 103 | O119: 103
A120: 104 | B120: 1 | C120: yes | D120: 0 | E120: FALSE | F120: FALSE | H120: 1 | I120: 1 | J120: 1 | K120: 0.99 | M120: 1 | N120: 104 | O120: 104
A121: 105 | B121: 1 | C121: yes | D121: 0 | E121: FALSE | F121: FALSE | H121: 1 | I121: 1 | J121: 1 | K121: 0.99 | M121: 1 | N121: 105 | O121: 105
A122: 106 | B122: 1 | C122: yes | D122: 0 | E122: FALSE | F122: FALSE | H122: 1 | I122: 1 | J122: 1 | K122: 0.99 | M122: 1 | N122: 106 | O122: 106
A123: 107 | B123: 1 | C123: yes | D123: 0 | E123: FALSE | F123: FALSE | H123: 1 | I123: 1 | J123: 1 | K123: 0.99 | M123: 1 | N123: 107 | O123: 107
A124: 108 | B124: 1 | C124: yes | D124: 0 | E124: FALSE | F124: FALSE | H124: 1 | I124: 1 | J124: 1 | K124: 0.99 | M124: 1 | N124: 108 | O124: 108
A125: 109 | B125: 1 | C125: yes | D125: 0 | E125: FALSE | F125: FALSE | H125: 1 | I125: 1 | J125: 1 | K125: 0.99 | M125: 1 | N125: 109 | O125: 109
A126: 110 | B126: 1 | C126: yes | D126: 0 | E126: FALSE | F126: FALSE | H126: 1 | I126: 1 | J126: 1 | K126: 0.99 | M126: 1 | N126: 110 | O126: 110
A127: 111 | B127: 1 | C127: yes | D127: 0 | E127: FALSE | F127: FALSE | H127: 1 | I127: 1 | J127: 1 | K127: 0.99 | M127: 1 | N127: 111 | O127: 111
A128: 112 | B128: 1 | C128: yes | D128: 0 | E128: FALSE | F128: FALSE | H128: 1 | I128: 1 | J128: 1 | K128: 0.99 | M128: 1 | N128: 112 | O128: 112
A129: 113 | B129: 1 | C129: yes | D129: 0 | E129: FALSE | F129: FALSE | H129: 1 | I129: 1 | J129: 1 | K129: 0.99 | M129: 1 | N129: 113 | O129: 113
A130: 114 | B130: 1 | C130: yes | D130: 0 | E130: FALSE | F130: FALSE | H130: 1 | I130: 1 | J130: 1 | K130: 0.99 | M130: 1 | N130: 114 | O130: 114
A131: 115 | B131: 1 | C131: yes | D131: 0 | E131: FALSE | F131: FALSE | H131: 1 | I131: 1 | J131: 1 | K131: 0.99 | M131: 1 | N131: 115 | O131: 115
A132: 116 | B132: 1 | C132: yes | D132: 0 | E132: FALSE | F132: FALSE | H132: 1 | I132: 1 | J132: 1 | K132: 0.99 | M132: 1 | N132: 116 | O132: 116
A133: 117 | B133: 1 | C133: yes | D133: 0 | E133: FALSE | F133: FALSE | H133: 1 | I133: 1 | J133: 1 | K133: 0.99 | M133: 1 | N133: 117 | O133: 117
A134: 118 | B134: 1 | C134: yes | D134: 0 | E134: FALSE | F134: FALSE | H134: 1 | I134: 1 | J134: 1 | K134: 0.99 | M134: 1 | N134: 118 | O134: 118
A135: 119 | B135: 1 | C135: yes | D135: 0 | E135: FALSE | F135: FALSE | H135: 1 | I135: 1 | J135: 1 | K135: 0.99 | M135: 1 | N135: 119 | O135: 119
A136: 120 | B136: 1 | C136: yes | D136: 0 | E136: FALSE | F136: FALSE | H136: 1 | I136: 1 | J136: 1 | K136: 0.99 | M136: 1 | N136: 120 | O136: 120
A137: 121 | B137: 1 | C137: yes | D137: 0 | E137: FALSE | F137: FALSE | H137: 1 | I137: 1 | J137: 1 | K137: 0.99 | M137: 1 | N137: 121 | O137: 121
A138: 122 | B138: 1 | C138: yes | D138: 0 | E138: FALSE | F138: FALSE | H138: 1 | I138: 1 | J138: 1 | K138: 0.99 | M138: 1 | N138: 122 | O138: 122
A139: 123 | B139: 1 | C139: yes | D139: 0 | E139: FALSE | F139: FALSE | H139: 1 | I139: 1 | J139: 1 | K139: 0.99 | M139: 1 | N139: 123 | O139: 123
A140: 124 | B140: 1 | C140: yes | D140: 0 | E140: FALSE | F140: FALSE | H140: 1 | I140: 1 | J140: 1 | K140: 0.99 | M140: 1 | N140: 124 | O140: 124
A141: 125 | B141: 1 | C141: yes | D141: 0 | E141: FALSE | F141: FALSE | H141: 1 | I141: 1 | J141: 1 | K141: 0.99 | M141: 1 | N141: 125 | O141: 125
A142: 126 | B142: 1 | C142: yes | D142: 0 | E142: FALSE | F142: FALSE | H142: 1 | I142: 1 | J142: 1 | K142: 0.99 | M142: 1 | N142: 126 | O142: 126
A143: 127 | B143: 1 | C143: yes | D143: 0 | E143: FALSE | F143: FALSE | H143: 1 | I143: 1 | J143: 1 | K143: 0.99 | M143: 1 | N143: 127 | O143: 127
A144: 128 | B144: 1 | C144: yes | D144: 0 | E144: FALSE | F144: FALSE | H144: 1 | I144: 1 | J144: 1 | K144: 0.99 | M144: 1 | N144: 128 | O144: 128
A145: =$O145 -> 129 | B145: =IF(A145="","",IF($B$13=0,($H145),(IF($B$13=1,$I145,$J145)))) -> 1 | C145: yes | D145: 0 | E145: FALSE | F145: FALSE | H145: 1 | I145: 1 | J145: 1 | K145: 0.99 | M145: 1 | N145: 129 | O145: =IF($N145>$B$11,"",$N145) -> 129
A146: 130 | B146: 1 | C146: =IF(A146="","",IF(ISERROR(B146),"no",IF(($B146)>=$B$14,"yes","no"))) -> yes | D146: =IF(A146="","",IF(A146<($B$12),(HYPGEOMDIST($A146,$A146,($B$12)-1,$B$11)),0)) -> 0 | E146: =IF(A146="","",IF(A146<=($B$12),HYPGEOMDIST($A146-1,$A146,($B$12)-1,$B$11))) -> FALSE | F146: FALSE | H146: =IF($A146="","",1-D146) -> 1 | I146: =IF($A146="","",H146-E146) -> 1 | J146: =IF($A146="","",I146-F146) -> 1 | K146: =IF($B146="","",$B$14) -> 0.99 | M146: =IF(ISERROR(B146),"",IF(B146>=$B$14,B146,"not meet")) -> 1 | N146: =ROW()-16 -> 130 | O146: 130
A147: 131 | B147: 1 | C147: yes | D147: 0 | E147: FALSE | F147: =IF(A147="","",IF(OR(A147<2,B$11=B$12),"0",IF(A147<B$12+2,HYPGEOMDIST(A147-2,A147,B$12-1,B$11)))) -> FALSE | H147: 1 | I147: 1 | J147: 1 | K147: 0.99 | M147: 1 | N147: 131 | O147: 131
A148: 132 | B148: 1 | C148: yes | D148: 0 | E148: FALSE | F148: FALSE | H148: 1 | I148: 1 | J148: 1 | K148: 0.99 | M148: 1 | N148: 132 | O148: 132
A149: 133 | B149: 1 | C149: yes | D149: 0 | E149: FALSE | F149: FALSE | H149: 1 | I149: 1 | J149: 1 | K149: 0.99 | M149: 1 | N149: 133 | O149: 133
A150: 134 | B150: 1 | C150: yes | D150: 0 | E150: FALSE | F150: FALSE | H150: 1 | I150: 1 | J150: 1 | K150: 0.99 | M150: 1 | N150: 134 | O150: 134
A151: 135 | B151: 1 | C151: yes | D151: 0 | E151: FALSE | F151: FALSE | H151: 1 | I151: 1 | J151: 1 | K151: 0.99 | M151: 1 | N151: 135 | O151: 135
A152: 136 | B152: 1 | C152: yes | D152: 0 | E152: FALSE | F152: FALSE | H152: 1 | I152: 1 | J152: 1 | K152: 0.99 | M152: 1 | N152: 136 | O152: 136
A153: 137 | B153: 1 | C153: yes | D153: 0 | E153: FALSE | F153: FALSE | H153: 1 | I153: 1 | J153: 1 | K153: 0.99 | M153: 1 | N153: 137 | O153: 137
A154: 138 | B154: 1 | C154: yes | D154: 0 | E154: FALSE | F154: FALSE | H154: 1 | I154: 1 | J154: 1 | K154: 0.99 | M154: 1 | N154: 138 | O154: 138
A155: 139 | B155: 1 | C155: yes | D155: 0 | E155: FALSE | F155: FALSE | H155: 1 | I155: 1 | J155: 1 | K155: 0.99 | M155: 1 | N155: 139 | O155: 139
A156: 140 | B156: 1 | C156: yes | D156: 0 | E156: FALSE | F156: FALSE | H156: 1 | I156: 1 | J156: 1 | K156: 0.99 | M156: 1 | N156: 140 | O156: 140
A157: 141 | B157: 1 | C157: yes | D157: 0 | E157: FALSE | F157: FALSE | H157: 1 | I157: 1 | J157: 1 | K157: 0.99 | M157: 1 | N157: 141 | O157: 141
A158: 142 | B158: 1 | C158: yes | D158: 0 | E158: FALSE | F158: FALSE | H158: 1 | I158: 1 | J158: 1 | K158: 0.99 | M158: 1 | N158: 142 | O158: 142
A159: 143 | B159: 1 | C159: yes | D159: 0 | E159: FALSE | F159: FALSE | H159: 1 | I159: 1 | J159: 1 | K159: 0.99 | M159: 1 | N159: 143 | O159: 143
A160: 144 | B160: 1 | C160: yes | D160: 0 | E160: FALSE | F160: FALSE | H160: 1 | I160: 1 | J160: 1 | K160: 0.99 | M160: 1 | N160: 144 | O160: 144
A161: 145 | B161: 1 | C161: yes | D161: 0 | E161: FALSE | F161: FALSE | H161: 1 | I161: 1 | J161: 1 | K161: 0.99 | M161: 1 | N161: 145 | O161: 145
A162: 146 | B162: 1 | C162: yes | D162: 0 | E162: FALSE | F162: FALSE | H162: 1 | I162: 1 | J162: 1 | K162: 0.99 | M162: 1 | N162: 146 | O162: 146
A163: 147 | B163: 1 | C163: yes | D163: 0 | E163: FALSE | F163: FALSE | H163: 1 | I163: 1 | J163: 1 | K163: 0.99 | M163: 1 | N163: 147 | O163: 147
A164: 148 | B164: 1 | C164: yes | D164: 0 | E164: FALSE | F164: FALSE | H164: 1 | I164: 1 | J164: 1 | K164: 0.99 | M164: 1 | N164: 148 | O164: 148
A165: 149 | B165: 1 | C165: yes | D165: 0 | E165: FALSE | F165: FALSE | H165: 1 | I165: 1 | J165: 1 | K165: 0.99 | M165: 1 | N165: 149 | O165: 149
A166: 150 | B166: 1 | C166: yes | D166: 0 | E166: FALSE | F166: FALSE | H166: 1 | I166: 1 | J166: 1 | K166: 0.99 | M166: 1 | N166: 150 | O166: 150
A167: 151 | B167: 1 | C167: yes | D167: 0 | E167: FALSE | F167: FALSE | H167: 1 | I167: 1 | J167: 1 | K167: 0.99 | M167: 1 | N167: 151 | O167: 151
A168: 152 | B168: 1 | C168: yes | D168: 0 | E168: FALSE | F168: FALSE | H168: 1 | I168: 1 | J168: 1 | K168: 0.99 | M168: 1 | N168: 152 | O168: 152
A169: 153 | B169: 1 | C169: yes | D169: 0 | E169: FALSE | F169: FALSE | H169: 1 | I169: 1 | J169: 1 | K169: 0.99 | M169: 1 | N169: 153 | O169: 153
A170: 154 | B170: 1 | C170: yes | D170: 0 | E170: FALSE | F170: FALSE | H170: 1 | I170: 1 | J170: 1 | K170: 0.99 | M170: 1 | N170: 154 | O170: 154
A171: 155 | B171: 1 | C171: yes | D171: 0 | E171: FALSE | F171: FALSE | H171: 1 | I171: 1 | J171: 1 | K171: 0.99 | M171: 1 | N171: 155 | O171: 155
A172: 156 | B172: 1 | C172: yes | D172: 0 | E172: FALSE | F172: FALSE | H172: 1 | I172: 1 | J172: 1 | K172: 0.99 | M172: 1 | N172: 156 | O172: 156
A173: 157 | B173: 1 | C173: yes | D173: 0 | E173: FALSE | F173: FALSE | H173: 1 | I173: 1 | J173: 1 | K173: 0.99 | M173: 1 | N173: 157 | O173: 157
A174: 158 | B174: 1 | C174: yes | D174: 0 | E174: FALSE | F174: FALSE | H174: 1 | I174: 1 | J174: 1 | K174: 0.99 | M174: 1 | N174: 158 | O174: 158
A175: 159 | B175: 1 | C175: yes | D175: 0 | E175: FALSE | F175: FALSE | H175: 1 | I175: 1 | J175: 1 | K175: 0.99 | M175: 1 | N175: 159 | O175: 159
A176: 160 | B176: 1 | C176: yes | D176: 0 | E176: FALSE | F176: FALSE | H176: 1 | I176: 1 | J176: 1 | K176: 0.99 | M176: 1 | N176: 160 | O176: 160
N177: 161
N178: 162
N179: 163
N180: 164
N181: 165
N182: 166
N183: 167
N184: 168
N185: 169
N186: 170
N187: 171
N188: 172
N189: 173
N190: 174
N191: 175
N192: 176
N193: 177
N194: 178
N195: 179
N196: 180
N197: 181
N198: 182
N199: 183
N200: 184
... 816 more rows

Sheet Bayesian N<50
A1: Calculation based on probability that Y > g using the Beta-Binomial Distribution
A5: At least requested proportion (k) of population (N) contain drugs at a confidence level of at least (1-α), if (n-r) tested samples are positive.
A6: Enter data (steps 1 to 6) and see results (step 7) | C6: Max. population size Nmax allowed:
C7: 49
A8: =IF(B8>$C$10,"Nmax ="&C7,"Step 1: Enter population size (N) = number of samples in population.") -> Step 1: Enter population size (N) = number of samples in population. | B8: 49 | C8: Step 5: Enter value a
A9: Step 2: Enter proportion (k) of positives in population: (range: 0.0001<k<=1) | B9: 0.5 | C9: 1
A10: Step 3: Enter expected number of negatives (r): (at max. 2) | B10: 0 | C10: Step 6: Enter value b
A11: Step 4: Enter confidence level (CL) (1-a) (range:0.0001<=CL<=0.9999) | B11: 0.99 | C11: 1
A12: Step 7: Sample size (n) | B12: =1+COUNTIF(C:C,"no") -> 6
A13: Sample Size (n) | B13: =IF(B8>=50, "R(q)>k","R(U>=g)") -> R(U>=g) | C13: confidence level criteria fits?
A22: 1 | B22: =IF($B$8>=50,(IF($B$10=0,(1-#REF!),(IF($B$10=1,(1-#REF!),(1-#REF!))))),IF($B$10=0,($C1028),(IF($B$10=1,($F1028),($I1028))))) -> 0.7551020408 | C22: =IF($A22>=$B$8,"",IF($B$8<50,IF($B$10=2, $J1028, IF($B$10=1,$G1028,$D1028)),IF($B22>=$B$11,"yes","no"))) -> no | D22: =$B$11 -> 0.99
A23: 2 | B23: =IF($B$8>=50,(IF($B$10=0,(1-#REF!),(IF($B$10=1,(1-#REF!),(1-#REF!))))),IF($B$10=0,($C1029),(IF($B$10=1,($F1029),($I1029))))) -> 0.8226530612 | C23: no | D23: 0.99
A24: 3 | B24: =IF($B$8>=50,(IF($B$10=0,(1-#REF!),(IF($B$10=1,(1-#REF!),(1-#REF!))))),IF($B$10=0,($C1030),(IF($B$10=1,($F1030),($I1030))))) -> 0.9450716457 | C24: no | D24: 0.99
A25: 4 | B25: =IF($B$8>=50,(IF($B$10=0,(1-#REF!),(IF($B$10=1,(1-#REF!),(1-#REF!))))),IF($B$10=0,($C1031),(IF($B$10=1,($F1031),($I1031))))) -> 0.9749240122 | C25: no | D25: 0.99
A26: 5 | B26: =IF($B$8>=50,(IF($B$10=0,(1-#REF!),(IF($B$10=1,(1-#REF!),(1-#REF!))))),IF($B$10=0,($C1032),(IF($B$10=1,($F1032),($I1032))))) -> 0.9888551165 | C26: no | D26: 0.99
A27: 6 | B27: =IF($B$8>=50,(IF($B$10=0,(1-#REF!),(IF($B$10=1,(1-#REF!),(1-#REF!))))),IF($B$10=0,($C1033),(IF($B$10=1,($F1033),($I1033))))) -> 0.9951874367 | C27: yes | D27: 0.99
A28: 7 | B28: =IF($B$8>=50,(IF($B$10=0,(1-#REF!),(IF($B$10=1,(1-#REF!),(1-#REF!))))),IF($B$10=0,($C1034),(IF($B$10=1,($F1034),($I1034))))) -> 0.9979854386 | C28: yes | D28: 0.99
A29: 8 | B29: =IF($B$8>=50,(IF($B$10=0,(1-#REF!),(IF($B$10=1,(1-#REF!),(1-#REF!))))),IF($B$10=0,($C1035),(IF($B$10=1,($F1035),($I1035))))) -> 0.9991845823 | C29: yes | D29: 0.99
A30: 9 | B30: =IF($B$8>=50,(IF($B$10=0,(1-#REF!),(IF($B$10=1,(1-#REF!),(1-#REF!))))),IF($B$10=0,($C1036),(IF($B$10=1,($F1036),($I1036))))) -> 0.9996817882 | C30: yes | D30: 0.99
A31: 10 | B31: =IF($B$8>=50,(IF($B$10=0,(1-#REF!),(IF($B$10=1,(1-#REF!),(1-#REF!))))),IF($B$10=0,($C1037),(IF($B$10=1,($F1037),($I1037))))) -> 0.9998806706 | C31: yes | D31: 0.99
A32: 11 | B32: =IF($B$8>=50,(IF($B$10=0,(1-#REF!),(IF($B$10=1,(1-#REF!),(1-#REF!))))),IF($B$10=0,($C1038),(IF($B$10=1,($F1038),($I1038))))) -> 0.9999571638 | C32: yes | D32: 0.99
A33: 12 | B33: =IF($B$8>=50,(IF($B$10=0,(1-#REF!),(IF($B$10=1,(1-#REF!),(1-#REF!))))),IF($B$10=0,($C1039),(IF($B$10=1,($F1039),($I1039))))) -> 0.9999853455 | C33: yes | D33: 0.99
A34: 13 | B34: =IF($B$8>=50,(IF($B$10=0,(1-#REF!),(IF($B$10=1,(1-#REF!),(1-#REF!))))),IF($B$10=0,($C1040),(IF($B$10=1,($F1040),($I1040))))) -> 0.9999952472 | C34: yes | D34: 0.99
A35: 14 | B35: =IF($B$8>=50,(IF($B$10=0,(1-#REF!),(IF($B$10=1,(1-#REF!),(1-#REF!))))),IF($B$10=0,($C1041),(IF($B$10=1,($F1041),($I1041))))) -> 0.9999985478 | C35: yes | D35: 0.99
A36: 15 | B36: =IF($B$8>=50,(IF($B$10=0,(1-#REF!),(IF($B$10=1,(1-#REF!),(1-#REF!))))),IF($B$10=0,($C1042),(IF($B$10=1,($F1042),($I1042))))) -> 0.9999995851 | C36: yes | D36: 0.99
A37: 16 | B37: =IF($B$8>=50,(IF($B$10=0,(1-#REF!),(IF($B$10=1,(1-#REF!),(1-#REF!))))),IF($B$10=0,($C1043),(IF($B$10=1,($F1043),($I1043))))) -> 0.9999998902 | C37: yes | D37: 0.99
A38: 17 | B38: =IF($B$8>=50,(IF($B$10=0,(1-#REF!),(IF($B$10=1,(1-#REF!),(1-#REF!))))),IF($B$10=0,($C1044),(IF($B$10=1,($F1044),($I1044))))) -> 0.9999999734 | C38: yes | D38: 0.99
A39: 18 | B39: =IF($B$8>=50,(IF($B$10=0,(1-#REF!),(IF($B$10=1,(1-#REF!),(1-#REF!))))),IF($B$10=0,($C1045),(IF($B$10=1,($F1045),($I1045))))) -> 0.9999999942 | C39: yes | D39: 0.99
A40: 19 | B40: =IF($B$8>=50,(IF($B$10=0,(1-#REF!),(IF($B$10=1,(1-#REF!),(1-#REF!))))),IF($B$10=0,($C1046),(IF($B$10=1,($F1046),($I1046))))) -> 0.9999999989 | C40: yes | D40: 0.99
A41: 20 | B41: =IF($B$8>=50,(IF($B$10=0,(1-#REF!),(IF($B$10=1,(1-#REF!),(1-#REF!))))),IF($B$10=0,($C1047),(IF($B$10=1,($F1047),($I1047))))) -> 0.9999999998 | C41: yes | D41: 0.99
A42: 21 | B42: =IF($B$8>=50,(IF($B$10=0,(1-#REF!),(IF($B$10=1,(1-#REF!),(1-#REF!))))),IF($B$10=0,($C1048),(IF($B$10=1,($F1048),($I1048))))) -> 1 | C42: yes | D42: 0.99
A43: 22 | B43: =IF($B$8>=50,(IF($B$10=0,(1-#REF!),(IF($B$10=1,(1-#REF!),(1-#REF!))))),IF($B$10=0,($C1049),(IF($B$10=1,($F1049),($I1049))))) -> 1 | C43: yes | D43: 0.99
A44: 23 | B44: =IF($B$8>=50,(IF($B$10=0,(1-#REF!),(IF($B$10=1,(1-#REF!),(1-#REF!))))),IF($B$10=0,($C1050),(IF($B$10=1,($F1050),($I1050))))) -> 1 | C44: yes | D44: 0.99
A45: 24 | B45: =IF($B$8>=50,(IF($B$10=0,(1-#REF!),(IF($B$10=1,(1-#REF!),(1-#REF!))))),IF($B$10=0,($C1051),(IF($B$10=1,($F1051),($I1051))))) -> 1 | C45: yes | D45: 0.99
A46: 25 | B46: =IF($B$8>=50,(IF($B$10=0,(1-#REF!),(IF($B$10=1,(1-#REF!),(1-#REF!))))),IF($B$10=0,($C1052),(IF($B$10=1,($F1052),($I1052))))) -> 1 | C46: yes | D46: 0.99
A47: 26 | B47: =IF($B$8>=50,(IF($B$10=0,(1-#REF!),(IF($B$10=1,(1-#REF!),(1-#REF!))))),IF($B$10=0,($C1053),(IF($B$10=1,($F1053),($I1053))))) -> 1 | C47: yes | D47: 0.99
A48: 27 | B48: =IF($B$8>=50,(IF($B$10=0,(1-#REF!),(IF($B$10=1,(1-#REF!),(1-#REF!))))),IF($B$10=0,($C1054),(IF($B$10=1,($F1054),($I1054))))) -> 1 | C48: yes | D48: 0.99
A49: 28 | B49: =IF($B$8>=50,(IF($B$10=0,(1-#REF!),(IF($B$10=1,(1-#REF!),(1-#REF!))))),IF($B$10=0,($C1055),(IF($B$10=1,($F1055),($I1055))))) -> 1 | C49: yes | D49: 0.99
A50: 29 | B50: =IF($B$8>=50,(IF($B$10=0,(1-#REF!),(IF($B$10=1,(1-#REF!),(1-#REF!))))),IF($B$10=0,($C1056),(IF($B$10=1,($F1056),($I1056))))) -> 1 | C50: yes | D50: 0.99
A51: 30 | B51: =IF($B$8>=50,(IF($B$10=0,(1-#REF!),(IF($B$10=1,(1-#REF!),(1-#REF!))))),IF($B$10=0,($C1057),(IF($B$10=1,($F1057),($I1057))))) -> 1 | C51: yes | D51: 0.99
A52: 31 | B52: =IF($B$8>=50,(IF($B$10=0,(1-#REF!),(IF($B$10=1,(1-#REF!),(1-#REF!))))),IF($B$10=0,($C1058),(IF($B$10=1,($F1058),($I1058))))) -> 1 | C52: yes | D52: 0.99
A53: 32 | B53: =IF($B$8>=50,(IF($B$10=0,(1-#REF!),(IF($B$10=1,(1-#REF!),(1-#REF!))))),IF($B$10=0,($C1059),(IF($B$10=1,($F1059),($I1059))))) -> 1 | C53: yes | D53: 0.99
A54: 33 | B54: =IF($B$8>=50,(IF($B$10=0,(1-#REF!),(IF($B$10=1,(1-#REF!),(1-#REF!))))),IF($B$10=0,($C1060),(IF($B$10=1,($F1060),($I1060))))) -> 1 | C54: yes | D54: =$B$11 -> 0.99
A55: 34 | B55: =IF($B$8>=50,(IF($B$10=0,(1-#REF!),(IF($B$10=1,(1-#REF!),(1-#REF!))))),IF($B$10=0,($C1061),(IF($B$10=1,($F1061),($I1061))))) -> 1 | C55: yes | D55: 0.99
A56: 35 | B56: =IF($B$8>=50,(IF($B$10=0,(1-#REF!),(IF($B$10=1,(1-#REF!),(1-#REF!))))),IF($B$10=0,($C1062),(IF($B$10=1,($F1062),($I1062))))) -> 1 | C56: yes | D56: 0.99
A57: 36 | B57: =IF($B$8>=50,(IF($B$10=0,(1-#REF!),(IF($B$10=1,(1-#REF!),(1-#REF!))))),IF($B$10=0,($C1063),(IF($B$10=1,($F1063),($I1063))))) -> 1 | C57: yes | D57: 0.99
A58: 37 | B58: =IF($B$8>=50,(IF($B$10=0,(1-#REF!),(IF($B$10=1,(1-#REF!),(1-#REF!))))),IF($B$10=0,($C1064),(IF($B$10=1,($F1064),($I1064))))) -> 1 | C58: yes | D58: 0.99
A59: 38 | B59: =IF($B$8>=50,(IF($B$10=0,(1-#REF!),(IF($B$10=1,(1-#REF!),(1-#REF!))))),IF($B$10=0,($C1065),(IF($B$10=1,($F1065),($I1065))))) -> 1 | C59: yes | D59: 0.99
A60: 39 | B60: =IF($B$8>=50,(IF($B$10=0,(1-#REF!),(IF($B$10=1,(1-#REF!),(1-#REF!))))),IF($B$10=0,($C1066),(IF($B$10=1,($F1066),($I1066))))) -> 1 | C60: yes | D60: 0.99
A61: 40 | B61: =IF($B$8>=50,(IF($B$10=0,(1-#REF!),(IF($B$10=1,(1-#REF!),(1-#REF!))))),IF($B$10=0,($C1067),(IF($B$10=1,($F1067),($I1067))))) -> 1 | C61: yes | D61: 0.99
A62: 41 | B62: =IF($B$8>=50,(IF($B$10=0,(1-#REF!),(IF($B$10=1,(1-#REF!),(1-#REF!))))),IF($B$10=0,($C1068),(IF($B$10=1,($F1068),($I1068))))) -> 1 | C62: yes | D62: 0.99
A63: 42 | B63: =IF($B$8>=50,(IF($B$10=0,(1-#REF!),(IF($B$10=1,(1-#REF!),(1-#REF!))))),IF($B$10=0,($C1069),(IF($B$10=1,($F1069),($I1069))))) -> 1 | C63: yes | D63: 0.99
A64: 43 | B64: =IF($B$8>=50,(IF($B$10=0,(1-#REF!),(IF($B$10=1,(1-#REF!),(1-#REF!))))),IF($B$10=0,($C1070),(IF($B$10=1,($F1070),($I1070))))) -> 1 | C64: yes | D64: 0.99
A65: 44 | B65: =IF($B$8>=50,(IF($B$10=0,(1-#REF!),(IF($B$10=1,(1-#REF!),(1-#REF!))))),IF($B$10=0,($C1071),(IF($B$10=1,($F1071),($I1071))))) -> 1 | C65: yes | D65: 0.99
A66: 45 | B66: =IF($B$8>=50,(IF($B$10=0,(1-#REF!),(IF($B$10=1,(1-#REF!),(1-#REF!))))),IF($B$10=0,($C1072),(IF($B$10=1,($F1072),($I1072))))) -> 1 | C66: yes | D66: 0.99
A67: 46 | B67: =IF($B$8>=50,(IF($B$10=0,(1-#REF!),(IF($B$10=1,(1-#REF!),(1-#REF!))))),IF($B$10=0,($C1073),(IF($B$10=1,($F1073),($I1073))))) -> 1 | C67: yes | D67: 0.99
A68: 47 | B68: =IF($B$8>=50,(IF($B$10=0,(1-#REF!),(IF($B$10=1,(1-#REF!),(1-#REF!))))),IF($B$10=0,($C1074),(IF($B$10=1,($F1074),($I1074))))) -> 1 | C68: yes | D68: 0.99
A69: 48 | B69: =IF($B$8>=50,(IF($B$10=0,(1-#REF!),(IF($B$10=1,(1-#REF!),(1-#REF!))))),IF($B$10=0,($C1075),(IF($B$10=1,($F1075),($I1075))))) -> 1 | C69: yes | D69: 0.99
A70: 49 | B70: =IF($B$8>=50,(IF($B$10=0,(1-#REF!),(IF($B$10=1,(1-#REF!),(1-#REF!))))),IF($B$10=0,($C1076),(IF($B$10=1,($F1076),($I1076))))) -> 1 | D70: 0.99
A71: 50 | B71: =IF($B$8<50,"",IF($B$10=0,(1-$D71),(IF($B$10=1,(1-$E71),(1-$F71))))) ->  | D71: =BETADIST($B$9,$C$9+$A71,$C$11,0,1) -> 4.440892099e-16 | E71: =BETADIST($B$9,$C$9+$A71-1,$C$11+1,0,1) -> 2.309263891e-14 | F71: =BETADIST($B$9,$C$9+$A71-2,$C$11+2,0,1) -> 5.893063815e-13 | G71: =D71 -> 4.440892099e-16 | H71: =1-G71 -> 1 | I71: =IF(H71>$B$11,"yes","no") -> yes | J71: =E71 -> 2.309263891e-14 | K71: =1-J71 -> 1 | N71: =IF(K71>$B$11,"yes","no") -> yes | O71: =F71 -> 5.893063815e-13 | P71: =1-O71 -> 1 | Q71: =IF(P71>$B$11,"yes","no") -> yes | R71: =$B$11 -> 0.99
A72: 51 | D72: 2.220446049e-16 | E72: 1.176836406e-14 | F72: 3.061995102e-13 | G72: 2.220446049e-16 | H72: 1 | I72: yes | J72: 1.176836406e-14 | K72: 1 | N72: yes | O72: 3.061995102e-13 | P72: 1 | Q72: yes | R72: 0.99
A73: 52 | D73: 1.110223025e-16 | E73: 5.995204333e-15 | F73: 1.589839371e-13 | G73: 1.110223025e-16 | H73: 1 | I73: yes | J73: 5.995204333e-15 | K73: 1 | N73: yes | O73: 1.589839371e-13 | P73: 1 | Q73: yes | R73: 0.99
A74: 53 | D74: 5.551115123e-17 | E74: 3.053113318e-15 | F74: 8.248957073e-14 | G74: 5.551115123e-17 | H74: 1 | I74: yes | J74: 3.053113318e-15 | K74: 1 | N74: yes | O74: 8.248957073e-14 | P74: 1 | Q74: yes | R74: 0.99
A75: 54 | D75: 2.775557562e-17 | E75: 1.554312234e-15 | F75: 4.277134202e-14 | G75: 2.775557562e-17 | H75: 1 | I75: yes | J75: 1.554312234e-15 | K75: 1 | N75: yes | O75: 4.277134202e-14 | P75: 1 | Q75: yes | R75: 0.99
A76: 55 | D76: 1.387778781e-17 | E76: 7.91033905e-16 | F76: 2.216282713e-14 | G76: 1.387778781e-17 | H76: 1 | I76: yes | J76: 7.91033905e-16 | K76: 1 | N76: yes | O76: 2.216282713e-14 | P76: 1 | Q76: yes | R76: 0.99
A77: 56 | D77: 6.938893904e-18 | E77: 4.024558464e-16 | F77: 1.147693052e-14 | G77: 6.938893904e-18 | H77: 1 | I77: yes | J77: 4.024558464e-16 | K77: 1 | N77: yes | O77: 1.147693052e-14 | P77: 1 | Q77: yes | R77: 0.99
A78: 57 | D78: 3.469446952e-18 | E78: 2.046973702e-16 | F78: 5.939693182e-15 | G78: 3.469446952e-18 | H78: 1 | I78: yes | J78: 2.046973702e-16 | K78: 1 | N78: yes | O78: 5.939693182e-15 | P78: 1 | Q78: yes | R78: 0.99
A79: 58 | D79: 1.734723476e-18 | E79: 1.040834086e-16 | F79: 3.072195276e-15 | G79: 1.734723476e-18 | H79: 1 | I79: yes | J79: 1.040834086e-16 | K79: 1 | N79: yes | O79: 3.072195276e-15 | P79: 1 | Q79: yes | R79: 0.99
A80: 59 | D80: 8.67361738e-19 | E80: 5.290906602e-17 | F80: 1.588139342e-15 | G80: 8.67361738e-19 | H80: 1 | I80: yes | J80: 5.290906602e-17 | K80: 1 | N80: yes | O80: 1.588139342e-15 | P80: 1 | Q80: yes | R80: 0.99
A81: 60 | D81: 4.33680869e-19 | E81: 2.688821388e-17 | F81: 8.205242041e-16 | G81: 4.33680869e-19 | H81: 1 | I81: yes | J81: 2.688821388e-17 | K81: 1 | N81: yes | O81: 8.205242041e-16 | P81: 1 | Q81: yes | R81: 0.99
A82: 61 | D82: 2.168404345e-19 | E82: 1.366094737e-17 | F82: 4.23706209e-16 | G82: 2.168404345e-19 | H82: 1 | I82: yes | J82: 1.366094737e-17 | K82: 1 | N82: yes | O82: 4.23706209e-16 | P82: 1 | Q82: yes | R82: 0.99
A83: 62 | D83: 1.084202172e-19 | E83: 6.938893904e-18 | F83: 2.186835782e-16 | G83: 1.084202172e-19 | H83: 1 | I83: yes | J83: 6.938893904e-18 | K83: 1 | N83: yes | O83: 2.186835782e-16 | P83: 1 | Q83: yes | R83: 0.99
A84: 63 | D84: 5.421010862e-20 | E84: 3.523657061e-18 | F84: 1.12811236e-16 | G84: 5.421010862e-20 | H84: 1 | I84: yes | J84: 3.523657061e-18 | K84: 1 | N84: yes | O84: 1.12811236e-16 | P84: 1 | Q84: yes | R84: 0.99
A85: 64 | D85: 2.710505431e-20 | E85: 1.788933585e-18 | F85: 5.816744655e-17 | G85: 2.710505431e-20 | H85: 1 | I85: yes | J85: 1.788933585e-18 | K85: 1 | N85: yes | O85: 5.816744655e-17 | P85: 1 | Q85: yes | R85: 0.99
A86: 65 | C86: =IF($A86>=$B$8,"",IF($B$8<50,IF($B$10=2, $J1092, IF($B$10=1,$G1092,$D1092)),IF($B86>=$B$11,"yes","no"))) ->  | D86: 1.355252716e-20 | E86: 9.080193195e-19 | F86: 2.997819007e-17 | G86: =D86 -> 1.355252716e-20 | H86: =1-G86 -> 1 | I86: yes | J86: =E86 -> 9.080193195e-19 | K86: =1-J86 -> 1 | N86: yes | O86: =F86 -> 2.997819007e-17 | P86: =1-O86 -> 1 | Q86: yes | R86: 0.99
A87: 66 | D87: 6.776263578e-21 | E87: 4.607859233e-19 | F87: 1.544310469e-17 | G87: 6.776263578e-21 | H87: 1 | I87: yes | J87: 4.607859233e-19 | K87: 1 | N87: yes | O87: 1.544310469e-17 | P87: 1 | Q87: yes | R87: 0.99
A88: 67 | D88: 3.388131789e-21 | E88: 2.337810934e-19 | F88: 7.951945309e-18 | G88: 3.388131789e-21 | H88: 1 | I88: yes | J88: 2.337810934e-19 | K88: 1 | N88: yes | O88: 7.951945309e-18 | P88: 1 | Q88: yes | R88: 0.99
A89: 68 | D89: 1.694065895e-21 | E89: 1.185846126e-19 | F89: 4.092863201e-18 | G89: 1.694065895e-21 | H89: 1 | I89: yes | J89: 1.185846126e-19 | K89: 1 | N89: yes | O89: 4.092863201e-18 | P89: 1 | Q89: yes | R89: 0.99
A90: 69 | D90: 8.470329473e-22 | E90: 6.013933926e-20 | F90: 2.105723907e-18 | G90: 8.470329473e-22 | H90: 1 | I90: yes | J90: 6.013933926e-20 | K90: 1 | N90: yes | O90: 2.105723907e-18 | P90: 1 | Q90: yes | R90: 0.99
A91: 70 | D91: 4.235164736e-22 | E91: 3.04931861e-20 | F91: 1.082931623e-18 | G91: 4.235164736e-22 | H91: 1 | I91: yes | J91: 3.04931861e-20 | K91: 1 | N91: yes | O91: 1.082931623e-18 | P91: 1 | Q91: yes | R91: 0.99
A92: 71 | D92: 2.117582368e-22 | E92: 1.545835129e-20 | F92: 5.567124046e-19 | G92: 2.117582368e-22 | H92: 1 | I92: yes | J92: 1.545835129e-20 | K92: 1 | N92: yes | O92: 5.567124046e-19 | P92: 1 | Q92: yes | R92: 0.99
A93: 72 | D93: 1.058791184e-22 | E93: 7.835054762e-21 | F93: 2.860853779e-19 | G93: 1.058791184e-22 | H93: 1 | I93: yes | J93: 7.835054762e-21 | K93: 1 | N93: yes | O93: 2.860853779e-19 | P93: 1 | Q93: yes | R93: 0.99
A94: 73 | D94: 5.29395592e-23 | E94: 3.97046694e-21 | F94: 1.469602163e-19 | G94: 5.29395592e-23 | H94: 1 | I94: yes | J94: 3.97046694e-21 | K94: 1 | N94: yes | O94: 1.469602163e-19 | P94: 1 | Q94: yes | R94: 0.99
A95: 74 | D95: 2.64697796e-23 | E95: 2.01170325e-21 | F95: 7.546534164e-20 | G95: 2.64697796e-23 | H95: 1 | I95: yes | J95: 2.01170325e-21 | K95: 1 | N95: yes | O95: 7.546534164e-20 | P95: 1 | Q95: yes | R95: 0.99
A96: 75 | D96: 1.32348898e-23 | E96: 1.019086515e-21 | F96: 3.873852245e-20 | G96: 1.32348898e-23 | H96: 1 | I96: yes | J96: 1.019086515e-21 | K96: 1 | N96: yes | O96: 3.873852245e-20 | P96: 1 | Q96: yes | R96: 0.99
A97: 76 | D97: 6.6174449e-24 | E97: 5.161607022e-22 | F97: 1.987880448e-20 | G97: 6.6174449e-24 | H97: 1 | I97: yes | J97: 5.161607022e-22 | K97: 1 | N97: yes | O97: 1.987880448e-20 | P97: 1 | Q97: yes | R97: 0.99
A98: 77 | D98: 3.30872245e-24 | E98: 2.613890736e-22 | F98: 1.019748259e-20 | G98: 3.30872245e-24 | H98: 1 | I98: yes | J98: 2.613890736e-22 | K98: 1 | N98: yes | O98: 1.019748259e-20 | P98: 1 | Q98: yes | R98: 0.99
A99: 78 | D99: 1.654361225e-24 | E99: 1.32348898e-22 | F99: 5.229435833e-21 | G99: 1.654361225e-24 | H99: 1 | I99: yes | J99: 1.32348898e-22 | K99: 1 | N99: yes | O99: 5.229435833e-21 | P99: 1 | Q99: yes | R99: 0.99
A100: 79 | D100: 8.271806126e-25 | E100: 6.700162962e-23 | F100: 2.680892365e-21 | G100: 8.271806126e-25 | H100: 1 | I100: yes | J100: 6.700162962e-23 | K100: 1 | N100: yes | O100: 2.680892365e-21 | P100: 1 | Q100: yes | R100: 0.99
A101: 80 | D101: 4.135903063e-25 | E101: 3.391440511e-23 | F101: 1.373946997e-21 | G101: 4.135903063e-25 | H101: 1 | I101: yes | J101: 3.391440511e-23 | K101: 1 | N101: yes | O101: 1.373946997e-21 | P101: 1 | Q101: yes | R101: 0.99
A102: 81 | D102: 2.067951531e-25 | E102: 1.716399771e-23 | F102: 7.039307013e-22 | G102: 2.067951531e-25 | H102: 1 | I102: yes | J102: 1.716399771e-23 | K102: 1 | N102: yes | O102: 7.039307013e-22 | P102: 1 | Q102: yes | R102: 0.99
A103: 82 | D103: 1.033975766e-25 | E103: 8.685396432e-24 | F103: 3.605473495e-22 | G103: 1.033975766e-25 | H103: 1 | I103: yes | J103: 8.685396432e-24 | K103: 1 | N103: yes | O103: 3.605473495e-22 | P103: 1 | Q103: yes | R103: 0.99
A104: 83 | D104: 5.169878828e-26 | E104: 4.394397004e-24 | F104: 1.84616373e-22 | G104: 5.169878828e-26 | H104: 1 | I104: yes | J104: 4.394397004e-24 | K104: 1 | N104: yes | O104: 1.84616373e-22 | P104: 1 | Q104: yes | R104: 0.99
A105: 84 | D105: 2.584939414e-26 | E105: 2.223047896e-24 | F105: 9.450538498e-23 | G105: 2.584939414e-26 | H105: 1 | I105: yes | J105: 2.223047896e-24 | K105: 1 | N105: yes | O105: 9.450538498e-23 | P105: 1 | Q105: yes | R105: 0.99
A106: 85 | D106: 1.292469707e-26 | E106: 1.124448645e-24 | F106: 4.836421644e-23 | G106: 1.292469707e-26 | H106: 1 | I106: yes | J106: 1.124448645e-24 | K106: 1 | N106: yes | O106: 4.836421644e-23 | P106: 1 | Q106: yes | R106: 0.99
A107: 86 | D107: 6.462348536e-27 | E107: 5.686866711e-25 | F107: 2.474433254e-23 | G107: 6.462348536e-27 | H107: 1 | I107: yes | J107: 5.686866711e-25 | K107: 1 | N107: yes | O107: 2.474433254e-23 | P107: 1 | Q107: yes | R107: 0.99
A108: 87 | D108: 3.231174268e-27 | E108: 2.875745098e-25 | F108: 1.265650961e-23 | G108: 3.231174268e-27 | H108: 1 | I108: yes | J108: 2.875745098e-25 | K108: 1 | N108: yes | O108: 1.265650961e-23 | P108: 1 | Q108: yes | R108: 0.99
A109: 88 | D109: 1.615587134e-27 | E109: 1.454028421e-25 | F109: 6.472042058e-24 | G109: 1.615587134e-27 | H109: 1 | I109: yes | J109: 1.454028421e-25 | K109: 1 | N109: yes | O109: 6.472042058e-24 | P109: 1 | Q109: yes | R109: 0.99
A110: 89 | D110: 8.077935669e-28 | E110: 7.350921459e-26 | F110: 3.30872245e-24 | G110: 8.077935669e-28 | H110: 1 | I110: yes | J110: 7.350921459e-26 | K110: 1 | N110: yes | O110: 3.30872245e-24 | P110: 1 | Q110: yes | R110: 0.99
A111: 90 | D111: 4.038967835e-28 | E111: 3.715850408e-26 | F111: 1.691115832e-24 | G111: 4.038967835e-28 | H111: 1 | I111: yes | J111: 3.715850408e-26 | K111: 1 | N111: yes | O111: 1.691115832e-24 | P111: 1 | Q111: yes | R111: 0.99
A112: 91 | D112: 2.019483917e-28 | E112: 1.878120043e-26 | F112: 8.641371682e-25 | G112: 2.019483917e-28 | H112: 1 | I112: yes | J112: 1.878120043e-26 | K112: 1 | N112: yes | O112: 8.641371682e-25 | P112: 1 | Q112: yes | R112: 0.99
A113: 92 | D113: 1.009741959e-28 | E113: 9.491574412e-27 | F113: 4.414591843e-25 | G113: 1.009741959e-28 | H113: 1 | I113: yes | J113: 9.491574412e-27 | K113: 1 | N113: yes | O113: 4.414591843e-25 | P113: 1 | Q113: yes | R113: 0.99
A114: 93 | D114: 5.048709793e-29 | E114: 4.796274304e-27 | F114: 2.254753794e-25 | G114: 5.048709793e-29 | H114: 1 | I114: yes | J114: 4.796274304e-27 | K114: 1 | N114: yes | O114: 2.254753794e-25 | P114: 1 | Q114: yes | R114: 0.99
A115: 94 | D115: 2.524354897e-29 | E115: 2.423380701e-27 | F115: 1.151358268e-25 | G115: 2.524354897e-29 | H115: 1 | I115: yes | J115: 2.423380701e-27 | K115: 1 | N115: yes | O115: 1.151358268e-25 | P115: 1 | Q115: yes | R115: 0.99
A116: 95 | D116: 1.262177448e-29 | E116: 1.224312125e-27 | F116: 5.877960377e-26 | G116: 1.262177448e-29 | H116: 1 | I116: yes | J116: 1.224312125e-27 | K116: 1 | N116: yes | O116: 5.877960377e-26 | P116: 1 | Q116: yes | R116: 0.99
A117: 96 | D117: 6.310887242e-30 | E117: 6.184669497e-28 | F117: 3.000195795e-26 | G117: 6.310887242e-30 | H117: 1 | I117: yes | J117: 6.184669497e-28 | K117: 1 | N117: yes | O117: 3.000195795e-26 | P117: 1 | Q117: yes | R117: 0.99
A118: 97 | D118: 3.155443621e-30 | E118: 3.123889185e-28 | F118: 1.531021245e-26 | G118: 3.155443621e-30 | H118: 1 | I118: yes | J118: 3.123889185e-28 | K118: 1 | N118: yes | O118: 1.531021245e-26 | P118: 1 | Q118: yes | R118: 0.99
A119: 98 | D119: 1.57772181e-30 | E119: 1.57772181e-28 | F119: 7.811300683e-27 | G119: 1.57772181e-30 | H119: 1 | I119: yes | J119: 1.57772181e-28 | K119: 1 | N119: yes | O119: 7.811300683e-27 | P119: 1 | Q119: yes | R119: 0.99
A120: 99 | D120: 7.888609052e-31 | E120: 7.967495143e-29 | F120: 3.984536432e-27 | G120: 7.888609052e-31 | H120: 1 | I120: yes | J120: 7.967495143e-29 | K120: 1 | N120: yes | O120: 3.984536432e-27 | P120: 1 | Q120: yes | R120: 0.99
A121: 100 | D121: 3.944304526e-31 | E121: 4.023190617e-29 | F121: 2.032105692e-27 | G121: 3.944304526e-31 | H121: 1 | I121: yes | J121: 4.023190617e-29 | K121: 1 | N121: yes | O121: 2.032105692e-27 | P121: 1 | Q121: yes | R121: 0.99
A122: 101 | D122: 1.972152263e-31 | E122: 2.031316831e-29 | F122: 1.036168799e-27 | G122: 1.972152263e-31 | H122: 1 | I122: yes | J122: 2.031316831e-29 | K122: 1 | N122: yes | O122: 1.036168799e-27 | P122: 1 | Q122: yes | R122: 0.99
A123: 102 | D123: 9.860761315e-32 | E123: 1.025519177e-29 | F123: 5.282409837e-28 | G123: 9.860761315e-32 | H123: 1 | I123: yes | J123: 1.025519177e-29 | K123: 1 | N123: yes | O123: 5.282409837e-28 | P123: 1 | Q123: yes | R123: 0.99
A124: 103 | D124: 4.930380658e-32 | E124: 5.176899691e-30 | F124: 2.692480877e-28 | G124: 4.930380658e-32 | H124: 1 | I124: yes | J124: 5.176899691e-30 | K124: 1 | N124: yes | O124: 2.692480877e-28 | P124: 1 | Q124: yes | R124: 0.99
A125: 104 | D125: 2.465190329e-32 | E125: 2.613101749e-30 | F125: 1.372124937e-28 | G125: 2.465190329e-32 | H125: 1 | I125: yes | J125: 2.613101749e-30 | K125: 1 | N125: yes | O125: 1.372124937e-28 | P125: 1 | Q125: yes | R125: 0.99
A126: 105 | D126: 1.232595164e-32 | E126: 1.318876826e-30 | F126: 6.991279773e-29 | G126: 1.232595164e-32 | H126: 1 | I126: yes | J126: 1.318876826e-30 | K126: 1 | N126: yes | O126: 6.991279773e-29 | P126: 1 | Q126: yes | R126: 0.99
A127: 106 | D127: 6.162975822e-33 | E127: 6.656013888e-31 | F127: 3.561583728e-29 | G127: 6.162975822e-33 | H127: 1 | I127: yes | J127: 6.656013888e-31 | K127: 1 | N127: yes | O127: 3.561583728e-29 | P127: 1 | Q127: yes | R127: 0.99
A128: 107 | D128: 3.081487911e-33 | E128: 3.358821823e-31 | F128: 1.814071933e-29 | G128: 3.081487911e-33 | H128: 1 | I128: yes | J128: 3.358821823e-31 | K128: 1 | N128: yes | O128: 1.814071933e-29 | P128: 1 | Q128: yes | R128: 0.99
A129: 108 | D129: 1.540743956e-33 | E129: 1.694818351e-31 | F129: 9.238300757e-30 | G129: 1.540743956e-33 | H129: 1 | I129: yes | J129: 1.694818351e-31 | K129: 1 | N129: yes | O129: 9.238300757e-30 | P129: 1 | Q129: yes | R129: 0.99
A130: 109 | D130: 7.703719778e-34 | E130: 8.551128953e-32 | F130: 4.703891296e-30 | G130: 7.703719778e-34 | H130: 1 | I130: yes | J130: 8.551128953e-32 | K130: 1 | N130: yes | O130: 4.703891296e-30 | P130: 1 | Q130: yes | R130: 0.99
A131: 110 | D131: 3.851859889e-34 | E131: 4.314083075e-32 | F131: 2.394701293e-30 | G131: 3.851859889e-34 | H131: 1 | I131: yes | J131: 4.314083075e-32 | K131: 1 | N131: yes | O131: 2.394701293e-30 | P131: 1 | Q131: yes | R131: 0.99
A132: 111 | D132: 1.925929944e-34 | E132: 2.176300837e-32 | F132: 1.218921062e-30 | G132: 1.925929944e-34 | H132: 1 | I132: yes | J132: 2.176300837e-32 | K132: 1 | N132: yes | O132: 1.218921062e-30 | P132: 1 | Q132: yes | R132: 0.99
A133: 112 | D133: 9.629649722e-35 | E133: 1.097780068e-32 | F133: 6.203420351e-31 | G133: 9.629649722e-35 | H133: 1 | I133: yes | J133: 1.097780068e-32 | K133: 1 | N133: yes | O133: 6.203420351e-31 | P133: 1 | Q133: yes | R133: 0.99
A134: 113 | D134: 4.814824861e-35 | E134: 5.53704859e-33 | F134: 3.156599179e-31 | G134: 4.814824861e-35 | H134: 1 | I134: yes | J134: 5.53704859e-33 | K134: 1 | N134: yes | O134: 3.156599179e-31 | P134: 1 | Q134: yes | R134: 0.99
A135: 114 | B135: =IF($B$8<50,"",IF($B$10=0,(1-$D135),(IF($B$10=1,(1-$E135),(1-$F135))))) ->  | D135: =BETADIST($B$9,$C$9+$A135,$C$11,0,1) -> 2.40741243e-35 | E135: =BETADIST($B$9,$C$9+$A135-1,$C$11+1,0,1) -> 2.792598419e-33 | F135: =BETADIST($B$9,$C$9+$A135-2,$C$11+2,0,1) -> 1.605984832e-31 | G135: 2.40741243e-35 | H135: 1 | I135: =IF(H135>$B$11,"yes","no") -> yes | J135: 2.792598419e-33 | K135: 1 | N135: =IF(K135>$B$11,"yes","no") -> yes | O135: 1.605984832e-31 | P135: 1 | Q135: =IF(P135>$B$11,"yes","no") -> yes | R135: =$B$11 -> 0.99
A136: 115 | D136: 1.203706215e-35 | E136: 1.408336272e-33 | F136: 8.169554083e-32 | G136: 1.203706215e-35 | H136: 1 | I136: yes | J136: 1.408336272e-33 | K136: 1 | N136: yes | O136: 8.169554083e-32 | P136: 1 | Q136: yes | R136: 0.99
A137: 116 | D137: 6.018531076e-36 | E137: 7.10186667e-34 | F137: 4.155193855e-32 | G137: 6.018531076e-36 | H137: 1 | I137: yes | J137: 7.10186667e-34 | K137: 1 | N137: yes | O137: 4.155193855e-32 | P137: 1 | Q137: yes | R137: 0.99
A138: 117 | D138: 3.009265538e-36 | E138: 3.58102599e-34 | F138: 2.113106261e-32 | G138: 3.009265538e-36 | H138: 1 | I138: yes | J138: 3.58102599e-34 | K138: 1 | N138: yes | O138: 2.113106261e-32 | P138: 1 | Q138: yes | R138: 0.99
A139: 118 | D139: 1.504632769e-36 | E139: 1.805559323e-34 | F139: 1.07445826e-32 | G139: 1.504632769e-36 | H139: 1 | I139: yes | J139: 1.805559323e-34 | K139: 1 | N139: yes | O139: 1.07445826e-32 | P139: 1 | Q139: yes | R139: 0.99
A140: 119 | D140: 7.523163845e-37 | E140: 9.103028253e-35 | F140: 5.462569268e-33 | G140: 7.523163845e-37 | H140: 1 | I140: yes | J140: 9.103028253e-35 | K140: 1 | N140: yes | O140: 5.462569268e-33 | P140: 1 | Q140: yes | R140: 0.99
A141: 120 | D141: 3.761581923e-37 | E141: 4.589129946e-35 | F141: 2.776799775e-33 | G141: 3.761581923e-37 | H141: 1 | I141: yes | J141: 4.589129946e-35 | K141: 1 | N141: yes | O141: 2.776799775e-33 | P141: 1 | Q141: yes | R141: 0.99
A142: 121 | D142: 1.880790961e-37 | E142: 2.313372882e-35 | F142: 1.411345537e-33 | G142: 1.880790961e-37 | H142: 1 | I142: yes | J142: 2.313372882e-35 | K142: 1 | N142: yes | O142: 1.411345537e-33 | P142: 1 | Q142: yes | R142: 0.99
A143: 122 | D143: 9.403954807e-38 | E143: 1.166090396e-35 | F143: 7.172396331e-34 | G143: 9.403954807e-38 | H143: 1 | I143: yes | J143: 1.166090396e-35 | K143: 1 | N143: yes | O143: 7.172396331e-34 | P143: 1 | Q143: yes | R143: 0.99
A144: 123 | D144: 4.701977403e-38 | E144: 5.877471754e-36 | F144: 3.644502685e-34 | G144: 4.701977403e-38 | H144: 1 | I144: yes | J144: 5.877471754e-36 | K144: 1 | N144: yes | O144: 3.644502685e-34 | P144: 1 | Q144: yes | R144: 0.99
A145: 124 | D145: 2.350988702e-38 | E145: 2.962245764e-36 | F145: 1.851638701e-34 | G145: 2.350988702e-38 | H145: 1 | I145: yes | J145: 2.962245764e-36 | K145: 1 | N145: yes | O145: 1.851638701e-34 | P145: 1 | Q145: yes | R145: 0.99
A146: 125 | D146: 1.175494351e-38 | E146: 1.492877826e-36 | F146: 9.406305795e-35 | G146: 1.175494351e-38 | H146: 1 | I146: yes | J146: 1.492877826e-36 | K146: 1 | N146: yes | O146: 9.406305795e-35 | P146: 1 | Q146: yes | R146: 0.99
A147: 126 | D147: 5.877471754e-39 | E147: 7.523163845e-37 | F147: 4.777796789e-35 | G147: 5.877471754e-39 | H147: 1 | I147: yes | J147: 7.523163845e-37 | K147: 1 | N147: yes | O147: 4.777796789e-35 | P147: 1 | Q147: yes | R147: 0.99
A148: 127 | D148: 2.938735877e-39 | E148: 3.790969281e-37 | F148: 2.426514214e-35 | G148: 2.938735877e-39 | H148: 1 | I148: yes | J148: 3.790969281e-37 | K148: 1 | N148: yes | O148: 2.426514214e-35 | P148: 1 | Q148: yes | R148: 0.99
A149: 128 | D149: 1.469367939e-39 | E149: 1.91017832e-37 | F149: 1.232211953e-35 | G149: 1.469367939e-39 | H149: 1 | I149: yes | J149: 1.91017832e-37 | K149: 1 | N149: yes | O149: 1.232211953e-35 | P149: 1 | Q149: yes | R149: 0.99
A150: 129 | C150: =IF($A150>=$B$8,"",IF($B$8<50,IF($B$10=2, $J1156, IF($B$10=1,$G1156,$D1156)),IF($B150>=$B$11,"yes","no"))) ->  | D150: 7.346839693e-40 | E150: 9.624359997e-38 | F150: 6.256568682e-36 | G150: =D150 -> 7.346839693e-40 | H150: =1-G150 -> 1 | I150: yes | J150: =E150 -> 9.624359997e-38 | K150: =1-J150 -> 1 | N150: yes | O150: =F150 -> 6.256568682e-36 | P150: =1-O150 -> 1 | Q150: yes | R150: 0.99
A151: 130 | D151: 3.673419846e-40 | E151: 4.848914197e-38 | F151: 3.176406141e-36 | G151: 3.673419846e-40 | H151: 1 | I151: yes | J151: 4.848914197e-38 | K151: 1 | N151: yes | O151: 3.176406141e-36 | P151: 1 | Q151: yes | R151: 0.99
A152: 131 | D152: 1.836709923e-40 | E152: 2.442824198e-38 | F152: 1.612447642e-36 | G152: 1.836709923e-40 | H152: 1 | I152: yes | J152: 2.442824198e-38 | K152: 1 | N152: yes | O152: 1.612447642e-36 | P152: 1 | Q152: yes | R152: 0.99
A153: 132 | D153: 9.183549616e-41 | E153: 1.230595649e-38 | F153: 8.184379418e-37 | G153: 9.183549616e-41 | H153: 1 | I153: yes | J153: 1.230595649e-38 | K153: 1 | N153: yes | O153: 8.184379418e-37 | P153: 1 | Q153: yes | R153: 0.99
A154: 133 | D154: 4.591774808e-41 | E154: 6.198895991e-39 | F154: 4.153719491e-37 | G154: 4.591774808e-41 | H154: 1 | I154: yes | J154: 6.198895991e-39 | K154: 1 | N154: yes | O154: 4.153719491e-37 | P154: 1 | Q154: yes | R154: 0.99
A155: 134 | D155: 2.295887404e-41 | E155: 3.122406869e-39 | F155: 2.107854226e-37 | G155: 2.295887404e-41 | H155: 1 | I155: yes | J155: 3.122406869e-39 | K155: 1 | N155: yes | O155: 2.107854226e-37 | P155: 1 | Q155: yes | R155: 0.99
A156: 135 | D156: 1.147943702e-41 | E156: 1.572682872e-39 | F156: 1.069539147e-37 | G156: 1.147943702e-41 | H156: 1 | I156: yes | J156: 1.572682872e-39 | K156: 1 | N156: yes | O156: 1.069539147e-37 | P156: 1 | Q156: yes | R156: 0.99
A157: 136 | D157: 5.73971851e-42 | E157: 7.920811544e-40 | F157: 5.426329879e-38 | G157: 5.73971851e-42 | H157: 1 | I157: yes | J157: 7.920811544e-40 | K157: 1 | N157: yes | O157: 5.426329879e-38 | P157: 1 | Q157: yes | R157: 0.99
A158: 137 | D158: 2.869859255e-42 | E158: 3.989104364e-40 | F158: 2.752768997e-38 | G158: 2.869859255e-42 | H158: 1 | I158: yes | J158: 3.989104364e-40 | K158: 1 | N158: yes | O158: 2.752768997e-38 | P158: 1 | Q158: yes | R158: 0.99
A159: 138 | D159: 1.434929627e-42 | E159: 2.008901478e-40 | F159: 1.39633002e-38 | G159: 1.434929627e-42 | H159: 1 | I159: yes | J159: 2.008901478e-40 | K159: 1 | N159: yes | O159: 1.39633002e-38 | P159: 1 | Q159: yes | R159: 0.99
A160: 139 | D160: 7.174648137e-43 | E160: 1.011625387e-40 | F160: 7.082095176e-39 | G160: 7.174648137e-43 | H160: 1 | I160: yes | J160: 1.011625387e-40 | K160: 1 | N160: yes | O160: 7.082095176e-39 | P160: 1 | Q160: yes | R160: 0.99
A161: 140 | D161: 3.587324069e-43 | E161: 5.094000178e-41 | F161: 3.591628858e-39 | G161: 3.587324069e-43 | H161: 1 | I161: yes | J161: 5.094000178e-41 | K161: 1 | N161: yes | O161: 3.591628858e-39 | P161: 1 | Q161: yes | R161: 0.99
A162: 141 | D162: 1.793662034e-43 | E162: 2.564936709e-41 | F162: 1.82128443e-39 | G162: 1.793662034e-43 | H162: 1 | I162: yes | J162: 2.564936709e-41 | K162: 1 | N162: yes | O162: 1.82128443e-39 | P162: 1 | Q162: yes | R162: 0.99
A163: 142 | D163: 8.968310172e-44 | E163: 1.291436665e-41 | F163: 9.234668984e-40 | G163: 8.968310172e-44 | H163: 1 | I163: yes | J163: 1.291436665e-41 | K163: 1 | N163: yes | O163: 9.234668984e-40 | P163: 1 | Q163: yes | R163: 0.99
A164: 143 | D164: 4.484155086e-44 | E164: 6.502024874e-42 | F164: 4.681906325e-40 | G164: 4.484155086e-44 | H164: 1 | I164: yes | J164: 6.502024874e-42 | K164: 1 | N164: yes | O164: 4.681906325e-40 | P164: 1 | Q164: yes | R164: 0.99
A165: 144 | D165: 2.242077543e-44 | E165: 3.273433213e-42 | F165: 2.373463287e-40 | G165: 2.242077543e-44 | H165: 1 | I165: yes | J165: 3.273433213e-42 | K165: 1 | N165: yes | O165: 2.373463287e-40 | P165: 1 | Q165: yes | R165: 0.99
A166: 145 | D166: 1.121038771e-44 | E166: 1.647926994e-42 | F166: 1.20309881e-40 | G166: 1.121038771e-44 | H166: 1 | I166: yes | J166: 1.647926994e-42 | K166: 1 | N166: yes | O166: 1.20309881e-40 | P166: 1 | Q166: yes | R166: 0.99
A167: 146 | D167: 5.605193857e-45 | E167: 8.295686909e-43 | F167: 6.097890397e-41 | G167: 5.605193857e-45 | H167: 1 | I167: yes | J167: 8.295686909e-43 | K167: 1 | N167: yes | O167: 6.097890397e-41 | P167: 1 | Q167: yes | R167: 0.99
A168: 147 | D168: 2.802596929e-45 | E168: 4.175869424e-43 | F168: 3.090423633e-41 | G168: 2.802596929e-45 | H168: 1 | I168: yes | J168: 4.175869424e-43 | K168: 1 | N168: yes | O168: 3.090423633e-41 | P168: 1 | Q168: yes | R168: 0.99
A169: 148 | D169: 1.401298464e-45 | E169: 2.101947696e-43 | F169: 1.566091164e-41 | G169: 1.401298464e-45 | H169: 1 | I169: yes | J169: 2.101947696e-43 | K169: 1 | N169: yes | O169: 1.566091164e-41 | P169: 1 | Q169: yes | R169: 0.99
A170: 149 | D170: 7.006492322e-46 | E170: 1.057980341e-43 | F170: 7.935553203e-42 | G170: 7.006492322e-46 | H170: 1 | I170: yes | J170: 1.057980341e-43 | K170: 1 | N170: yes | O170: 7.935553203e-42 | P170: 1 | Q170: yes | R170: 0.99
A171: 150 | D171: 3.503246161e-46 | E171: 5.324934164e-44 | F171: 4.020675619e-42 | G171: 3.503246161e-46 | H171: 1 | I171: yes | J171: 5.324934164e-44 | K171: 1 | N171: yes | O171: 4.020675619e-42 | P171: 1 | Q171: yes | R171: 0.99
A172: 151 | D172: 1.75162308e-46 | E172: 2.679983313e-44 | F172: 2.03696248e-42 | G172: 1.75162308e-46 | H172: 1 | I172: yes | J172: 2.679983313e-44 | K172: 1 | N172: yes | O172: 2.03696248e-42 | P172: 1 | Q172: yes | R172: 0.99
A173: 152 | D173: 8.758115402e-47 | E173: 1.348749772e-44 | F173: 1.031881157e-42 | G173: 8.758115402e-47 | H173: 1 | I173: yes | J173: 1.348749772e-44 | K173: 1 | N173: yes | O173: 1.031881157e-42 | P173: 1 | Q173: yes | R173: 0.99
A174: 153 | D174: 4.379057701e-47 | E174: 6.787539437e-45 | F174: 5.226843272e-43 | G174: 4.379057701e-47 | H174: 1 | I174: yes | J174: 6.787539437e-45 | K174: 1 | N174: yes | O174: 5.226843272e-43 | P174: 1 | Q174: yes | R174: 0.99
A175: 154 | D175: 2.189528851e-47 | E175: 3.415665007e-45 | F175: 2.647359333e-43 | G175: 2.189528851e-47 | H175: 1 | I175: yes | J175: 3.415665007e-45 | K175: 1 | N175: yes | O175: 2.647359333e-43 | P175: 1 | Q175: yes | R175: 0.99
A176: 155 | D176: 1.094764425e-47 | E176: 1.718780148e-45 | F176: 1.340757992e-43 | G176: 1.094764425e-47 | H176: 1 | I176: yes | J176: 1.718780148e-45 | K176: 1 | N176: yes | O176: 1.340757992e-43 | P176: 1 | Q176: yes | R176: 0.99
A177: 156 | D177: 5.473822126e-48 | E177: 8.64863896e-46 | F177: 6.789728965e-44 | G177: 5.473822126e-48 | H177: 1 | I177: yes | J177: 8.64863896e-46 | K177: 1 | N177: yes | O177: 6.789728965e-44 | P177: 1 | Q177: yes | R177: 0.99
A178: 157 | D178: 2.736911063e-48 | E178: 4.35168859e-46 | F178: 3.438107678e-44 | G178: 2.736911063e-48 | H178: 1 | I178: yes | J178: 4.35168859e-46 | K178: 1 | N178: yes | O178: 3.438107678e-44 | P178: 1 | Q178: yes | R178: 0.99
A179: 158 | D179: 1.368455532e-48 | E179: 2.189528851e-46 | F179: 1.740812282e-44 | G179: 1.368455532e-48 | H179: 1 | I179: yes | J179: 2.189528851e-46 | K179: 1 | N179: yes | O179: 1.740812282e-44 | P179: 1 | Q179: yes | R179: 0.99
A180: 159 | D180: 6.842277658e-49 | E180: 1.101606703e-46 | F180: 8.813537851e-45 | G180: 6.842277658e-49 | H180: 1 | I180: yes | J180: 1.101606703e-46 | K180: 1 | N180: yes | O180: 8.813537851e-45 | P180: 1 | Q180: yes | R180: 0.99
A181: 160 | D181: 3.421138829e-49 | E181: 5.542244903e-47 | F181: 4.461849261e-45 | G181: 3.421138829e-49 | H181: 1 | I181: yes | J181: 5.542244903e-47 | K181: 1 | N181: yes | O181: 4.461849261e-45 | P181: 1 | Q181: yes | R181: 0.99
A182: 161 | D182: 1.710569414e-49 | E182: 2.788228146e-47 | F182: 2.258635855e-45 | G182: 1.710569414e-49 | H182: 1 | I182: yes | J182: 2.788228146e-47 | K182: 1 | N182: yes | O182: 2.258635855e-45 | P182: 1 | Q182: yes | R182: 0.99
A183: 162 | D183: 8.552847072e-50 | E183: 1.40266692e-47 | F183: 1.143259068e-45 | G183: 8.552847072e-50 | H183: 1 | I183: yes | J183: 1.40266692e-47 | K183: 1 | N183: yes | O183: 1.143259068e-45 | P183: 1 | Q183: yes | R183: 0.99
A184: 163 | D184: 4.276423536e-50 | E184: 7.056098835e-48 | F184: 5.786428687e-46 | G184: 4.276423536e-50 | H184: 1 | I184: yes | J184: 7.056098835e-48 | K184: 1 | N184: yes | O184: 5.786428687e-46 | P184: 1 | Q184: yes | R184: 0.99
A185: 164 | D185: 2.138211768e-50 | E185: 3.549431535e-48 | F185: 2.928494838e-46 | G185: 2.138211768e-50 | H185: 1 | I185: yes | J185: 3.549431535e-48 | K185: 1 | N185: yes | O185: 2.928494838e-46 | P185: 1 | Q185: yes | R185: 0.99
A186: 165 | D186: 1.069105884e-50 | E186: 1.785406826e-48 | F186: 1.481994576e-46 | G186: 1.069105884e-50 | H186: 1 | I186: yes | J186: 1.785406826e-48 | K186: 1 | N186: yes | O186: 1.481994576e-46 | P186: 1 | Q186: yes | R186: 0.99
A187: 166 | D187: 5.34552942e-51 | E187: 8.980489426e-49 | F187: 7.499243224e-47 | G187: 5.34552942e-51 | H187: 1 | I187: yes | J187: 8.980489426e-49 | K187: 1 | N187: yes | O187: 7.499243224e-47 | P187: 1 | Q187: yes | R187: 0.99
A188: 167 | D188: 2.67276471e-51 | E188: 4.51697236e-49 | F188: 3.794524059e-47 | G188: 2.67276471e-51 | H188: 1 | I188: yes | J188: 4.51697236e-49 | K188: 1 | N188: yes | O188: 3.794524059e-47 | P188: 1 | Q188: yes | R188: 0.99
A189: 168 | D189: 1.336382355e-51 | E189: 2.271850004e-49 | F189: 1.919846891e-47 | G189: 1.336382355e-51 | H189: 1 | I189: yes | J189: 2.271850004e-49 | K189: 1 | N189: yes | O189: 1.919846891e-47 | P189: 1 | Q189: yes | R189: 0.99
A190: 169 | D190: 6.681911775e-52 | E190: 1.142606914e-49 | F190: 9.712826956e-48 | G190: 6.681911775e-52 | H190: 1 | I190: yes | J190: 1.142606914e-49 | K190: 1 | N190: yes | O190: 9.712826956e-48 | P190: 1 | Q190: yes | R190: 0.99
A191: 170 | D191: 3.340955888e-52 | E191: 5.746444127e-50 | F191: 4.913543824e-48 | G191: 3.340955888e-52 | H191: 1 | I191: yes | J191: 5.746444127e-50 | K191: 1 | N191: yes | O191: 4.913543824e-48 | P191: 1 | Q191: yes | R191: 0.99
A192: 171 | D192: 1.670477944e-52 | E192: 2.889926843e-50 | F192: 2.485504133e-48 | G192: 1.670477944e-52 | H192: 1 | I192: yes | J192: 2.889926843e-50 | K192: 1 | N192: yes | O192: 2.485504133e-48 | P192: 1 | Q192: yes | R192: 0.99
A193: 172 | D193: 8.352389719e-53 | E193: 1.453315811e-50 | F193: 1.257201701e-48 | G193: 8.352389719e-53 | H193: 1 | I193: yes | J193: 1.453315811e-50 | K193: 1 | N193: yes | O193: 1.257201701e-48 | P193: 1 | Q193: yes | R193: 0.99
A194: 173 | D194: 4.17619486e-53 | E194: 7.308341004e-51 | F194: 6.358674293e-49 | G194: 4.17619486e-53 | H194: 1 | I194: yes | J194: 7.308341004e-51 | K194: 1 | N194: yes | O194: 6.358674293e-49 | P194: 1 | Q194: yes | R194: 0.99
A195: 174 | D195: 2.08809743e-53 | E195: 3.675051476e-51 | F195: 3.215878852e-49 | G195: 2.08809743e-53 | H195: 1 | I195: yes | J195: 3.675051476e-51 | K195: 1 | N195: yes | O195: 3.215878852e-49 | P195: 1 | Q195: yes | R195: 0.99
A196: 175 | D196: 1.044048715e-53 | E196: 1.847966225e-51 | F196: 1.626314683e-49 | G196: 1.044048715e-53 | H196: 1 | I196: yes | J196: 1.847966225e-51 | K196: 1 | N196: yes | O196: 1.626314683e-49 | P196: 1 | Q196: yes | R196: 0.99
A197: 176 | D197: 5.220243574e-54 | E197: 9.292033562e-52 | F197: 8.223971727e-50 | G197: 5.220243574e-54 | H197: 1 | I197: yes | J197: 9.292033562e-52 | K197: 1 | N197: yes | O197: 8.223971727e-50 | P197: 1 | Q197: yes | R197: 0.99
A198: 177 | D198: 2.610121787e-54 | E198: 4.672117999e-52 | F198: 4.158446031e-50 | G198: 2.610121787e-54 | H198: 1 | I198: yes | J198: 4.672117999e-52 | K198: 1 | N198: yes | O198: 4.158446031e-50 | P198: 1 | Q198: yes | R198: 0.99
A199: 178 | B199: =IF($B$8<50,"",IF($B$10=0,(1-$D199),(IF($B$10=1,(1-$E199),(1-$F199))))) ->  | D199: =BETADIST($B$9,$C$9+$A199,$C$11,0,1) -> 1.305060894e-54 | E199: =BETADIST($B$9,$C$9+$A199-1,$C$11+1,0,1) -> 2.349109608e-52 | F199: =BETADIST($B$9,$C$9+$A199-2,$C$11+2,0,1) -> 2.102583606e-50 | G199: 1.305060894e-54 | H199: 1 | I199: =IF(H199>$B$11,"yes","no") -> yes | J199: 2.349109608e-52 | K199: 1 | N199: =IF(K199>$B$11,"yes","no") -> yes | O199: 2.102583606e-50 | P199: 1 | Q199: =IF(P199>$B$11,"yes","no") -> yes | R199: =$B$11 -> 0.99
A200: 179 | D200: 6.525304468e-55 | E200: 1.181080109e-52 | F200: 1.063037351e-50 | G200: 6.525304468e-55 | H200: 1 | I200: yes | J200: 1.181080109e-52 | K200: 1 | N200: yes | O200: 1.063037351e-50 | P200: 1 | Q200: yes | R200: 0.99
A201: 180 | D201: 3.262652234e-55 | E201: 5.938027066e-53 | F201: 5.37424076e-51 | G201: 3.262652234e-55 | H201: 1 | I201: yes | J201: 5.938027066e-53 | K201: 1 | N201: yes | O201: 5.37424076e-51 | P201: 1 | Q201: yes | R201: 0.99
A202: 181 | D202: 1.631326117e-55 | E202: 2.985326794e-53 | F202: 2.716810515e-51 | G202: 1.631326117e-55 | H202: 1 | I202: yes | J202: 2.985326794e-53 | K202: 1 | N202: yes | O202: 2.716810515e-51 | P202: 1 | Q202: yes | R202: 0.99
A203: 182 | D203: 8.156630585e-56 | E203: 1.500820028e-53 | F203: 1.373331892e-51 | G203: 8.156630585e-56 | H203: 1 | I203: yes | J203: 1.500820028e-53 | K203: 1 | N203: yes | O203: 1.373331892e-51 | P203: 1 | Q203: yes | R203: 0.99
A204: 183 | D204: 4.078315292e-56 | E204: 7.544883291e-54 | F204: 6.941700459e-52 | G204: 4.078315292e-56 | H204: 1 | I204: yes | J204: 7.544883291e-54 | K204: 1 | N204: yes | O204: 6.941700459e-52 | P204: 1 | Q204: yes | R204: 0.99
A205: 184 | D205: 2.039157646e-56 | E205: 3.792833222e-54 | F205: 3.508574646e-52 | G205: 2.039157646e-56 | H205: 1 | I205: yes | J205: 3.792833222e-54 | K205: 1 | N205: yes | O205: 3.508574646e-52 | P205: 1 | Q205: yes | R205: 0.99
A206: 185 | D206: 1.019578823e-56 | E206: 1.906612399e-54 | F206: 1.773251489e-52 | G206: 1.019578823e-56 | H206: 1 | I206: yes | J206: 1.906612399e-54 | K206: 1 | N206: yes | O206: 1.773251489e-52 | P206: 1 | Q206: yes | R206: 0.99
A207: 186 | D207: 5.097894116e-57 | E207: 9.584040937e-55 | F207: 8.961588066e-53 | G207: 5.097894116e-57 | H207: 1 | I207: yes | J207: 9.584040937e-55 | K207: 1 | N207: yes | O207: 8.961588066e-53 | P207: 1 | Q207: yes | R207: 0.99
A208: 187 | D208: 2.548947058e-57 | E208: 4.817509939e-55 | F208: 4.528714238e-53 | G208: 2.548947058e-57 | H208: 1 | I208: yes | J208: 4.817509939e-55 | K208: 1 | N208: yes | O208: 4.528714238e-53 | P208: 1 | Q208: yes | R208: 0.99
A209: 188 | D209: 1.274473529e-57 | E209: 2.421499705e-55 | F209: 2.288444669e-53 | G209: 1.274473529e-57 | H209: 1 | I209: yes | J209: 2.421499705e-55 | K209: 1 | N209: yes | O209: 2.288444669e-53 | P209: 1 | Q209: yes | R209: 0.99
A210: 189 | D210: 6.372367645e-58 | E210: 1.21712222e-55 | F210: 1.156329833e-53 | G210: 6.372367645e-58 | H210: 1 | I210: yes | J210: 1.21712222e-55 | K210: 1 | N210: yes | O210: 1.156329833e-53 | P210: 1 | Q210: yes | R210: 0.99
A211: 190 | D211: 3.186183822e-58 | E211: 6.117472939e-56 | F211: 5.842505275e-54 | G211: 3.186183822e-58 | H211: 1 | I211: yes | J211: 6.117472939e-56 | K211: 1 | N211: yes | O211: 5.842505275e-54 | P211: 1 | Q211: yes | R211: 0.99
... 2189 more rows

Sheet Bayesian N>=50
A1: Calculation based on probability that q > k (actual proportion > desired proportion) using the Beta Distribution | D1: Side calculations/remarks | P1: P1 to P17shall not be blank
P2: P1 to P17shall not be blank
P3: P1 to P17shall not be blank
P4: P1 to P17shall not be blank
A5: At least requested proportion (k) of population (N) contain drugs at a confidence level of at least (1-α), if (n-r) tested samples are positive. | P5: P1 to P17shall not be blank
P6: P1 to P17shall not be blank
P7: P1 to P17shall not be blank
P8: P1 to P17shall not be blank
A9: Enter data (steps 1 to 6) and see results (step 7) | C9: Max. population size Nmax allowed (current value): | D9: If K= k x N is an integer laboratory request on proportion of positives and actual proportion will match exactly. (Compare cells B12 and C12). If K= k x N is not an integer, it is rounded up to the closest higer integer K` (compare D12 and E12) and actual | P9: P1 to P17shall not be blank
C10: =COUNTA($P:$P)-16 -> 1000 | P10: P1 to P17shall not be blank
A11: =IF($B$11>$C$10,"Nmax ="&C10,"Step 1: Enter population size (N) = number of samples in population:") -> Step 1: Enter population size (N) = number of samples in population: | B11: 51 | C11: Step 5: Enter value a | D11: number of positives along laboratory request K= k*N | E11: number of positives (K`) corresponding to actual proportion (k`) K`=RoundUP(k*N) | P11: P1 to P17shall not be blank
A12: Step 2: Enter proportion (k) of positives in population: (range: 0.0001<k<=1) | B12: 0.8 | C12: 1 | D12: =+B11*B12 -> 40.8 | E12: =+ROUNDUP(B11*B12,0) -> 41 | P12: P1 to P17shall not be blank
A13: Step 3: Enter expected number of negatives (r): (at max. 2) | B13: 1 | C13: Step 6: Enter value b | D13: number of positives for H0 test M0=RoundUp(K)-1 | E13: =+ROUNDUP($B$11*$B$12,0)-1 -> 40 | P13: P1 to P17shall not be blank
A14: Step 4: Enter confidence level (CL) (1-a) (range:0.0001<=CL<=0.9999) | B14: 0.95 | C14: 1 | N14: GRAPH offset value calculation | P14: P1 to P17shall not be blank
A15: Step 7: Sample size (n) | B15: =IF(($B$11-$E$12+1<$B$13),"Not calculated! Input data error! Check N, k, r!",IF(COUNTIF(C:C,"yes")=0,"No sample size fulfills given criteria!",(1+COUNTIF(C:C,"no")))) -> 22 | D15: Max. population size Nmax allowed (current value): | E15: =COUNTA($P:$P)-16 -> 1000 | J15: 1-P(0) | K15: 1-P(0,1) | L15: 1-P(0,1,2) | N15: =IF(COUNTIF(L:L,"<"&B14)<$B$11,COUNTIF(L:L,"<"&B14)+1,COUNTIF(L:L,"<"&B14)) -> 30 | P15: P1 to P17shall not be blank
A16: Sample Size (n) | B16: =IF(B11>=50, "R(q)>k","R(U>=g)") -> R(q)>k | C16: confidence level criteria fits? | F16: P(Sn=0) | G16: P(Sn=1) | H16: P(Sn=2) | I16: empty column | J16: neg_0 | K16: neg_1 | L16: neg_2 | M16: CL requested | O16: ISERROR statement for CL calc | P16: number list included in calc column Q | Q16: calculation for column A | R16: Macro buttons Ñ
A17: =$Q17 -> 1 | B17: =IF(A17="","",IF($B$13=0,($J17),(IF($B$13=1,$K17,$L17)))) -> -0.64 | C17: =IF(A17="","",IF(ISERROR(B17),"no",IF(($B17)>=$B$14,"yes","no"))) -> no | F17: =IF($A17="","",IF($A17<=ROUNDUP($B$11*$B$12,0)-1,(BETADIST($B$12,$C$12+$A17-0,$C$14+0,0,1)))) -> 0.64 | G17: 1 | H17: not defined | J17: =IF($A17="","",1-F17) -> 0.36 | K17: =IF($A17="","",(1-F17)-G17) -> -0.64 | L17: =IF($A17="","",K17-0) -> -0.64 | M17: =IF($B17="","",$B$14) -> 0.95 | O17: =IF(ISERROR(B17),"",IF(B17>=$B$14,B17,"not meet")) -> not meet | P17: =ROW()-16 -> 1 | Q17: =IF($P17>$B$11,"",$P17) -> 1 | R17: To change Nmax click appropriate button! | S17: Reduce Nmax! (smallest file size)
A18: 2 | B18: -0.408 | C18: no | F18: =IF($A18="","",IF($A18<=ROUNDUP($B$11*$B$12,0)-1,(BETADIST($B$12,$C$12+$A18-0,$C$14+0,0,1)))) -> 0.512 | G18: =IF($A18="","",IF($A18<=ROUNDUP($B$11*$B$12,0)-1,(BETADIST($B$12,$C$12+$A18-1,$C$14+1,0,1)))) -> 0.896 | H18: =IF($A18="","",IF($A18<=ROUNDUP($B$11*$B$12,0)-1,(BETADIST($B$12,$C$12+$A18-2,$C$14+2,0,1)))) -> 0.992 | J18: =IF($A18="","",1-F18) -> 0.488 | K18: =IF($A18="","",(1-F18)-G18) -> -0.408 | L18: =IF($A18="","",K18-H18) -> -1.4 | M18: 0.95 | O18: not meet | P18: 2 | Q18: 2
A19: 3 | B19: -0.2288 | C19: no | F19: 0.4096 | G19: 0.8192 | H19: 0.9728 | J19: =IF($A19="","",1-F19) -> 0.5904 | K19: =IF($A19="","",(1-F19)-G19) -> -0.2288 | L19: =IF($A19="","",K19-H19) -> -1.2016 | M19: 0.95 | O19: not meet | P19: 3 | Q19: 3
A20: 4 | B20: -0.06496 | C20: no | F20: 0.32768 | G20: 0.73728 | H20: 0.94208 | J20: 0.67232 | K20: -0.06496 | L20: -1.00704 | M20: 0.95 | O20: not meet | P20: 4 | Q20: 4
A21: 5 | B21: 0.082496 | C21: no | F21: 0.262144 | G21: 0.65536 | H21: 0.90112 | J21: 0.737856 | K21: 0.082496 | L21: -0.818624 | M21: 0.95 | O21: not meet | P21: 5 | Q21: 5
A22: 6 | B22: 0.213568 | C22: no | F22: 0.2097152 | G22: 0.5767168 | H22: 0.851968 | J22: 0.7902848 | K22: 0.213568 | L22: -0.6384 | M22: 0.95 | O22: not meet | P22: 6 | Q22: 6
A23: 7 | B23: 0.32891136 | C23: no | F23: 0.16777216 | G23: 0.50331648 | H23: 0.79691776 | J23: 0.83222784 | K23: 0.32891136 | L23: -0.4680064 | M23: 0.95 | O23: not meet | P23: 7 | Q23: 7
A24: 8 | B24: 0.429574656 | C24: no | F24: 0.134217728 | G24: 0.436207616 | H24: 0.738197504 | J24: 0.865782272 | K24: 0.429574656 | L24: -0.308622848 | M24: 0.95 | O24: not meet | P24: 8 | Q24: 8
A25: 9 | B25: 0.5168161792 | C25: no | F25: 0.1073741824 | G25: 0.3758096384 | H25: 0.6777995264 | J25: 0.8926258176 | K25: 0.5168161792 | L25: -0.1609833472 | M25: 0.95 | O25: not meet | P25: 9 | Q25: 9
A26: 10 | B26: 0.5919781069 | C26: no | F26: 0.08589934592 | G26: 0.3221225472 | H26: 0.6174015488 | J26: 0.9141006541 | K26: 0.5919781069 | L26: -0.02542344192 | M26: 0.95 | O26: not meet | P26: 10 | Q26: 10
A27: 11 | B27: 0.6564026163 | C27: no | F27: 0.06871947674 | G27: 0.2748779069 | H27: 0.5583457485 | J27: 0.9312805233 | K27: 0.6564026163 | L27: 0.09805686784 | M27: 0.95 | O27: not meet | P27: 11 | Q27: 11
A28: 12 | B28: 0.7113781977 | C28: no | F28: 0.05497558139 | G28: 0.2336462209 | H28: 0.5016521802 | J28: 0.9450244186 | K28: 0.7113781977 | L28: 0.2097260175 | M28: 0.95 | O28: not meet | P28: 12 | Q28: 12
A29: 13 | B29: 0.7581074419 | C29: no | F29: 0.04398046511 | G29: 0.197912093 | H29: 0.4480509883 | J29: 0.9560195349 | K29: 0.7581074419 | L29: 0.3100564536 | M29: 0.95 | O29: not meet | P29: 13 | Q29: 13
A30: 14 | B30: 0.7976898605 | C30: no | F30: 0.03518437209 | G30: 0.1671257674 | H30: 0.3980232093 | J30: 0.9648156279 | K30: 0.7976898605 | L30: 0.3996666512 | M30: 0.95 | O30: not meet | P30: 14 | Q30: 14
A31: 15 | B31: 0.831115014 | C31: no | F31: 0.02814749767 | G31: 0.1407374884 | H31: 0.3518437209 | J31: 0.9718525023 | K31: 0.831115014 | L31: 0.4792712931 | M31: 0.95 | O31: not meet | P31: 15 | Q31: 15
A32: 16 | B32: 0.8592625116 | C32: no | F32: 0.02251799814 | G32: 0.1182194902 | H32: 0.3096224744 | J32: 0.9774820019 | K32: 0.8592625116 | L32: 0.5496400373 | M32: 0.95 | O32: not meet | P32: 16 | Q32: 16
A33: 17 | B33: 0.8829064097 | C33: no | F33: 0.01801439851 | G33: 0.0990791918 | H33: 0.2713418775 | J33: 0.9819856015 | K33: 0.8829064097 | L33: 0.6115645321 | M33: 0.95 | O33: not meet | P33: 17 | Q33: 17
A34: 18 | B34: 0.902722248 | C34: no | F34: 0.01441151881 | G34: 0.08286623314 | H34: 0.2368893404 | J34: 0.9855884812 | K34: 0.902722248 | L34: 0.6658329076 | M34: 0.95 | O34: not meet | P34: 18 | Q34: 18
A35: 19 | B35: 0.9192954947 | C35: no | F35: 0.01152921505 | G35: 0.06917529028 | H35: 0.2060847189 | J35: 0.988470785 | K35: 0.9192954947 | L35: 0.7132107757 | M35: 0.95 | O35: not meet | P35: 19 | Q35: 19
A36: 20 | B36: 0.9331305527 | C36: no | F36: 0.009223372037 | G36: 0.05764607523 | H36: 0.1787028332 | J36: 0.990776628 | K36: 0.9331305527 | L36: 0.7544277195 | M36: 0.95 | O36: not meet | P36: 20 | Q36: 20
A37: 21 | B37: 0.9446597678 | C37: no | F37: 0.007378697629 | G37: 0.04796153459 | H37: 0.1544914816 | J37: 0.9926213024 | K37: 0.9446597678 | L37: 0.7901682862 | M37: 0.95 | O37: not meet | P37: 21 | Q37: 21
A38: 22 | B38: 0.9542520747 | C38: yes | F38: 0.005902958104 | G38: 0.0398449672 | H38: 0.1331854922 | J38: 0.9940970419 | K38: 0.9542520747 | L38: 0.8210665825 | M38: 0.95 | O38: 0.9542520747 | P38: 22 | Q38: 22
A39: 23 | B39: 0.9622210681 | C39: yes | F39: 0.004722366483 | G39: 0.03305656538 | H39: 0.1145173872 | J39: 0.9952776335 | K39: 0.9622210681 | L39: 0.8477036809 | M39: 0.95 | O39: 0.9622210681 | P39: 23 | Q39: 23
A40: 24 | B40: 0.9688323812 | C40: yes | F40: 0.003777893186 | G40: 0.0273897256 | H40: 0.09822522284 | J40: 0.9962221068 | K40: 0.9688323812 | L40: 0.8706071584 | M40: 0.95 | O40: 0.9688323812 | P40: 24 | Q40: 24
A41: 25 | B41: 0.9743103263 | C41: yes | F41: 0.003022314549 | G41: 0.02266735912 | H41: 0.0840581234 | J41: 0.9969776855 | K41: 0.9743103263 | L41: 0.8902522029 | M41: 0.95 | O41: 0.9743103263 | P41: 25 | Q41: 25
A42: 26 | B42: 0.9788437982 | C42: yes | F42: 0.002417851639 | G42: 0.0187383502 | H42: 0.07177997054 | J42: 0.9975821484 | K42: 0.9788437982 | L42: 0.9070638276 | M42: 0.95 | O42: 0.9788437982 | P42: 26 | Q42: 26
A43: 27 | B43: 0.9825914682 | C43: yes | F43: 0.001934281311 | G43: 0.01547425049 | H43: 0.06117164647 | J43: 0.9980657187 | K43: 0.9825914682 | L43: 0.9214198217 | M43: 0.95 | O43: 0.9825914682 | P43: 27 | Q43: 27
A44: 28 | B44: 0.9856863183 | C44: yes | F44: 0.001547425049 | G44: 0.01276625666 | H44: 0.05203216728 | J44: 0.998452575 | K44: 0.9856863183 | L44: 0.933654151 | M44: 0.95 | O44: 0.9856863183 | P44: 28 | Q44: 28
A45: 29 | B45: 0.9882395696 | C45: yes | F45: 0.001237940039 | G45: 0.01052249033 | H45: 0.04417898515 | J45: 0.99876206 | K45: 0.9882395696 | L45: 0.9440605845 | M45: 0.95 | O45: 0.9882395696 | P45: 29 | Q45: 29
A46: 30 | B46: 0.9903440677 | C46: yes | F46: 0.0009903520314 | G46: 0.008665580275 | H46: 0.03744768619 | J46: 0.999009648 | K46: 0.9903440677 | L46: 0.9528963815 | M46: 0.95 | O46: 0.9903440677 | P46: 30 | Q46: 30
A47: 31 | B47: 0.9920771837 | C47: yes | F47: 0.0007922816251 | G47: 0.007130534626 | H47: 0.03169126501 | J47: 0.9992077184 | K47: 0.9920771837 | L47: 0.9603859187 | M47: 0.95 | O47: 0.9920771837 | P47: 31 | Q47: 31
A48: 32 | B48: 0.9935032907 | C48: yes | F48: 0.0006338253001 | G48: 0.005862884026 | H48: 0.02677911893 | J48: 0.9993661747 | K48: 0.9935032907 | L48: 0.9667241717 | M48: 0.95 | O48: 0.9935032907 | P48: 32 | Q48: 32
A49: 33 | B49: 0.9946758675 | C49: yes | F49: 0.0005070602401 | G49: 0.004817072281 | H49: 0.02259587195 | J49: 0.9994929398 | K49: 0.9946758675 | L49: 0.9720799955 | M49: 0.95 | O49: 0.9946758675 | P49: 33 | Q49: 33
A50: 34 | B50: 0.9956392819 | C50: yes | F50: 0.0004056481921 | G50: 0.003955069873 | H50: 0.01904011202 | J50: 0.9995943518 | K50: 0.9956392819 | L50: 0.9765991699 | M50: 0.95 | O50: 0.9956392819 | P50: 34 | Q50: 34
A51: 35 | B51: 0.9964302959 | C51: yes | F51: 0.0003245185537 | G51: 0.003245185537 | H51: 0.01602310359 | J51: 0.9996754814 | K51: 0.9964302959 | L51: 0.9804071923 | M51: 0.95 | O51: 0.9964302959 | P51: 35 | Q51: 35
A52: 36 | B52: 0.997079333 | C52: yes | F52: 0.0002596148429 | G52: 0.00266105214 | H52: 0.01346751998 | J52: 0.9997403852 | K52: 0.997079333 | L52: 0.983611813 | M52: 0.95 | O52: 0.997079333 | P52: 36 | Q52: 36
A53: 37 | B53: 0.9976115434 | C53: yes | F53: 0.0002076918743 | G53: 0.002180764681 | H53: 0.01130622641 | J53: 0.9997923081 | K53: 0.9976115434 | L53: 0.986305317 | M53: 0.95 | O53: 0.9976115434 | P53: 37 | Q53: 37
A54: 38 | B54: 0.9980476964 | C54: yes | F54: 0.0001661534995 | G54: 0.001786150119 | H54: 0.009481134064 | J54: 0.9998338465 | K54: 0.9980476964 | L54: 0.9885665623 | M54: 0.95 | O54: 0.9980476964 | P54: 38 | Q54: 38
A55: 39 | B55: 0.9984049264 | C55: yes | F55: 0.0001329227996 | G55: 0.001462150795 | H55: 0.007942137275 | J55: 0.9998670772 | K55: 0.9984049264 | L55: 0.9904627891 | M55: 0.95 | O55: 0.9984049264 | P55: 39 | Q55: 39
A56: 40 | B56: 0.9986973566 | C56: yes | F56: 0.0001063382397 | G56: 0.001196305196 | H56: 0.006646139979 | J56: 0.9998936618 | K56: 0.9986973566 | L56: 0.9920512166 | M56: 0.95 | O56: 0.9986973566 | P56: 40 | Q56: 40
A57: 41 | B57: 1 | C57: yes | F57: FALSE | G57: FALSE | H57: FALSE | J57: 1 | K57: 1 | L57: 1 | M57: 0.95 | O57: 1 | P57: 41 | Q57: 41
A58: 42 | B58: 1 | C58: yes | F58: FALSE | G58: FALSE | H58: FALSE | J58: 1 | K58: 1 | L58: 1 | M58: 0.95 | O58: 1 | P58: 42 | Q58: 42
A59: 43 | B59: 1 | C59: yes | F59: FALSE | G59: FALSE | H59: FALSE | J59: 1 | K59: 1 | L59: 1 | M59: 0.95 | O59: 1 | P59: 43 | Q59: 43
A60: 44 | B60: 1 | C60: yes | F60: FALSE | G60: FALSE | H60: FALSE | J60: 1 | K60: 1 | L60: 1 | M60: 0.95 | O60: 1 | P60: 44 | Q60: 44
A61: 45 | B61: 1 | C61: yes | F61: FALSE | G61: FALSE | H61: FALSE | J61: 1 | K61: 1 | L61: 1 | M61: 0.95 | O61: 1 | P61: 45 | Q61: 45
A62: 46 | B62: 1 | C62: yes | F62: FALSE | G62: FALSE | H62: FALSE | J62: 1 | K62: 1 | L62: 1 | M62: 0.95 | O62: 1 | P62: 46 | Q62: 46
A63: 47 | B63: 1 | C63: yes | F63: FALSE | G63: FALSE | H63: FALSE | J63: 1 | K63: 1 | L63: 1 | M63: 0.95 | O63: 1 | P63: 47 | Q63: 47
A64: 48 | B64: 1 | C64: yes | F64: FALSE | G64: FALSE | H64: FALSE | J64: 1 | K64: 1 | L64: 1 | M64: 0.95 | O64: 1 | P64: 48 | Q64: 48
A65: 49 | B65: 1 | C65: yes | F65: FALSE | G65: FALSE | H65: FALSE | J65: 1 | K65: 1 | L65: 1 | M65: 0.95 | O65: 1 | P65: 49 | Q65: 49
A66: 50 | B66: 1 | C66: yes | F66: FALSE | G66: FALSE | H66: FALSE | J66: 1 | K66: 1 | L66: 1 | M66: 0.95 | O66: 1 | P66: 50 | Q66: 50
A67: 51 | B67: 1 | C67: yes | F67: FALSE | G67: FALSE | H67: FALSE | J67: 1 | K67: 1 | L67: 1 | M67: 0.95 | O67: 1 | P67: 51 | Q67: 51
P68: 52
P69: 53
P70: 54
P71: 55
P72: 56
P73: 57
P74: 58
P75: 59
P76: 60
P77: 61
P78: 62
P79: 63
P80: 64
A81: =$Q81 ->  | B81: =IF(A81="","",IF($B$13=0,($J81),(IF($B$13=1,$K81,$L81)))) ->  | C81: =IF(A81="","",IF(ISERROR(B81),"no",IF(($B81)>=$B$14,"yes","no"))) ->  | M81: =IF($B81="","",$B$14) ->  | O81: =IF(ISERROR(B81),"",IF(B81>=$B$14,B81,"not meet")) ->  | P81: =ROW()-16 -> 65 | Q81: =IF($P81>$B$11,"",$P81) -> 
F82: =IF($A82="","",IF($A82<=ROUNDUP($B$11*$B$12,0)-1,(BETADIST($B$12,$C$12+$A82-0,$C$14+0,0,1)))) ->  | G82: =IF($A82="","",IF($A82<=ROUNDUP($B$11*$B$12,0)-1,(BETADIST($B$12,$C$12+$A82-1,$C$14+1,0,1)))) ->  | H82: =IF($A82="","",IF($A82<=ROUNDUP($B$11*$B$12,0)-1,(BETADIST($B$12,$C$12+$A82-2,$C$14+2,0,1)))) ->  | P82: 66
J83: =IF($A83="","",1-F83) ->  | K83: =IF($A83="","",(1-F83)-G83) ->  | L83: =IF($A83="","",K83-H83) ->  | P83: 67
P84: 68
P85: 69
P86: 70
P87: 71
P88: 72
P89: 73
P90: 74
P91: 75
P92: 76
P93: 77
P94: 78
P95: 79
P96: 80
P97: 81
P98: 82
P99: 83
P100: 84
P101: 85
P102: 86
P103: 87
P104: 88
P105: 89
P106: 90
P107: 91
P108: 92
P109: 93
P110: 94
P111: 95
P112: 96
P113: 97
P114: 98
P115: 99
P116: 100
P117: 101
P118: 102
P119: 103
P120: 104
P121: 105
P122: 106
P123: 107
P124: 108
P125: 109
P126: 110
P127: 111
P128: 112
P129: 113
P130: 114
P131: 115
P132: 116
P133: 117
P134: 118
P135: 119
P136: 120
P137: 121
P138: 122
P139: 123
P140: 124
P141: 125
P142: 126
P143: 127
P144: 128
A145: =$Q145 ->  | B145: =IF(A145="","",IF($B$13=0,($J145),(IF($B$13=1,$K145,$L145)))) ->  | C145: =IF(A145="","",IF(ISERROR(B145),"no",IF(($B145)>=$B$14,"yes","no"))) ->  | M145: =IF($B145="","",$B$14) ->  | O145: =IF(ISERROR(B145),"",IF(B145>=$B$14,B145,"not meet")) ->  | P145: =ROW()-16 -> 129 | Q145: =IF($P145>$B$11,"",$P145) -> 
F146: =IF($A146="","",IF($A146<=ROUNDUP($B$11*$B$12,0)-1,(BETADIST($B$12,$C$12+$A146-0,$C$14+0,0,1)))) ->  | G146: =IF($A146="","",IF($A146<=ROUNDUP($B$11*$B$12,0)-1,(BETADIST($B$12,$C$12+$A146-1,$C$14+1,0,1)))) ->  | H146: =IF($A146="","",IF($A146<=ROUNDUP($B$11*$B$12,0)-1,(BETADIST($B$12,$C$12+$A146-2,$C$14+2,0,1)))) ->  | P146: 130
J147: =IF($A147="","",1-F147) ->  | K147: =IF($A147="","",(1-F147)-G147) ->  | L147: =IF($A147="","",K147-H147) ->  | P147: 131
P148: 132
P149: 133
P150: 134
P151: 135
P152: 136
P153: 137
P154: 138
P155: 139
P156: 140
P157: 141
P158: 142
P159: 143
P160: 144
P161: 145
P162: 146
P163: 147
P164: 148
P165: 149
P166: 150
P167: 151
P168: 152
P169: 153
P170: 154
P171: 155
P172: 156
P173: 157
P174: 158
P175: 159
P176: 160
P177: 161
P178: 162
P179: 163
P180: 164
P181: 165
P182: 166
P183: 167
P184: 168
P185: 169
P186: 170
P187: 171
P188: 172
P189: 173
P190: 174
P191: 175
P192: 176
P193: 177
P194: 178
P195: 179
P196: 180
P197: 181
P198: 182
P199: 183
P200: 184
... 816 more rows

Sheet Estimation of WEIGHT (with Uw)
A1: Step 1: Enter Confidence level (1-a) | B1: 0.99 | C1: a= | D1: =1-$B$1 -> 0.01
A2: Step 2: Enter Population (N) | B2: 160 | C2: t= | D2: =TINV($D$1,($B$3-$B$6-1)) -> 2.692278266
A3: Step 3: Enter Sample Size (n) | B3: 45 | C3: n/N= | D3: =$B$3/$B$2 -> 0.28125
A4: Step 4: Enter Mean Weight () | B4: 502.8222222 | C4: =IF($B$3/$B$2>0.1,"Q= √((N-n)/N) =","") -> Q= √((N-n)/N) = | D4: =IF($B$3/$B$2>0.1,SQRT(($B$2-$B$3)/$B$2),"") -> 0.8477912479 | E4: =IF($B$3/$B$2>0.1,"Because n/N > 0.1, this 'Q' factor is also incorporated into calculations","") -> Because n/N > 0.1, this 'Q' factor is also incorporated into calculations
A5: Step 5: Enter Sample Standard Deviation (s) | B5: 15.09257627 | C5: rsd(%) = | D5: =$B$5*100/$B$4 -> 3.001573042
A6: Step 6: Enter Number of Negative Results in Sample ( r ) | B6: 0 | C6: Pcorr = | D6: =($B$3-$B$6)/$B$3 -> 1
A7: Step 7: Enter the weighing balance uncertainty (uw) | B7: 0.839052045 | C7: ux = s/√n = | D7: =$B$5/SQRT($B$3) -> 2.249868433 | G7: ux(corr) = s/√(n-r) = | H7: =$B$5/SQRT($B$3-$B$6) -> 2.249868433
A8: (Enter 0 if not using uw in the estimation) | C8: uc = √(ux2 + uw2) = | D8: =SQRT(($D$7^2)+($B$7^2)) -> 2.401232246 | G8: uc(corr) = √(ux(corr)2 + uw2) = | H8: =SQRT(($H$7^2)+($B$7^2)) -> 2.401232246
C9: t*uc = | D9: =$D$8*$D$2 -> 6.464785387 | G9: UT(corr) = Nuc(corr) = | H9: =$B$2*$H$8 -> 384.1971594
C10: UT = Nuc = | D10: =$B$2*$D$8 -> 384.1971594 | G10: Pcorr*Uc(corr)*t = | H10: =$D$6*$H$8*$D$2 -> 6.464785387
A11: 
B12: =IF(B6=0,"","Pcorr*") ->  | D12: t*uc
A13: Confidence Interval = | B13: =$B$4*$D$6 -> 502.8222222 | C13: =CHAR(177) -> ± | D13: =$D$9 -> 6.464785387
B15: =IF(B6=0, "W","Pcorr*W") -> W | D15: t*UT | E15: Pcorr*t*UT(corr) | F15: Qcorr*t*UT | G15: Qcorr*Pcorr*t*UT(corr)
A16: Estimate of Weight = | B16: =$B$13*$B$2 -> 80451.55555 | C16: =CHAR(177) -> ± | D16: =IF(AND($B$6=0,$D$3<=0.1),$D$2*$D$10,"") ->  | E16: =IF(AND($B$6>0,$D$3<=0.1),$D$6*$D$2*$H$9,"") ->  | F16: =IF(AND($B$6=0,$D$3>0.1),$D$4*$D$2*$D$10,"") -> 876.9261553 | G16: =IF(AND($B$6>0,$D$3>0.1), $D$4*$D$6*$D$2*$H$9,"") -> 
C19: Range
B20: Lower | D20: Upper
B21: =IF(AND($B$6=0,$D$3<=0.1),$B$16-$D$16,IF(AND($B$6>0,$D$3<=0.1),$B$16-$E$16,IF(AND($B$6=0,$D$3>0.1),$B$16-$F$16,$B$16-$G$16))) -> 79574.6294 | C21: to | D21: =IF(AND($B$6=0,$D$3<=0.1),$B$16+$D$16,IF(AND($B$6>0,$D$3<=0.1),$B$16+$E$16,IF(AND($B$6=0,$D$3>0.1),$B$16+$F$16,$B$16+$G$16))) -> 81328.48171

Sheet Estimation of Tablets (with u'c
A1: Step 1: Enter Confidence level (1-a) | B1: 0.99 | D1: a= | E1: =1-$B$1 -> 0.01
A2: Step 2: Enter Total Weight of Tablets (TW): | B2: 1020 | D2: t= | E2: =TINV($E$1,$B$3-1) -> 3.249835542
A3: Step 3: Enter Number of Individual Weighings (n): | B3: 10 | D3: rsd(%) = | E3: =$B$6*100/$B$5 -> 6.278770647
A4: Step 3: Enter the Number of Tablets per Individual Weighing: | B4: 1 | D4: u'TW = uw1 / TW = | E4: =$B$7/$B$2 -> 0.0003888235294
A5: Step 4: Enter Mean Weight of Individual Weighings (): | B5: 0.29544 | D5: s/√n = | E5: =$B$6/SQRT($B$3) -> 0.00586602506
A6: Step 5: Enter Sample Standard Deviation (s) | B6: 0.01855 | D6: u = √( (s/√n)2 + (uw2)2) = | E6: =SQRT(($E$5^2)+($B$9^2)) -> 0.006054770846
A7: Step 6: Enter the 'Total Weight' weighing balance uncertainty (uw1) | B7: 0.3966 | D7: u' = u /  = | E7: =$E$6/$B$5 -> 0.0204940795
A8: (Enter 0 if not using uw1 in the estimation) | D8: u'c = √( (u'TW)2 + (u')2 ) = | E8: =SQRT(($E$4^2) + ($E$7^2)) -> 0.02049776764
A9: Step 7: Enter the 'Individual Weights' weighing balance uncertainty (uw2) | B9: 0.0015 | D9: uc = u'c * Tot No of Tablets = | E9: =$E$8*$B$19 -> 70.75829388
A10: (Enter 0 if not using uw2 in the estimation)
B18: TW /  | D18: t*uc
A19: Estimated Number of Tablets = | B19: =FLOOR($B$2/($B$5/$B$4),1) -> 3452 | C19: ± | D19: =ROUNDUP($E$2*$E$9,0) -> 230 | E19: Tablets
B21: RANGE
B22: =$B$19-$D$19 -> 3222 | C22: to | D22: =$B$19+$D$19 -> 3682 | E22: Tablets

Sheet Revision Changes
A1: Date | B1: Revision of software and documentation | C1: Documents
C2: active | D2: archived
A3: 2012-12-01 | B3: The introduction page has been changed and the sheet "Changes on the revision" has been added. | C3: none
A4: 2012-12-01 | B4: The HYPERGEOMETRIC TOOL - has been updated, while other tools remain unchanged. Changes: The hypergeometric calculation based on the proportion k of positives (sheet Hypg_Proportion) was changed from the base. The main difference is in the excel HYPGEOMDIST function third argument definition, which is now rounded up (in previous version truncated). Appropriate restrictions-limitations were set for some data cells. New hypergeometric calculation based on the number K of positives (sheet Hypg_Number) is included. Graphic presentation (confidence level vs sample size) on both hypergeometric sheets has been improved. Some macro buttons have been added to enhance the flexibility of the application For in-depth background of the hypergeometric calculation and the validation report see: DWG-SGL-002-vers-001. | C4: DWG-SGL-002-vers-001
A5: 2012-12-06 | B5: Document "Validation Report on Qualitative Sampling Guideline" was updated into the version 002. | C5: DWG-SGL-001-vers-002 | D5: DWG-SGL-001vers-001
A6: 2014-09-01 | B6: Layout of Bayesian and Binomial sheets changed to match HPD format. Bayesian tool split into two sheets - one for N<50 and one for N>=50.
A8: 2015-05-01 | B8: Removal of 'Binomial' sheet from workbook. 'Estimation of Tablets' sheet amended to give a point-estimate only. Instructions updated.
A10: 2016-10-01 | B10: Incorporated the measurement uncertainty associated with the weighing balance into the 'Estimation of Weight' and the 'Estimation of Tablets' calculators. Added a weight range result box. Instructions updated
A11: 2017-07-01 | B11: Correction to Qcorr factor in formula. Qcorr now applied to UT instead of ux
A12: 2018-07-01 | B12: introduction page changed, calculations were not changed
